Body,Body Name,Date,Transaction Number,Invoice Number,Amount,Supplier Name,Supplier ID ,VAT Registration Number ,Expense Area,Expense Type,Expense Code,Purchase Order
http://statistics.data.gov.uk/id/local-authority/29UP,Tonbridge & Malling Borough Council,8/1/2023,0041035699/10,41035699, 153.35,National Westminster Bank Plc,00894500,,Public Transport,Information Technology,D27KD000033001,
http://statistics.data.gov.uk/id/local-authority/29UP,Tonbridge & Malling Borough Council,8/1/2023,0041035699/11,41035699, 1.18,National Westminster Bank Plc,00894500,,Purchases,Information Technology,D27KD000040101,
http://statistics.data.gov.uk/id/local-authority/29UP,Tonbridge & Malling Borough Council,8/1/2023,0041035699/12,41035699, 1.48,National Westminster Bank Plc,00894500,,Purchases,Information Technology,D27KD000040101,
http://statistics.data.gov.uk/id/local-authority/29UP,Tonbridge & Malling Borough Council,8/1/2023,0041035699/13,41035699, 82.10,National Westminster Bank Plc,00894500,,Software Hire & Support,Information Technology,D27KD000044059,
http://statistics.data.gov.uk/id/local-authority/29UP,Tonbridge & Malling Borough Council,8/1/2023,0041035699/14,41035699, 89.18,National Westminster Bank Plc,00894500,,Software Hire & Support,Information Technology,D27KD000044059,
http://statistics.data.gov.uk/id/local-authority/29UP,Tonbridge & Malling Borough Council,8/1/2023,0041035699/15,41035699, 5.91,National Westminster Bank Plc,00894500,,Software Hire & Support,Information Technology,D27KD000044059,
http://statistics.data.gov.uk/id/local-authority/29UP,Tonbridge & Malling Borough Council,8/1/2023,0041035699/16,41035699, 18.88,National Westminster Bank Plc,00894500,,Software Hire & Support,Information Technology,D27KD000044059,
http://statistics.data.gov.uk/id/local-authority/29UP,Tonbridge & Malling Borough Council,8/1/2023,0041035699/18,41035699, 14.45,National Westminster Bank Plc,00894500,,Delivery Expenses,Information Technology,D27KD000044069,
http://statistics.data.gov.uk/id/local-authority/29UP,Tonbridge & Malling Borough Council,8/1/2023,0041035699/19,41035699, 61.79,National Westminster Bank Plc,00894500,,Delivery Expenses,Information Technology,D27KD000044069,
http://statistics.data.gov.uk/id/local-authority/29UP,Tonbridge & Malling Borough Council,8/1/2023,0041035699/20,41035699, 48.95,National Westminster Bank Plc,00894500,,Delivery Expenses,Information Technology,D27KD000044069,
http://statistics.data.gov.uk/id/local-authority/29UP,Tonbridge & Malling Borough Council,8/1/2023,0041035699/21,41035699, 49.00,National Westminster Bank Plc,00894500,,Information & Publicity,Information & Publicity,D32MJ000044076,
http://statistics.data.gov.uk/id/local-authority/29UP,Tonbridge & Malling Borough Council,8/1/2023,0041035699/22,41035699, 400.50,National Westminster Bank Plc,00894500,,Legal Fees,Local Revenue & NNDR Collect,D41QA000044002,
http://statistics.data.gov.uk/id/local-authority/29UP,Tonbridge & Malling Borough Council,8/1/2023,0041035699/23,41035699, 102.99,National Westminster Bank Plc,00894500,,Sales,TIC Stock Account,K18AX000002002,
http://statistics.data.gov.uk/id/local-authority/29UP,Tonbridge & Malling Borough Council,8/1/2023,0041035699/24,41035699, 154.67,National Westminster Bank Plc,00894500,,Sales,TIC Stock Account,K18AX000002002,
http://statistics.data.gov.uk/id/local-authority/29UP,Tonbridge & Malling Borough Council,8/1/2023,0041035699/3,41035699, 166.66,National Westminster Bank Plc,00894500,,Purchases - Exhibits,Tonbridge Castle Gatehouse,B40TG000040106,
http://statistics.data.gov.uk/id/local-authority/29UP,Tonbridge & Malling Borough Council,8/1/2023,0041035699/4,41035699, 89.23,National Westminster Bank Plc,00894500,,Temporary Accommodation,Homelessness,C01AA000044051,
http://statistics.data.gov.uk/id/local-authority/29UP,Tonbridge & Malling Borough Council,8/1/2023,0041035699/5,41035699, 40.00,National Westminster Bank Plc,00894500,,Data Protection Act Registrati,Admin & Prop Sals&Overheads,D01AADA0048013,
http://statistics.data.gov.uk/id/local-authority/29UP,Tonbridge & Malling Borough Council,8/1/2023,0041035699/6,41035699, 11.57,National Westminster Bank Plc,00894500,,Castle Catering Provisions,Ton Castle Council Chamber,D21FC000041015,
http://statistics.data.gov.uk/id/local-authority/29UP,Tonbridge & Malling Borough Council,8/1/2023,0041035699/7,41035699, 103.58,National Westminster Bank Plc,00894500,,Castle Catering Provisions,Ton Castle Council Chamber,D21FC000041015,
http://statistics.data.gov.uk/id/local-authority/29UP,Tonbridge & Malling Borough Council,8/1/2023,0041035699/9,41035699, 159.00,National Westminster Bank Plc,00894500,,Miscellaneous Services,Cleaning & Security,D21FD000044015,
http://statistics.data.gov.uk/id/local-authority/29UP,Tonbridge & Malling Borough Council,8/2/2023,0011046407/1,11046407, 1066.60,Marine And Industrial Pump Services,00062800,662127842,BRREP Servicing - pool plant,Larkfield Leisure Centre,M15HDP20001910,110070262
http://statistics.data.gov.uk/id/local-authority/29UP,Tonbridge & Malling Borough Council,8/2/2023,0011046604/1,11046604, 4691.80,TMS Protection Ltd,01744300,,BRREP General Maintenance,Tonbridge Castle Gatehouse,M15HKP10001900,110070348
http://statistics.data.gov.uk/id/local-authority/29UP,Tonbridge & Malling Borough Council,8/2/2023,0011046605/3,11046605, 955.20,Brand Art,00568300,,Purchases,TIC Stock Account,K18AX000001002,
http://statistics.data.gov.uk/id/local-authority/29UP,Tonbridge & Malling Borough Council,8/2/2023,0011046606/3,11046606, 541.62,KH Recruitment Ltd,01738900,,Temporary Staff,Personnel Sals&Overheads,D01ABDB0311300,
http://statistics.data.gov.uk/id/local-authority/29UP,Tonbridge & Malling Borough Council,8/2/2023,0011046607/1,11046607, 5180.98,Tonbridge & Malling Leisure Trust,01469100,,Purchases,Conduct of Elections,D31MG000040101,
http://statistics.data.gov.uk/id/local-authority/29UP,Tonbridge & Malling Borough Council,8/2/2023,0011046608/3,11046608, 1217.80,Sellick Partnership Group Limited,01336800,,Temporary Staff,Legal Sals&Overheads,D01ARDR0011300,
http://statistics.data.gov.uk/id/local-authority/29UP,Tonbridge & Malling Borough Council,8/2/2023,0011046609/3,11046609, 1204.40,Sellick Partnership Group Limited,01336800,,Temporary Staff,Legal Sals&Overheads,D01ARDR0011300,
http://statistics.data.gov.uk/id/local-authority/29UP,Tonbridge & Malling Borough Council,8/2/2023,0011046610/1,11046610, 249.40,Emap Communications Ltd,00575500,,Reference Books & Publications,Admin & Prop Sals&Overheads,D01AADA0043010,
http://statistics.data.gov.uk/id/local-authority/29UP,Tonbridge & Malling Borough Council,8/2/2023,0011046610/2,11046610, 249.40,Emap Communications Ltd,00575500,,Reference Books & Publications,Finance Sals&Overheads,D01AFDF0043010,
http://statistics.data.gov.uk/id/local-authority/29UP,Tonbridge & Malling Borough Council,8/2/2023,0011046610/3,11046610, 249.40,Emap Communications Ltd,00575500,,Subscriptions,St Scene & Leis Sals&Overheads,D01AG000047002,
http://statistics.data.gov.uk/id/local-authority/29UP,Tonbridge & Malling Borough Council,8/2/2023,0011046610/4,11046610, 249.40,Emap Communications Ltd,00575500,,Reference Books & Publications,Planning Sals&Overheads,D01AJ000043010,
http://statistics.data.gov.uk/id/local-authority/29UP,Tonbridge & Malling Borough Council,8/2/2023,0011046610/5,11046610, 249.40,Emap Communications Ltd,00575500,,Reference Books & Publications,Legal Sals&Overheads,D01AR000043010,
http://statistics.data.gov.uk/id/local-authority/29UP,Tonbridge & Malling Borough Council,8/2/2023,0011046611/1,11046611, 2203.80,AJG Hospitality Limited,01909900,,Contract Payments,UK Shared Prosperity Fund,P06FNFN4009904,
http://statistics.data.gov.uk/id/local-authority/29UP,Tonbridge & Malling Borough Council,8/2/2023,0011046612/3,11046612, 280.00,Premier Group Recycling Ltd,01365300,,Confidential Waste,Cleaning & Security,D21FD000044009,
http://statistics.data.gov.uk/id/local-authority/29UP,Tonbridge & Malling Borough Council,8/2/2023,0011046614/1,11046614, 22.09,Scottish Water Business Stream Ltd,01641100,,Estate Management Charge,Land Review,D40PS000020400,
http://statistics.data.gov.uk/id/local-authority/29UP,Tonbridge & Malling Borough Council,8/2/2023,0011046616/3,11046616, 1186.40,Premier Paper Group,01421800,,Purchases - Paper,Printing,D22GA000040102,
http://statistics.data.gov.uk/id/local-authority/29UP,Tonbridge & Malling Borough Council,8/2/2023,0011046617/3,11046617, 1507.52,The Oyster Partnership,01196400,,Temporary Staff,Admin & Prop Sals&Overheads,D01AADA1111300,
http://statistics.data.gov.uk/id/local-authority/29UP,Tonbridge & Malling Borough Council,8/2/2023,0011046618/1,11046618, 409.27,Scottish Water Business Stream Ltd,01641100,,Sewerage Charges,Buildings,D21FEDD1024003,
http://statistics.data.gov.uk/id/local-authority/29UP,Tonbridge & Malling Borough Council,8/2/2023,0011046620/1,11046620, 225.31,Scottish Water Business Stream Ltd,01641100,,Sewerage Charges,Buildings,D21FEDD5024003,
http://statistics.data.gov.uk/id/local-authority/29UP,Tonbridge & Malling Borough Council,8/2/2023,0011046621/1,11046621, 150.00,Kent County Council,00322500,,Rents,Conduct of Elections,D31MG000022001,
http://statistics.data.gov.uk/id/local-authority/29UP,Tonbridge & Malling Borough Council,8/2/2023,0011046622/3,11046622, 342.80,Antalis,01556800,317187204,Purchases - Paper,Printing,D22GA000040102,
http://statistics.data.gov.uk/id/local-authority/29UP,Tonbridge & Malling Borough Council,8/2/2023,0011046623/3,11046623, 1531.18,Royal Mail,00086200,,Purchases,Mailsort Stock Account,K37BR000001002,
http://statistics.data.gov.uk/id/local-authority/29UP,Tonbridge & Malling Borough Council,8/2/2023,0011046623/4,11046623, 2.10,Royal Mail,00086200,,Purchases,Mailsort Stock Account,K37BR000001002,
http://statistics.data.gov.uk/id/local-authority/29UP,Tonbridge & Malling Borough Council,8/2/2023,0011046623/5,11046623, 12.45,Royal Mail,00086200,,Purchases,Mailsort Stock Account,K37BR000001002,
http://statistics.data.gov.uk/id/local-authority/29UP,Tonbridge & Malling Borough Council,8/2/2023,0011046624/1,11046624, 145.00,Imagink LTD,01513300,,Initiatives,UK Shared Prosperity Fund,D52TH000048135,110070334
http://statistics.data.gov.uk/id/local-authority/29UP,Tonbridge & Malling Borough Council,8/2/2023,0011046625/1,11046625, 278.46,KM Media Group Ltd,00053900,,Advertising General,Public Accountability,D29LRZ99944216,110070345
http://statistics.data.gov.uk/id/local-authority/29UP,Tonbridge & Malling Borough Council,8/2/2023,0011046626/1,11046626, 160.00,NKM Fire Protection Ltd,01784600,,BRREP Servicing - FireAlarmSys,Tonbridge Swimming Pool,M15HBP20001937,110070361
http://statistics.data.gov.uk/id/local-authority/29UP,Tonbridge & Malling Borough Council,8/2/2023,0011046627/1,11046627, 607.93,Extinguisher Doctor Ltd,00059500,,BRREP Servicing-FireExtinguish,Gibson Building West,M15KBP20001938,110070359
http://statistics.data.gov.uk/id/local-authority/29UP,Tonbridge & Malling Borough Council,8/2/2023,0011046628/1,11046628, 3126.40,Chubb Fire & Security Ltd,00115400,174605362,BRREP Servicing-IntruderAlarm,Larkfield Leisure Centre,M15HDP20001939,110070371
http://statistics.data.gov.uk/id/local-authority/29UP,Tonbridge & Malling Borough Council,8/2/2023,0011046629/1,11046629, 22.45,KCS Education/CSG Global Education Ltd,01897200,408845925,Stationery,Admin & Prop Sals&Overheads,D01AA000043003,110070355
http://statistics.data.gov.uk/id/local-authority/29UP,Tonbridge & Malling Borough Council,8/2/2023,0011046629/2,11046629, 44.75,KCS Education/CSG Global Education Ltd,01897200,408845925,Stationery,Admin & Prop Sals&Overheads,D01AA000043003,110070355
http://statistics.data.gov.uk/id/local-authority/29UP,Tonbridge & Malling Borough Council,8/2/2023,0011046629/3,11046629, 25.98,KCS Education/CSG Global Education Ltd,01897200,408845925,Stationery,Admin & Prop Sals&Overheads,D01AA000043003,110070355
http://statistics.data.gov.uk/id/local-authority/29UP,Tonbridge & Malling Borough Council,8/2/2023,0011046629/4,11046629, 27.80,KCS Education/CSG Global Education Ltd,01897200,408845925,Stationery,Admin & Prop Sals&Overheads,D01AA000043003,110070355
http://statistics.data.gov.uk/id/local-authority/29UP,Tonbridge & Malling Borough Council,8/2/2023,0011046630/1,11046630, 60.00,Willow Pumps Ltd,00114100,,BRREP Servicing - Pumping Stn,Tonbridge Swimming Pool,M15HBP20001931,110069721
http://statistics.data.gov.uk/id/local-authority/29UP,Tonbridge & Malling Borough Council,8/2/2023,0011046630/2,11046630, 120.00,Willow Pumps Ltd,00114100,,BRREP Servicing - Pumping Stn,Ton Sportsgrnd Bldgs / Toilets,M15HCP20001931,110069721
http://statistics.data.gov.uk/id/local-authority/29UP,Tonbridge & Malling Borough Council,8/2/2023,0011046630/3,11046630, 120.00,Willow Pumps Ltd,00114100,,BRREP Servicing - Pumping Stn,Vale Rise Depot,M15LCP20001931,110069721
http://statistics.data.gov.uk/id/local-authority/29UP,Tonbridge & Malling Borough Council,8/2/2023,0011046631/1,11046631, 207.75,Safesite Limited,01029900,574362624,BRREP Servicing - safety line,Tonbridge Castle Gatehouse,M15HKP20001965,110070341
http://statistics.data.gov.uk/id/local-authority/29UP,Tonbridge & Malling Borough Council,8/2/2023,0011046631/2,11046631, 207.50,Safesite Limited,01029900,574362624,BRREP Servicing - safety line,Tonbridge Castle / CAB,M15KFP20001965,110070341
http://statistics.data.gov.uk/id/local-authority/29UP,Tonbridge & Malling Borough Council,8/2/2023,0011046632/1,11046632, 415.25,Safesite Limited,01029900,574362624,BRREP Servicing - safety line,Larkfield Leisure Centre,M15HDP20001965,110070341
http://statistics.data.gov.uk/id/local-authority/29UP,Tonbridge & Malling Borough Council,8/2/2023,0011046633/1,11046633, 415.25,Safesite Limited,01029900,574362624,BRREP Servicing - safety line,Angel Centre,M15HAP20001965,110070341
http://statistics.data.gov.uk/id/local-authority/29UP,Tonbridge & Malling Borough Council,8/2/2023,0011046634/1,11046634, 415.25,Safesite Limited,01029900,574362624,BRREP Servicing - safety line,Gibson Building West,M15KBP20001965,110070341
http://statistics.data.gov.uk/id/local-authority/29UP,Tonbridge & Malling Borough Council,8/2/2023,0011046636/1,11046636, 752.00,Chillmech Limited,00978700,,BRREP Servicing-Air Condition,Larkfield Leisure Centre,M15HDP20001935,110070266
http://statistics.data.gov.uk/id/local-authority/29UP,Tonbridge & Malling Borough Council,8/2/2023,0011046637/1,11046637, 300.00,Chillmech Limited,00978700,,BRREP Servicing-Air Condition,Tonbridge Swimming Pool,M15HBP20001935,110070267
http://statistics.data.gov.uk/id/local-authority/29UP,Tonbridge & Malling Borough Council,8/2/2023,0011046638/1,11046638, 183.00,Chillmech Limited,00978700,,BRREP Servicing-Air Condition,Leis Man Poult Wood Golf Centr,M15HEP20001935,110070268
http://statistics.data.gov.uk/id/local-authority/29UP,Tonbridge & Malling Borough Council,8/2/2023,0011046639/1,11046639, 70.98,Extinguisher Doctor Ltd,00059500,,BRREP Servicing-FireExtinguish,Tonbridge Cemetery,M15HJP20001938,110070083
http://statistics.data.gov.uk/id/local-authority/29UP,Tonbridge & Malling Borough Council,8/2/2023,0011046640/1,11046640, 91.00,BML Building Services Ltd,01505000,,BRREP Response - General,Tonbridge Castle / CAB,M15KFP50001997,110070351
http://statistics.data.gov.uk/id/local-authority/29UP,Tonbridge & Malling Borough Council,8/2/2023,0011046641/3,11046641, 52.00,Guardian Security & Fire Ltd,01899300,,BRREP Servicing - FireAlarmSys,Tonbridge Farm Pavillion,M15HGP20001937,
http://statistics.data.gov.uk/id/local-authority/29UP,Tonbridge & Malling Borough Council,8/2/2023,0011046642/1,11046642, 15.26,Royal Mail,00086200,,Postages - Business Reply,Electoral Registration,D31MF000045003,
http://statistics.data.gov.uk/id/local-authority/29UP,Tonbridge & Malling Borough Council,8/2/2023,0011046643/1,11046643, 1204.40,Sellick Partnership Group Limited,01336800,,Temporary Staff,Legal Sals&Overheads,D01ARDR0011300,
http://statistics.data.gov.uk/id/local-authority/29UP,Tonbridge & Malling Borough Council,8/2/2023,0011046644/1,11046644, 1217.80,Sellick Partnership Group Limited,01336800,,Temporary Staff,Legal Sals&Overheads,D01ARDR0011300,
http://statistics.data.gov.uk/id/local-authority/29UP,Tonbridge & Malling Borough Council,8/2/2023,0011046645/1,11046645, 19.07,Amazon EU SARL,01738400,,Initiatives,UK Shared Prosperity Fund,D52TH000048135,410032422
http://statistics.data.gov.uk/id/local-authority/29UP,Tonbridge & Malling Borough Council,8/2/2023,0011046645/2,11046645, 4.16,Amazon EU SARL,01738400,,Initiatives,UK Shared Prosperity Fund,D52TH000048135,410032422
http://statistics.data.gov.uk/id/local-authority/29UP,Tonbridge & Malling Borough Council,8/2/2023,0011046646/1,11046646, 5000.00,Visit Kent Ltd,01138400,,Marketing,Information & Publicity,D32MJ000044215,110070235
http://statistics.data.gov.uk/id/local-authority/29UP,Tonbridge & Malling Borough Council,8/2/2023,0011046647/1,11046647, 4691.80,TMS Cleaning,01910500,,BRREP General Maintenance,Tonbridge Castle Gatehouse,M15HKP10001900,
http://statistics.data.gov.uk/id/local-authority/29UP,Tonbridge & Malling Borough Council,8/2/2023,0011046648/1,11046648, 98.00,SJC Door Security Installations,01278600,,BRREP Servicing - access syst,Tonbridge Castle / CAB,M15KFP20001940,110070365
http://statistics.data.gov.uk/id/local-authority/29UP,Tonbridge & Malling Borough Council,8/2/2023,0012008787/3,12008787, 712.27,Cunninghams Epos Group (Kent),01017800,,Software Hire & Support,Information Technology,D27KD000044059,
http://statistics.data.gov.uk/id/local-authority/29UP,Tonbridge & Malling Borough Council,8/2/2023,0012008794/1,12008794, 1300.00,SureCloud Limited,01155300,,Software Hire & Support,Information Technology,D27KD000044059,410032446
http://statistics.data.gov.uk/id/local-authority/29UP,Tonbridge & Malling Borough Council,8/2/2023,0012008794/2,12008794, 4000.00,SureCloud Limited,01155300,,Software Hire & Support,Information Technology,D27KD000044059,410032446
http://statistics.data.gov.uk/id/local-authority/29UP,Tonbridge & Malling Borough Council,8/2/2023,0012008795/1,12008795, 3.00,O2 UK Ltd,01268000,,Telephones - General,Open Spaces & Amenity Areas,B22LE000045010,
http://statistics.data.gov.uk/id/local-authority/29UP,Tonbridge & Malling Borough Council,8/2/2023,0012008795/10,12008795, 9.10,O2 UK Ltd,01268000,,Mobile Telephones,Technical Sals&Overheads,D01AEDE0245013,
http://statistics.data.gov.uk/id/local-authority/29UP,Tonbridge & Malling Borough Council,8/2/2023,0012008795/11,12008795, 42.00,O2 UK Ltd,01268000,,Mobile Telephones,Technical Sals&Overheads,D01AEDE0445013,
http://statistics.data.gov.uk/id/local-authority/29UP,Tonbridge & Malling Borough Council,8/2/2023,0012008795/12,12008795, 3.00,O2 UK Ltd,01268000,,Mobile Telephones,Technical Sals&Overheads,D01AEDE0545013,
http://statistics.data.gov.uk/id/local-authority/29UP,Tonbridge & Malling Borough Council,8/2/2023,0012008795/13,12008795, 12.00,O2 UK Ltd,01268000,,Mobile Telephones,Finance Sals&Overheads,D01AFDF0045013,
http://statistics.data.gov.uk/id/local-authority/29UP,Tonbridge & Malling Borough Council,8/2/2023,0012008795/14,12008795, 6.00,O2 UK Ltd,01268000,,Mobile Telephones,Finance Sals&Overheads,D01AFDF0945013,
http://statistics.data.gov.uk/id/local-authority/29UP,Tonbridge & Malling Borough Council,8/2/2023,0012008795/15,12008795, 12.00,O2 UK Ltd,01268000,,Mobile Telephones,St Scene & Leis Sals&Overheads,D01AGDG0045013,
http://statistics.data.gov.uk/id/local-authority/29UP,Tonbridge & Malling Borough Council,8/2/2023,0012008795/16,12008795, 12.00,O2 UK Ltd,01268000,,Mobile Telephones,St Scene & Leis Sals&Overheads,D01AGDG0145013,
http://statistics.data.gov.uk/id/local-authority/29UP,Tonbridge & Malling Borough Council,8/2/2023,0012008795/17,12008795, 9.00,O2 UK Ltd,01268000,,Mobile Telephones,St Scene & Leis Sals&Overheads,D01AGDG0445013,
http://statistics.data.gov.uk/id/local-authority/29UP,Tonbridge & Malling Borough Council,8/2/2023,0012008795/18,12008795, 36.00,O2 UK Ltd,01268000,,Mobile Telephones,St Scene & Leis Sals&Overheads,D01AGDG2045013,
http://statistics.data.gov.uk/id/local-authority/29UP,Tonbridge & Malling Borough Council,8/2/2023,0012008795/19,12008795, 9.00,O2 UK Ltd,01268000,,Mobile Telephones,Planning Sals&Overheads,D01AJDJ0045013,
http://statistics.data.gov.uk/id/local-authority/29UP,Tonbridge & Malling Borough Council,8/2/2023,0012008795/2,12008795, 3.00,O2 UK Ltd,01268000,,Mobile Telephones,Admin & Prop Sals&Overheads,D01AADA0045013,
http://statistics.data.gov.uk/id/local-authority/29UP,Tonbridge & Malling Borough Council,8/2/2023,0012008795/20,12008795, 15.37,O2 UK Ltd,01268000,,Mobile Telephones,Planning Sals&Overheads,D01AJDJ0245013,
http://statistics.data.gov.uk/id/local-authority/29UP,Tonbridge & Malling Borough Council,8/2/2023,0012008795/21,12008795, 6.00,O2 UK Ltd,01268000,,Mobile Telephones,Legal Sals&Overheads,D01ARDR0045013,
http://statistics.data.gov.uk/id/local-authority/29UP,Tonbridge & Malling Borough Council,8/2/2023,0012008795/22,12008795, 12.00,O2 UK Ltd,01268000,,Mobile Telephones,Legal Sals&Overheads,D01ARDR0445013,
http://statistics.data.gov.uk/id/local-authority/29UP,Tonbridge & Malling Borough Council,8/2/2023,0012008795/23,12008795, 3.00,O2 UK Ltd,01268000,,Mobile Telephones,Legal Sals&Overheads,D01ARDR0745013,
http://statistics.data.gov.uk/id/local-authority/29UP,Tonbridge & Malling Borough Council,8/2/2023,0012008795/24,12008795, 3.00,O2 UK Ltd,01268000,,Mobile Telephones,Env Hlth & Hsg Sals&Overheads,D01AVDV0045013,
http://statistics.data.gov.uk/id/local-authority/29UP,Tonbridge & Malling Borough Council,8/2/2023,0012008795/25,12008795, 9.00,O2 UK Ltd,01268000,,Mobile Telephones,Env Hlth & Hsg Sals&Overheads,D01AVDV0145013,
http://statistics.data.gov.uk/id/local-authority/29UP,Tonbridge & Malling Borough Council,8/2/2023,0012008795/26,12008795, 6.00,O2 UK Ltd,01268000,,Mobile Telephones,Env Hlth & Hsg Sals&Overheads,D01AVDV0345013,
http://statistics.data.gov.uk/id/local-authority/29UP,Tonbridge & Malling Borough Council,8/2/2023,0012008795/27,12008795, 3.00,O2 UK Ltd,01268000,,Mobile Telephones,Env Hlth & Hsg Sals&Overheads,D01AVDV0745013,
http://statistics.data.gov.uk/id/local-authority/29UP,Tonbridge & Malling Borough Council,8/2/2023,0012008795/28,12008795, 6.00,O2 UK Ltd,01268000,,Mobile Telephones,Env Hlth & Hsg Sals&Overheads,D01AVDV0945013,
http://statistics.data.gov.uk/id/local-authority/29UP,Tonbridge & Malling Borough Council,8/2/2023,0012008795/29,12008795, 9.00,O2 UK Ltd,01268000,,Mobile Telephones,Customer Services,D23CS000045013,
http://statistics.data.gov.uk/id/local-authority/29UP,Tonbridge & Malling Borough Council,8/2/2023,0012008795/3,12008795, 3.00,O2 UK Ltd,01268000,,Mobile Telephones,Admin & Prop Sals&Overheads,D01AADA1045013,
http://statistics.data.gov.uk/id/local-authority/29UP,Tonbridge & Malling Borough Council,8/2/2023,0012008795/30,12008795, 3.00,O2 UK Ltd,01268000,,Mobile Telephones,Tonbridge Gateway,D23TG000045013,
http://statistics.data.gov.uk/id/local-authority/29UP,Tonbridge & Malling Borough Council,8/2/2023,0012008795/31,12008795, 627.00,O2 UK Ltd,01268000,,Leased Lines & Modems,Information Technology,D27KD000045011,
http://statistics.data.gov.uk/id/local-authority/29UP,Tonbridge & Malling Borough Council,8/2/2023,0012008795/32,12008795, 3.00,O2 UK Ltd,01268000,,Mobile Telephones,Mayoral & Other Member Support,D29LX000045013,
http://statistics.data.gov.uk/id/local-authority/29UP,Tonbridge & Malling Borough Council,8/2/2023,0012008795/33,12008795, 3.00,O2 UK Ltd,01268000,,Emergency Out of Hours Recharg,Refuse Collection,H20SA000045030,
http://statistics.data.gov.uk/id/local-authority/29UP,Tonbridge & Malling Borough Council,8/2/2023,0012008795/34,12008795, 3.00,O2 UK Ltd,01268000,,Emergency Out of Hours Recharg,Street Scene,H23SD000045030,
http://statistics.data.gov.uk/id/local-authority/29UP,Tonbridge & Malling Borough Council,8/2/2023,0012008795/4,12008795, 9.00,O2 UK Ltd,01268000,,Mobile Telephones,Admin & Prop Sals&Overheads,D01AADA1245013,
http://statistics.data.gov.uk/id/local-authority/29UP,Tonbridge & Malling Borough Council,8/2/2023,0012008795/5,12008795, 3.00,O2 UK Ltd,01268000,,Mobile Telephones,Chief Exec Sals&Overheads,D01ACDC0045013,
http://statistics.data.gov.uk/id/local-authority/29UP,Tonbridge & Malling Borough Council,8/2/2023,0012008795/6,12008795, 3.00,O2 UK Ltd,01268000,,Mobile Telephones,Chief Exec Sals&Overheads,D01ACDC0145013,
http://statistics.data.gov.uk/id/local-authority/29UP,Tonbridge & Malling Borough Council,8/2/2023,0012008795/7,12008795, 3.00,O2 UK Ltd,01268000,,Mobile Telephones,Chief Exec Sals&Overheads,D01ACDC0245013,
http://statistics.data.gov.uk/id/local-authority/29UP,Tonbridge & Malling Borough Council,8/2/2023,0012008795/8,12008795, 3.00,O2 UK Ltd,01268000,,Mobile Telephones,Technical Sals&Overheads,D01AEDE0045013,
http://statistics.data.gov.uk/id/local-authority/29UP,Tonbridge & Malling Borough Council,8/2/2023,0012008795/9,12008795, 6.00,O2 UK Ltd,01268000,,Mobile Telephones,Technical Sals&Overheads,D01AEDE0145013,
http://statistics.data.gov.uk/id/local-authority/29UP,Tonbridge & Malling Borough Council,8/2/2023,0012008796/1,12008796, 2373.00,ESRI (UK) Ltd,00746300,,Software Hire & Support,Information Technology,D27KD000044059,410032441
http://statistics.data.gov.uk/id/local-authority/29UP,Tonbridge & Malling Borough Council,8/2/2023,0012008796/10,12008796, 2281.00,ESRI (UK) Ltd,00746300,,Software Hire & Support,Information Technology,D27KD000044059,410032441
http://statistics.data.gov.uk/id/local-authority/29UP,Tonbridge & Malling Borough Council,8/2/2023,0012008796/2,12008796, 680.00,ESRI (UK) Ltd,00746300,,Software Hire & Support,Information Technology,D27KD000044059,410032441
http://statistics.data.gov.uk/id/local-authority/29UP,Tonbridge & Malling Borough Council,8/2/2023,0012008796/3,12008796, 2838.00,ESRI (UK) Ltd,00746300,,Software Hire & Support,Information Technology,D27KD000044059,410032441
http://statistics.data.gov.uk/id/local-authority/29UP,Tonbridge & Malling Borough Council,8/2/2023,0012008796/4,12008796, 670.00,ESRI (UK) Ltd,00746300,,Software Hire & Support,Information Technology,D27KD000044059,410032441
http://statistics.data.gov.uk/id/local-authority/29UP,Tonbridge & Malling Borough Council,8/2/2023,0012008796/5,12008796, 1921.00,ESRI (UK) Ltd,00746300,,Software Hire & Support,Information Technology,D27KD000044059,410032441
http://statistics.data.gov.uk/id/local-authority/29UP,Tonbridge & Malling Borough Council,8/2/2023,0012008796/6,12008796, 1055.00,ESRI (UK) Ltd,00746300,,Software Hire & Support,Information Technology,D27KD000044059,410032441
http://statistics.data.gov.uk/id/local-authority/29UP,Tonbridge & Malling Borough Council,8/2/2023,0012008796/7,12008796, 10228.00,ESRI (UK) Ltd,00746300,,Software Hire & Support,Information Technology,D27KD000044059,410032441
http://statistics.data.gov.uk/id/local-authority/29UP,Tonbridge & Malling Borough Council,8/2/2023,0012008796/8,12008796, 1055.00,ESRI (UK) Ltd,00746300,,Software Hire & Support,Information Technology,D27KD000044059,410032441
http://statistics.data.gov.uk/id/local-authority/29UP,Tonbridge & Malling Borough Council,8/2/2023,0012008796/9,12008796, 866.12,ESRI (UK) Ltd,00746300,,Software Hire & Support,Information Technology,D27KD000044059,410032441
http://statistics.data.gov.uk/id/local-authority/29UP,Tonbridge & Malling Borough Council,8/2/2023,0012008797/1,12008797, 2000.00,Loop1 UK Limited,01746700,,Software Hire & Support,Information Technology,D27KD000044059,410032447
http://statistics.data.gov.uk/id/local-authority/29UP,Tonbridge & Malling Borough Council,8/2/2023,0012008797/2,12008797, 610.00,Loop1 UK Limited,01746700,,Software Hire & Support,Information Technology,D27KD000044059,410032447
http://statistics.data.gov.uk/id/local-authority/29UP,Tonbridge & Malling Borough Council,8/2/2023,0012008798/1,12008798, 89.90,CCS Media Ltd,00018000,,Purchases,Information Technology,D27KD000040101,410032450
http://statistics.data.gov.uk/id/local-authority/29UP,Tonbridge & Malling Borough Council,8/2/2023,0012008798/2,12008798, 2.00,CCS Media Ltd,00018000,,Delivery Expenses,Information Technology,D27KD000044069,410032450
http://statistics.data.gov.uk/id/local-authority/29UP,Tonbridge & Malling Borough Council,8/2/2023,0012008799/1,12008799, 87.87,Imperial Civil Enforcement Solutions,00057200,,Maintenance - Ancillary Equip,Information Technology,D27KD000040137,410032405
http://statistics.data.gov.uk/id/local-authority/29UP,Tonbridge & Malling Borough Council,8/2/2023,0012008799/2,12008799, 498.40,Imperial Civil Enforcement Solutions,00057200,,Software Hire & Support,Information Technology,D27KD000044059,410032405
http://statistics.data.gov.uk/id/local-authority/29UP,Tonbridge & Malling Borough Council,8/2/2023,0012008799/3,12008799, 284.26,Imperial Civil Enforcement Solutions,00057200,,Software Hire & Support,Information Technology,D27KD000044059,410032405
http://statistics.data.gov.uk/id/local-authority/29UP,Tonbridge & Malling Borough Council,8/2/2023,0012008799/4,12008799, 9098.47,Imperial Civil Enforcement Solutions,00057200,,Software Hire & Support,Information Technology,D27KD000044059,410032405
http://statistics.data.gov.uk/id/local-authority/29UP,Tonbridge & Malling Borough Council,8/2/2023,0012008799/5,12008799, 8916.12,Imperial Civil Enforcement Solutions,00057200,,Software Hire & Support,Information Technology,D27KD000044059,410032405
http://statistics.data.gov.uk/id/local-authority/29UP,Tonbridge & Malling Borough Council,8/2/2023,0012008799/6,12008799, 1640.52,Imperial Civil Enforcement Solutions,00057200,,Software Hire & Support,Information Technology,D27KD000044059,410032405
http://statistics.data.gov.uk/id/local-authority/29UP,Tonbridge & Malling Borough Council,8/2/2023,0012008799/7,12008799, 2617.82,Imperial Civil Enforcement Solutions,00057200,,Software Hire & Support,Information Technology,D27KD000044059,410032405
http://statistics.data.gov.uk/id/local-authority/29UP,Tonbridge & Malling Borough Council,8/2/2023,0012008799/8,12008799, 7731.30,Imperial Civil Enforcement Solutions,00057200,,Software Hire & Support,Information Technology,D27KD000044059,410032405
http://statistics.data.gov.uk/id/local-authority/29UP,Tonbridge & Malling Borough Council,8/2/2023,0012008799/9,12008799, 1396.16,Imperial Civil Enforcement Solutions,00057200,,Software Hire & Support,Information Technology,D27KD000044059,410032405
http://statistics.data.gov.uk/id/local-authority/29UP,Tonbridge & Malling Borough Council,8/2/2023,0012008800/1,12008800, 20.03,Esendex Limited,01008900,,Leased Lines & Modems,Information Technology,D27KD000045011,
http://statistics.data.gov.uk/id/local-authority/29UP,Tonbridge & Malling Borough Council,8/2/2023,0021038678/1,21038678, 3.00,REDACTED PERSONAL DATA,01908200,,Purchases,Haysden Country Park,B22LC000040101,
http://statistics.data.gov.uk/id/local-authority/29UP,Tonbridge & Malling Borough Council,8/2/2023,0021038678/2,21038678, 8.00,REDACTED PERSONAL DATA,01908200,,Purchases,Haysden Country Park,B22LC000040101,
http://statistics.data.gov.uk/id/local-authority/29UP,Tonbridge & Malling Borough Council,8/2/2023,0021038694/3,21038694, 510.00,Arnold & Court Ltd,01411300,,Maintenance of Grounds,Tonbridge Castle Grounds,B22LB000020402,
http://statistics.data.gov.uk/id/local-authority/29UP,Tonbridge & Malling Borough Council,8/2/2023,0021038695/1,21038695, 150.00,SWS Countryside & Landscape,01567200,,Maintenance of Grounds,Haysden Country Park,B22LC000020402,210057277
http://statistics.data.gov.uk/id/local-authority/29UP,Tonbridge & Malling Borough Council,8/2/2023,0021038696/1,21038696, 340.00,SWS Countryside & Landscape,01567200,,Health & Safety - Trees,Countryside/Woodland Mgt,B22LG000044045,
http://statistics.data.gov.uk/id/local-authority/29UP,Tonbridge & Malling Borough Council,8/2/2023,0021038697/1,21038697, 700.00,SWS Countryside & Landscape,01567200,,Health & Safety - Trees,Countryside/Woodland Mgt,B22LG000044045,
http://statistics.data.gov.uk/id/local-authority/29UP,Tonbridge & Malling Borough Council,8/2/2023,0021038698/1,21038698, 680.00,SWS Countryside & Landscape,01567200,,Maintenance of Grounds,Open Spaces & Amenity Areas,B22LE000020402,210057220
http://statistics.data.gov.uk/id/local-authority/29UP,Tonbridge & Malling Borough Council,8/2/2023,0021038699/1,21038699, 4176.00,SWS Countryside & Landscape,01567200,,Income,LLCP Facility Improv,P05FF000009907,210057175
http://statistics.data.gov.uk/id/local-authority/29UP,Tonbridge & Malling Borough Council,8/2/2023,0021038700/1,21038700, 11.50,South East Water Ltd,01330300,,Purchases,Haysden Country Park,B22LC000040101,210057244
http://statistics.data.gov.uk/id/local-authority/29UP,Tonbridge & Malling Borough Council,8/2/2023,0021038701/1,21038701, 7.31,B&Q/Screwfix Direct(TradeUKAccount),00141300,,Purchases,Open Spaces & Amenity Areas,B22LE000040101,
http://statistics.data.gov.uk/id/local-authority/29UP,Tonbridge & Malling Borough Council,8/2/2023,0021038702/1,21038702, 47.22,Glasdon U.K. Ltd,00039200,,Maintenance of Grounds,Open Spaces & Amenity Areas,B22LE000020402,210057310
http://statistics.data.gov.uk/id/local-authority/29UP,Tonbridge & Malling Borough Council,8/2/2023,0021038703/1,21038703, 570.00,Event Consultants Ltd,01754700,,Events Support,Events Development,B41TJ000044041,
http://statistics.data.gov.uk/id/local-authority/29UP,Tonbridge & Malling Borough Council,8/2/2023,0021038704/1,21038704, 250.00,Event Consultants Ltd,01754700,,Events Support,Events Development,B41TJ000044041,
http://statistics.data.gov.uk/id/local-authority/29UP,Tonbridge & Malling Borough Council,8/2/2023,0021038705/1,21038705, 1200.00,Event Consultants Ltd,01754700,,Events Support,Events Development,B41TJ000044041,
http://statistics.data.gov.uk/id/local-authority/29UP,Tonbridge & Malling Borough Council,8/2/2023,0021038706/1,21038706, 63.95,Landscape Services Ltd,00057600,,Maintenance of Play Equipment,Open Spaces & Amenity Areas,B22LE000020503,210057314
http://statistics.data.gov.uk/id/local-authority/29UP,Tonbridge & Malling Borough Council,8/2/2023,0021038707/10,21038707, 5103.55,Landscape Services Ltd,00057600,,Grounds Maintenance Contract,Cemetery,B26MP000050103,
http://statistics.data.gov.uk/id/local-authority/29UP,Tonbridge & Malling Borough Council,8/2/2023,0021038707/11,21038707, 256.67,Landscape Services Ltd,00057600,,Grounds Maintenance Contract,Churchyards St Peter & St Paul,B28MX000050103,
http://statistics.data.gov.uk/id/local-authority/29UP,Tonbridge & Malling Borough Council,8/2/2023,0021038707/12,21038707, 190.43,Landscape Services Ltd,00057600,,Grounds Maintenance Contract,Churchyards St Stephens,B28MY000050103,
http://statistics.data.gov.uk/id/local-authority/29UP,Tonbridge & Malling Borough Council,8/2/2023,0021038707/13,21038707, 191.95,Landscape Services Ltd,00057600,,Grounds Maintenance Contract,Grounds,D21FF000050103,
http://statistics.data.gov.uk/id/local-authority/29UP,Tonbridge & Malling Borough Council,8/2/2023,0021038707/14,21038707, 364.05,Landscape Services Ltd,00057600,,Maintenance of Grounds,Parking Off-Street,E10HA000020402,
http://statistics.data.gov.uk/id/local-authority/29UP,Tonbridge & Malling Borough Council,8/2/2023,0021038707/15,21038707, 1148.71,Landscape Services Ltd,00057600,,Maintenance of Grounds,Parking Off-Street,E10HAE00120402,
http://statistics.data.gov.uk/id/local-authority/29UP,Tonbridge & Malling Borough Council,8/2/2023,0021038707/16,21038707, 108.41,Landscape Services Ltd,00057600,,Maintenance of Grounds,Parking Off-Street,E10HAE00220402,
http://statistics.data.gov.uk/id/local-authority/29UP,Tonbridge & Malling Borough Council,8/2/2023,0021038707/17,21038707, 98.31,Landscape Services Ltd,00057600,,Maintenance of Grounds,Parking Off-Street,E10HAE00320402,
http://statistics.data.gov.uk/id/local-authority/29UP,Tonbridge & Malling Borough Council,8/2/2023,0021038707/18,21038707, 24.52,Landscape Services Ltd,00057600,,Maintenance of Grounds,Parking Off-Street,E10HAE00420402,
http://statistics.data.gov.uk/id/local-authority/29UP,Tonbridge & Malling Borough Council,8/2/2023,0021038707/19,21038707, 0.63,Landscape Services Ltd,00057600,,Maintenance of Grounds,Parking Off-Street,E10HAE00520402,
http://statistics.data.gov.uk/id/local-authority/29UP,Tonbridge & Malling Borough Council,8/2/2023,0021038707/20,21038707, 68.63,Landscape Services Ltd,00057600,,Maintenance of Grounds,Parking Off-Street,E10HAE00620402,
http://statistics.data.gov.uk/id/local-authority/29UP,Tonbridge & Malling Borough Council,8/2/2023,0021038707/21,21038707, 160.24,Landscape Services Ltd,00057600,,Maintenance of Grounds,Parking Off-Street,E10HAE01020402,
http://statistics.data.gov.uk/id/local-authority/29UP,Tonbridge & Malling Borough Council,8/2/2023,0021038707/22,21038707, 3.55,Landscape Services Ltd,00057600,,Maintenance of Grounds,Parking Off-Street,E10HAE01220402,
http://statistics.data.gov.uk/id/local-authority/29UP,Tonbridge & Malling Borough Council,8/2/2023,0021038707/23,21038707, 7.83,Landscape Services Ltd,00057600,,Maintenance of Grounds,Parking Off-Street,E10HAE01320402,
http://statistics.data.gov.uk/id/local-authority/29UP,Tonbridge & Malling Borough Council,8/2/2023,0021038707/24,21038707, 32.60,Landscape Services Ltd,00057600,,Maintenance of Grounds,Parking Off-Street,E10HAE01520402,
http://statistics.data.gov.uk/id/local-authority/29UP,Tonbridge & Malling Borough Council,8/2/2023,0021038707/25,21038707, 63.69,Landscape Services Ltd,00057600,,Maintenance of Grounds,Parking Off-Street,E10HAE01620402,
http://statistics.data.gov.uk/id/local-authority/29UP,Tonbridge & Malling Borough Council,8/2/2023,0021038707/26,21038707, 25.88,Landscape Services Ltd,00057600,,Maintenance of Grounds,Parking Off-Street,E10HAE01720402,
http://statistics.data.gov.uk/id/local-authority/29UP,Tonbridge & Malling Borough Council,8/2/2023,0021038707/27,21038707, 15.90,Landscape Services Ltd,00057600,,Maintenance of Grounds,Parking Off-Street,E10HAE02120402,
http://statistics.data.gov.uk/id/local-authority/29UP,Tonbridge & Malling Borough Council,8/2/2023,0021038707/28,21038707, 25.32,Landscape Services Ltd,00057600,,Maintenance of Grounds,Parking Off-Street,E10HAE02320402,
http://statistics.data.gov.uk/id/local-authority/29UP,Tonbridge & Malling Borough Council,8/2/2023,0021038707/29,21038707, 97.05,Landscape Services Ltd,00057600,,Maintenance of Grounds,Parking Off-Street,E10HAE02820402,
http://statistics.data.gov.uk/id/local-authority/29UP,Tonbridge & Malling Borough Council,8/2/2023,0021038707/3,21038707, 23754.66,Landscape Services Ltd,00057600,,Grounds Maintenance Contract,Sports Grounds,B13ET000050103,
http://statistics.data.gov.uk/id/local-authority/29UP,Tonbridge & Malling Borough Council,8/2/2023,0021038707/30,21038707, 26.28,Landscape Services Ltd,00057600,,Maintenance of Grounds,Parking Off-Street,E10HAE04020402,
http://statistics.data.gov.uk/id/local-authority/29UP,Tonbridge & Malling Borough Council,8/2/2023,0021038707/31,21038707, 86.65,Landscape Services Ltd,00057600,,Maintenance of Grounds,Parking Off-Street,E10HAE04520402,
http://statistics.data.gov.uk/id/local-authority/29UP,Tonbridge & Malling Borough Council,8/2/2023,0021038707/4,21038707, 8238.89,Landscape Services Ltd,00057600,,Grounds Maintenance Contract,Tonbridge Castle Grounds,B22LB000050103,
http://statistics.data.gov.uk/id/local-authority/29UP,Tonbridge & Malling Borough Council,8/2/2023,0021038707/5,21038707, 62.73,Landscape Services Ltd,00057600,,Trade Refuse Charges,Haysden Country Park,B22LC000044008,
http://statistics.data.gov.uk/id/local-authority/29UP,Tonbridge & Malling Borough Council,8/2/2023,0021038707/6,21038707, 538.16,Landscape Services Ltd,00057600,,Litter Collection,Haysden Country Park,B22LC000044061,
http://statistics.data.gov.uk/id/local-authority/29UP,Tonbridge & Malling Borough Council,8/2/2023,0021038707/7,21038707, 1849.86,Landscape Services Ltd,00057600,,Grounds Maintenance Contract,Haysden Country Park,B22LC000050103,
http://statistics.data.gov.uk/id/local-authority/29UP,Tonbridge & Malling Borough Council,8/2/2023,0021038707/8,21038707, 645.29,Landscape Services Ltd,00057600,,Grounds Maintenance Contract,Haysden Country Park,B22LC000050103,
http://statistics.data.gov.uk/id/local-authority/29UP,Tonbridge & Malling Borough Council,8/2/2023,0021038707/9,21038707, 14164.79,Landscape Services Ltd,00057600,,Grounds Maintenance Contract,Open Spaces & Amenity Areas,B22LE000050103,
http://statistics.data.gov.uk/id/local-authority/29UP,Tonbridge & Malling Borough Council,8/2/2023,0021038709/1,21038709, 3000.00,SWS Countryside & Landscape,01567200,,Maintenance of Grounds,Haysden Country Park,B22LC000020402,210057301
http://statistics.data.gov.uk/id/local-authority/29UP,Tonbridge & Malling Borough Council,8/2/2023,0021038710/1,21038710, 175.00,SWS Countryside & Landscape,01567200,,Health & Safety - Trees,Countryside/Woodland Mgt,B22LG000044045,210057283
http://statistics.data.gov.uk/id/local-authority/29UP,Tonbridge & Malling Borough Council,8/2/2023,0021038710/2,21038710, 40.00,SWS Countryside & Landscape,01567200,,Health & Safety - Trees,Countryside/Woodland Mgt,B22LG000044045,210057283
http://statistics.data.gov.uk/id/local-authority/29UP,Tonbridge & Malling Borough Council,8/2/2023,0021038711/1,21038711, 200.00,SWS Countryside & Landscape,01567200,,Health & Safety - Trees,Countryside/Woodland Mgt,B22LG000044045,210057297
http://statistics.data.gov.uk/id/local-authority/29UP,Tonbridge & Malling Borough Council,8/2/2023,0021038712/1,21038712, 915.00,The Original Tree Surgeons Limited,01906200,219421521,Health & Safety - Trees,Countryside/Woodland Mgt,B22LG000044045,210057298
http://statistics.data.gov.uk/id/local-authority/29UP,Tonbridge & Malling Borough Council,8/2/2023,0021038713/1,21038713, 11971.83,ITAB UK Ltd,01067000,,Initial Furniture & Equipment,Capital Renewals Leisure,P05KGBC0109906,210057304
http://statistics.data.gov.uk/id/local-authority/29UP,Tonbridge & Malling Borough Council,8/2/2023,0021038714/1,21038714, 28.58,Scottish Water Business Stream Ltd,01641100,,Sewerage Charges,Cemetery,B26MP000024003,
http://statistics.data.gov.uk/id/local-authority/29UP,Tonbridge & Malling Borough Council,8/2/2023,0022027954/1,22027954, 135.00,Hach Lange Ltd,01713100,,Maintenance - General,Environmental Protection,H32SN000040135,220003373
http://statistics.data.gov.uk/id/local-authority/29UP,Tonbridge & Malling Borough Council,8/2/2023,0022027955/3,22027955, 490.00,Countrystyle Group,00835900,781981681,Collection of Card,Dry Recycling,H34SR000054008,
http://statistics.data.gov.uk/id/local-authority/29UP,Tonbridge & Malling Borough Council,8/2/2023,0022027956/3,22027956, 4645.60,Countrystyle Group,00835900,781981681,Plastic Recycling,Dry Recycling,H34SR000054019,
http://statistics.data.gov.uk/id/local-authority/29UP,Tonbridge & Malling Borough Council,8/2/2023,0022027957/3,22027957, 130.04,British Gas,01148500,,Electricity,Homelessness,C01AAMAUN21002,
http://statistics.data.gov.uk/id/local-authority/29UP,Tonbridge & Malling Borough Council,8/2/2023,0022027957/4,22027957, 45.00,British Gas,01148500,,Electricity,Homelessness,C01AAMAUN21002,
http://statistics.data.gov.uk/id/local-authority/29UP,Tonbridge & Malling Borough Council,8/2/2023,0022027958/1,22027958, 4801.69,Ward Security LTD,01490000,,Dog Warden,Street Scene,H23SD000044100,
http://statistics.data.gov.uk/id/local-authority/29UP,Tonbridge & Malling Borough Council,8/2/2023,0022027959/1,22027959, 1397.00,Specialist Hygiene Services,01466100,,Cleaning & Domestic Supplies,Haysden Country Park,B22LC000026001,
http://statistics.data.gov.uk/id/local-authority/29UP,Tonbridge & Malling Borough Council,8/2/2023,0022027959/2,22027959, 4310.05,Specialist Hygiene Services,01466100,,Contract Payments,Public Conveniences,H22SC000054001,
http://statistics.data.gov.uk/id/local-authority/29UP,Tonbridge & Malling Borough Council,8/2/2023,0022027960/1,22027960, 47.62,REDACTED PERSONAL DATA,00887000,,Gas,Homelessness,C01AATNPR21003,
http://statistics.data.gov.uk/id/local-authority/29UP,Tonbridge & Malling Borough Council,8/2/2023,0031019614/1,31019614, 160.00,SKF Contractors Ltd,00092000,621768141,Premises Repairs & Maintenance,Parking On-Street,E10HD000020601,310043090
http://statistics.data.gov.uk/id/local-authority/29UP,Tonbridge & Malling Borough Council,8/2/2023,0031019615/1,31019615, 23.20,REDACTED PERSONAL DATA,01820500,,Other Expenses,Civil Contingencies,D33NA000048010,
http://statistics.data.gov.uk/id/local-authority/29UP,Tonbridge & Malling Borough Council,8/2/2023,0031019618/3,31019618, 4715.00,Marston,01485000,,Adjudication & Enforcement Ser,Parking Off-Street,E10HA000044230,
http://statistics.data.gov.uk/id/local-authority/29UP,Tonbridge & Malling Borough Council,8/2/2023,0031019619/1,31019619, 160.65,KM Media Group Ltd,00053900,,Advertising General,Parking On-Street,E10HDZ99944216,310043078
http://statistics.data.gov.uk/id/local-authority/29UP,Tonbridge & Malling Borough Council,8/2/2023,0031019620/1,31019620, 1055.90,G & G Signs,01178400,,Purchases,Boro Highways & Emergency Oper,E01AA000040101,310043088
http://statistics.data.gov.uk/id/local-authority/29UP,Tonbridge & Malling Borough Council,8/2/2023,0031019621/3,31019621, 1329.30,CDER Group,01773300,,Adjudication & Enforcement Ser,Parking Off-Street,E10HA000044230,
http://statistics.data.gov.uk/id/local-authority/29UP,Tonbridge & Malling Borough Council,8/2/2023,0031019622/1,31019622, 65.60,Shell U.K. Oil Products Limited,01673300,,"Petrol, Diesel & Oil",Patrolling,B22LF000030106,
http://statistics.data.gov.uk/id/local-authority/29UP,Tonbridge & Malling Borough Council,8/2/2023,0031019622/2,31019622, 69.29,Shell U.K. Oil Products Limited,01673300,,"Petrol, Diesel & Oil",Parking Off-Street,E10HA000030106,
http://statistics.data.gov.uk/id/local-authority/29UP,Tonbridge & Malling Borough Council,8/2/2023,0031019622/3,31019622, 69.29,Shell U.K. Oil Products Limited,01673300,,"Petrol, Diesel & Oil",Parking On-Street,E10HD000030106,
http://statistics.data.gov.uk/id/local-authority/29UP,Tonbridge & Malling Borough Council,8/2/2023,0031019623/1,31019623, 6.00,Shell U.K. Oil Products Limited,01673300,,"Petrol, Diesel & Oil",Patrolling,B22LF000030106,
http://statistics.data.gov.uk/id/local-authority/29UP,Tonbridge & Malling Borough Council,8/2/2023,0031019623/2,31019623, 59.66,Shell U.K. Oil Products Limited,01673300,,"Petrol, Diesel & Oil",Parking Off-Street,E10HA000030106,
http://statistics.data.gov.uk/id/local-authority/29UP,Tonbridge & Malling Borough Council,8/2/2023,0031019623/3,31019623, 59.67,Shell U.K. Oil Products Limited,01673300,,"Petrol, Diesel & Oil",Parking On-Street,E10HD000030106,
http://statistics.data.gov.uk/id/local-authority/29UP,Tonbridge & Malling Borough Council,8/2/2023,0031019624/1,31019624, 74.76,Shell U.K. Oil Products Limited,01673300,,"Petrol, Diesel & Oil",Parking Off-Street,E10HA000030106,
http://statistics.data.gov.uk/id/local-authority/29UP,Tonbridge & Malling Borough Council,8/2/2023,0031019624/2,31019624, 74.75,Shell U.K. Oil Products Limited,01673300,,"Petrol, Diesel & Oil",Parking On-Street,E10HD000030106,
http://statistics.data.gov.uk/id/local-authority/29UP,Tonbridge & Malling Borough Council,8/2/2023,0031019625/1,31019625, 35.33,Shell U.K. Oil Products Limited,01673300,,"Petrol, Diesel & Oil",Patrolling,B22LF000030106,
http://statistics.data.gov.uk/id/local-authority/29UP,Tonbridge & Malling Borough Council,8/2/2023,0031019625/2,31019625, 53.08,Shell U.K. Oil Products Limited,01673300,,"Petrol, Diesel & Oil",Parking Off-Street,E10HA000030106,
http://statistics.data.gov.uk/id/local-authority/29UP,Tonbridge & Malling Borough Council,8/2/2023,0031019625/3,31019625, 53.08,Shell U.K. Oil Products Limited,01673300,,"Petrol, Diesel & Oil",Parking On-Street,E10HD000030106,
http://statistics.data.gov.uk/id/local-authority/29UP,Tonbridge & Malling Borough Council,8/2/2023,0031019626/1,31019626, 58.84,Shell U.K. Oil Products Limited,01673300,,"Petrol, Diesel & Oil",Parking Off-Street,E10HA000030106,
http://statistics.data.gov.uk/id/local-authority/29UP,Tonbridge & Malling Borough Council,8/2/2023,0031019626/2,31019626, 58.83,Shell U.K. Oil Products Limited,01673300,,"Petrol, Diesel & Oil",Parking On-Street,E10HD000030106,
http://statistics.data.gov.uk/id/local-authority/29UP,Tonbridge & Malling Borough Council,8/2/2023,0031019627/1,31019627, 195.48,British Telecommunications Plc,00012800,,Maintenance - General,Security Services Management,E09GA000040135,
http://statistics.data.gov.uk/id/local-authority/29UP,Tonbridge & Malling Borough Council,8/2/2023,0032010346/1,32010346, 13172.90,Caxton House Investments Limited,01903600,,Application & Appeals,Development Management,A01AB000044194,320003526
http://statistics.data.gov.uk/id/local-authority/29UP,Tonbridge & Malling Borough Council,8/2/2023,0032010350/3,32010350, 2094.75,Vivid Resourcing,01773700,,Temporary Staff,Planning Sals&Overheads,D01AJDJ0111300,
http://statistics.data.gov.uk/id/local-authority/29UP,Tonbridge & Malling Borough Council,8/2/2023,0032010351/1,32010351, 4500.00,Robinson Escott Planning LLP,01653000,,Application & Appeals,Development Management,A01AB000044194,320003505
http://statistics.data.gov.uk/id/local-authority/29UP,Tonbridge & Malling Borough Council,8/2/2023,0032010352/1,32010352, 1741.85,The Oyster Partnership,01196400,,Temporary Staff,Planning Sals&Overheads,D01AJDJ0111300,
http://statistics.data.gov.uk/id/local-authority/29UP,Tonbridge & Malling Borough Council,8/2/2023,0032010353/3,32010353, 1575.00,The Oyster Partnership,01196400,,Temporary Staff,Planning Sals&Overheads,D01AJDJ0111300,
http://statistics.data.gov.uk/id/local-authority/29UP,Tonbridge & Malling Borough Council,8/2/2023,0032010354/1,32010354, 203.49,KM Media Group Ltd,00053900,,Advertising General,Development Management,A01ABZ99944216,320003532
http://statistics.data.gov.uk/id/local-authority/29UP,Tonbridge & Malling Borough Council,8/2/2023,0032010355/3,32010355, 2212.50,Hays Specialist Recruitment Limited,01879200,773695871,Temporary Staff,Planning Sals&Overheads,D01AJDJ0311300,
http://statistics.data.gov.uk/id/local-authority/29UP,Tonbridge & Malling Borough Council,8/2/2023,0032010356/3,32010356, 2144.00,Hays Specialist Recruitment Limited,01879200,773695871,Temporary Staff,Planning Sals&Overheads,D01AJDJ0111300,
http://statistics.data.gov.uk/id/local-authority/29UP,Tonbridge & Malling Borough Council,8/2/2023,0032010357/3,32010357, 2250.00,G2 Recruitment Solutions,01786000,,Temporary Staff,Planning Sals&Overheads,D01AJDJ0011300,
http://statistics.data.gov.uk/id/local-authority/29UP,Tonbridge & Malling Borough Council,8/2/2023,0032010358/3,32010358, 1850.00,G2 Recruitment Solutions,01786000,,Temporary Staff,Planning Sals&Overheads,D01AJDJ0111300,
http://statistics.data.gov.uk/id/local-authority/29UP,Tonbridge & Malling Borough Council,8/2/2023,0032010359/3,32010359, 1504.00,Carrington West Limited,01844500,,Temporary Staff,Planning Sals&Overheads,D01AJDJ0111300,
http://statistics.data.gov.uk/id/local-authority/29UP,Tonbridge & Malling Borough Council,8/2/2023,0032010360/1,32010360, 10678.41,Arcadis Consulting (UK) Limited,01760300,,Professional Fees,Planning Policy,A01AFBORO44001,320003208
http://statistics.data.gov.uk/id/local-authority/29UP,Tonbridge & Malling Borough Council,8/2/2023,0032010361/1,32010361, 8890.00,Arcadis Consulting (UK) Limited,01760300,,Professional Fees,Planning Policy,A01AFBORO44001,220003240
http://statistics.data.gov.uk/id/local-authority/29UP,Tonbridge & Malling Borough Council,8/2/2023,0032010362/1,32010362, 2512.50,Hays Specialist Recruitment Limited,01879200,773695871,Temporary Staff,Planning Sals&Overheads,D01AJDJ0111300,
http://statistics.data.gov.uk/id/local-authority/29UP,Tonbridge & Malling Borough Council,8/2/2023,0032010363/1,32010363, 2212.50,Hays Specialist Recruitment Limited,01879200,773695871,Temporary Staff,Planning Sals&Overheads,D01AJDJ0311300,
http://statistics.data.gov.uk/id/local-authority/29UP,Tonbridge & Malling Borough Council,8/2/2023,0032010364/1,32010364, 300.00,Environment Agency,00418100,,Development of Local Plan,Development of Local Plan,A01AE000044023,320003400
http://statistics.data.gov.uk/id/local-authority/29UP,Tonbridge & Malling Borough Council,8/2/2023,0041035717/1,41035717, 18400.00,Grant Thornton UK LLP,01407400,,Audit Fees,Housing Benefits,C05CL000044223,410032435
http://statistics.data.gov.uk/id/local-authority/29UP,Tonbridge & Malling Borough Council,8/2/2023,0041035722/3,41035722, 1081.14,Morgan Hunt UK Ltd,01086900,,Temporary Staff,Finance Sals&Overheads,D01AFDF1111300,
http://statistics.data.gov.uk/id/local-authority/29UP,Tonbridge & Malling Borough Council,8/2/2023,0041035723/1,41035723, 29117.21,Cushman & Wakefield,01772600,,Pay to Principal - Angel East,Parking Off-Street,E10HAE00144196,
http://statistics.data.gov.uk/id/local-authority/29UP,Tonbridge & Malling Borough Council,8/2/2023,0041035731/1,41035731, 20.00,Computershare Voucher Services,01212600,,Childcare Scheme,Finance Sals&Overheads,D01AFDF0911136,
http://statistics.data.gov.uk/id/local-authority/29UP,Tonbridge & Malling Borough Council,8/2/2023,0041035731/2,41035731, 1.40,Computershare Voucher Services,01212600,,National Insurance,Finance Sals&Overheads,D01AFDF0911191,
http://statistics.data.gov.uk/id/local-authority/29UP,Tonbridge & Malling Borough Council,8/2/2023,0041035731/3,41035731, 20.00,Computershare Voucher Services,01212600,,Childcare Scheme,Env Hlth & Hsg Sals&Overheads,D01AVDV0211136,
http://statistics.data.gov.uk/id/local-authority/29UP,Tonbridge & Malling Borough Council,8/2/2023,0041035731/4,41035731, 1.40,Computershare Voucher Services,01212600,,National Insurance,Env Hlth & Hsg Sals&Overheads,D01AVDV0211191,
http://statistics.data.gov.uk/id/local-authority/29UP,Tonbridge & Malling Borough Council,8/2/2023,0041035732/1,41035732, 4566.00,Kent County Council,00322500,,Tracing Services,Local Revenue & NNDR Collect,D41QA000044091,410032445
http://statistics.data.gov.uk/id/local-authority/29UP,Tonbridge & Malling Borough Council,8/2/2023,0051008830/1,51008830, 7500.00,Jobs Go Public Limited,00556100,,Recruitment Advertising,Recruitment Expenses,D10DA000013110,510010632
http://statistics.data.gov.uk/id/local-authority/29UP,Tonbridge & Malling Borough Council,8/2/2023,0051008831/1,51008831, 8644.50,Haymarket Media Group Limited,01197800,,Recruitment Advertising,Recruitment Expenses,D10DADJ0113110,510010642
http://statistics.data.gov.uk/id/local-authority/29UP,Tonbridge & Malling Borough Council,8/7/2023,0041035735/10,41035735, 148.24,National Westminster Bank Plc,00894500,,Castle Catering Provisions,Ton Castle Council Chamber,D21FC000041015,
http://statistics.data.gov.uk/id/local-authority/29UP,Tonbridge & Malling Borough Council,8/7/2023,0041035735/11,41035735, 49.50,National Westminster Bank Plc,00894500,,Public Transport,Information Technology,D27KD000033001,
http://statistics.data.gov.uk/id/local-authority/29UP,Tonbridge & Malling Borough Council,8/7/2023,0041035735/12,41035735, 1.49,National Westminster Bank Plc,00894500,,Purchases,Information Technology,D27KD000040101,
http://statistics.data.gov.uk/id/local-authority/29UP,Tonbridge & Malling Borough Council,8/7/2023,0041035735/13,41035735, 0.97,National Westminster Bank Plc,00894500,,Purchases,Information Technology,D27KD000040101,
http://statistics.data.gov.uk/id/local-authority/29UP,Tonbridge & Malling Borough Council,8/7/2023,0041035735/14,41035735, 1.02,National Westminster Bank Plc,00894500,,Purchases,Information Technology,D27KD000040101,
http://statistics.data.gov.uk/id/local-authority/29UP,Tonbridge & Malling Borough Council,8/7/2023,0041035735/15,41035735, 80.92,National Westminster Bank Plc,00894500,,Software Hire & Support,Information Technology,D27KD000044059,
http://statistics.data.gov.uk/id/local-authority/29UP,Tonbridge & Malling Borough Council,8/7/2023,0041035735/16,41035735, 17.78,National Westminster Bank Plc,00894500,,Software Hire & Support,Information Technology,D27KD000044059,
http://statistics.data.gov.uk/id/local-authority/29UP,Tonbridge & Malling Borough Council,8/7/2023,0041035735/17,41035735, 20.37,National Westminster Bank Plc,00894500,,Software Hire & Support,Information Technology,D27KD000044059,
http://statistics.data.gov.uk/id/local-authority/29UP,Tonbridge & Malling Borough Council,8/7/2023,0041035735/18,41035735, 178.42,National Westminster Bank Plc,00894500,,Software Hire & Support,Information Technology,D27KD000044059,
http://statistics.data.gov.uk/id/local-authority/29UP,Tonbridge & Malling Borough Council,8/7/2023,0041035735/19,41035735, 42.33,National Westminster Bank Plc,00894500,,Delivery Expenses,Information Technology,D27KD000044069,
http://statistics.data.gov.uk/id/local-authority/29UP,Tonbridge & Malling Borough Council,8/7/2023,0041035735/20,41035735, 49.00,National Westminster Bank Plc,00894500,,Information & Publicity,Information & Publicity,D32MJ000044076,
http://statistics.data.gov.uk/id/local-authority/29UP,Tonbridge & Malling Borough Council,8/7/2023,0041035735/21,41035735, 54.89,National Westminster Bank Plc,00894500,,Information & Publicity,Information & Publicity,D32MJ000044076,
http://statistics.data.gov.uk/id/local-authority/29UP,Tonbridge & Malling Borough Council,8/7/2023,0041035735/22,41035735, 843.50,National Westminster Bank Plc,00894500,,Legal Fees,Local Revenue & NNDR Collect,D41QA000044002,
http://statistics.data.gov.uk/id/local-authority/29UP,Tonbridge & Malling Borough Council,8/7/2023,0041035735/23,41035735, 110.92,National Westminster Bank Plc,00894500,,Sales,TIC Stock Account,K18AX000002002,
http://statistics.data.gov.uk/id/local-authority/29UP,Tonbridge & Malling Borough Council,8/7/2023,0041035735/24,41035735, 62.74,National Westminster Bank Plc,00894500,,Sales,TIC Stock Account,K18AX000002002,
http://statistics.data.gov.uk/id/local-authority/29UP,Tonbridge & Malling Borough Council,8/7/2023,0041035735/25,41035735, 52.05,National Westminster Bank Plc,00894500,,Sales,TIC Stock Account,K18AX000002002,
http://statistics.data.gov.uk/id/local-authority/29UP,Tonbridge & Malling Borough Council,8/7/2023,0041035735/26,41035735, 176.94,National Westminster Bank Plc,00894500,,Initial Furniture & Equipment,Air Quality Monitoring Station,P02EN000009906,
http://statistics.data.gov.uk/id/local-authority/29UP,Tonbridge & Malling Borough Council,8/7/2023,0041035735/4,41035735, 141.67,National Westminster Bank Plc,00894500,,Transport Repair & Maintenance,Patrolling,B22LF000030103,
http://statistics.data.gov.uk/id/local-authority/29UP,Tonbridge & Malling Borough Council,8/7/2023,0041035735/5,41035735, 30.00,National Westminster Bank Plc,00894500,,Electricity,Homelessness,C01AATNHS21002,
http://statistics.data.gov.uk/id/local-authority/29UP,Tonbridge & Malling Borough Council,8/7/2023,0041035735/6,41035735, 47.62,National Westminster Bank Plc,00894500,,Gas,Homelessness,C01AATNPR21003,
http://statistics.data.gov.uk/id/local-authority/29UP,Tonbridge & Malling Borough Council,8/7/2023,0041035735/7,41035735, 10.00,National Westminster Bank Plc,00894500,,Purchases,Finance Sals&Overheads,D01AF000040101,
http://statistics.data.gov.uk/id/local-authority/29UP,Tonbridge & Malling Borough Council,8/7/2023,0041035735/8,41035735, 400.00,National Westminster Bank Plc,00894500,,Ext Fees/Prof & Tech,Training,D10DCDR0413561,
http://statistics.data.gov.uk/id/local-authority/29UP,Tonbridge & Malling Borough Council,8/7/2023,0041035735/9,41035735, 100.98,National Westminster Bank Plc,00894500,,Castle Catering Provisions,Ton Castle Council Chamber,D21FC000041015,
http://statistics.data.gov.uk/id/local-authority/29UP,Tonbridge & Malling Borough Council,8/8/2023,0041035754/1,41035754, 5000.00,St Peter & St Pauls Church Aylesford,01786400,,Charitable / Voluntary Organis,Grants & Payments to Vol Orgn,D37PACV1947005,
http://statistics.data.gov.uk/id/local-authority/29UP,Tonbridge & Malling Borough Council,8/8/2023,0041035755/1,41035755, 2000.00,Church of the Good Shepherd,01369900,,Charitable / Voluntary Organis,Grants & Payments to Vol Orgn,D37PACV1947005,
http://statistics.data.gov.uk/id/local-authority/29UP,Tonbridge & Malling Borough Council,8/8/2023,0041035756/1,41035756, 15000.00,The East Malling Centre/Community Larder,01168000,,Charitable / Voluntary Organis,Grants & Payments to Vol Orgn,D37PACV1947005,
http://statistics.data.gov.uk/id/local-authority/29UP,Tonbridge & Malling Borough Council,8/8/2023,0041035757/1,41035757, 5000.00,FeastFamiliesEating and Sharing Together,01786600,,Charitable / Voluntary Organis,Grants & Payments to Vol Orgn,D37PACV1947005,
http://statistics.data.gov.uk/id/local-authority/29UP,Tonbridge & Malling Borough Council,8/8/2023,0041035758/1,41035758, 4000.00,St Johns Church - Hildenborough PC,01834400,,Charitable / Voluntary Organis,Grants & Payments to Vol Orgn,D37PACV1947005,
http://statistics.data.gov.uk/id/local-authority/29UP,Tonbridge & Malling Borough Council,8/8/2023,0041035759/1,41035759, 12000.00,Leybourne PC Fundraising,01834600,,Charitable / Voluntary Organis,Grants & Payments to Vol Orgn,D37PACV1947005,
http://statistics.data.gov.uk/id/local-authority/29UP,Tonbridge & Malling Borough Council,8/8/2023,0041035760/1,41035760, 10000.00,REDACTED PERSONAL DATA,01864000,,Charitable / Voluntary Organis,Grants & Payments to Vol Orgn,D37PACV1947005,
http://statistics.data.gov.uk/id/local-authority/29UP,Tonbridge & Malling Borough Council,8/8/2023,0041035761/1,41035761, 15000.00,Citizens Advice North and West Kent ,01617600,,Charitable / Voluntary Organis,Grants & Payments to Vol Orgn,D37PACV1947005,
http://statistics.data.gov.uk/id/local-authority/29UP,Tonbridge & Malling Borough Council,8/8/2023,0041035761/2,41035761, 10000.00,Citizens Advice North and West Kent ,01617600,,Charitable / Voluntary Organis,Grants & Payments to Vol Orgn,D37PACV1947005,
http://statistics.data.gov.uk/id/local-authority/29UP,Tonbridge & Malling Borough Council,8/8/2023,0041035762/1,41035762, 5000.00,Snodland Food Assist,01830700,,Charitable / Voluntary Organis,Grants & Payments to Vol Orgn,D37PACV1947005,
http://statistics.data.gov.uk/id/local-authority/29UP,Tonbridge & Malling Borough Council,8/8/2023,0041035763/1,41035763, 15000.00,Tonbridge Baptist Church,00401200,,Charitable / Voluntary Organis,Grants & Payments to Vol Orgn,D37PACV1947005,
http://statistics.data.gov.uk/id/local-authority/29UP,Tonbridge & Malling Borough Council,8/9/2023,0011046649/1,11046649, 836.00,Disclosure & Barring Service,00865900,,Professional Fees,Licences - Fee Paying,H27SH000044001,
http://statistics.data.gov.uk/id/local-authority/29UP,Tonbridge & Malling Borough Council,8/9/2023,0011046650/1,11046650, 120.24,Key Craft,01148600,,Purchases,TIC Stock Account,K18AX000001002,
http://statistics.data.gov.uk/id/local-authority/29UP,Tonbridge & Malling Borough Council,8/9/2023,0011046651/1,11046651, 2000.00,Cornerstones Barristers,01359100,,Legal Fees,Legal Sals&Overheads,D01ARDR0044002,
http://statistics.data.gov.uk/id/local-authority/29UP,Tonbridge & Malling Borough Council,8/9/2023,0011046652/1,11046652, 24.15,Oasis Group  - Box-It South East,00966800,931579211,Purchases,Electoral Registration,D31MF000040101,
http://statistics.data.gov.uk/id/local-authority/29UP,Tonbridge & Malling Borough Council,8/9/2023,0011046653/1,11046653, 5000.00,Plumb 4 Less,01910600,,Contract Payments,UK Shared Prosperity Fund,P06FNFN6009904,
http://statistics.data.gov.uk/id/local-authority/29UP,Tonbridge & Malling Borough Council,8/9/2023,0011046654/1,11046654, 589.41,KH Recruitment Ltd,01738900,,Temporary Staff,Personnel Sals&Overheads,D01ABDB0311300,
http://statistics.data.gov.uk/id/local-authority/29UP,Tonbridge & Malling Borough Council,8/9/2023,0011046655/1,11046655, 355.00,Southern Lightning Engineers Ltd,00094000,,BRREP Servicing-Lightning Prot,Angel Centre,M15HAP20001942,110070306
http://statistics.data.gov.uk/id/local-authority/29UP,Tonbridge & Malling Borough Council,8/9/2023,0011046656/1,11046656, 195.00,Southern Lightning Engineers Ltd,00094000,,BRREP Servicing-Lightning Prot,Leis Man Poult Wood Golf Centr,M15HEP20001942,110070310
http://statistics.data.gov.uk/id/local-authority/29UP,Tonbridge & Malling Borough Council,8/9/2023,0011046657/1,11046657, 155.00,Southern Lightning Engineers Ltd,00094000,,BRREP Servicing-Lightning Prot,Gibson Building West,M15KBP20001942,110070307
http://statistics.data.gov.uk/id/local-authority/29UP,Tonbridge & Malling Borough Council,8/9/2023,0011046657/2,11046657, 155.00,Southern Lightning Engineers Ltd,00094000,,BRREP Servicing-Lightning Prot,Gibson Building East,M15KGP20001942,110070307
http://statistics.data.gov.uk/id/local-authority/29UP,Tonbridge & Malling Borough Council,8/9/2023,0011046658/1,11046658, 2186.00,BML Building Services Ltd,01505000,,BRREP General Maintenance,Tonbridge Castle Gatehouse,M15HKP10001900,110070387
http://statistics.data.gov.uk/id/local-authority/29UP,Tonbridge & Malling Borough Council,8/9/2023,0011046659/1,11046659, 3250.00,BML Building Services Ltd,01505000,,BRREP General Maintenance,Tonbridge Castle Gatehouse,M15HKP10001900,110070385
http://statistics.data.gov.uk/id/local-authority/29UP,Tonbridge & Malling Borough Council,8/9/2023,0011046660/1,11046660, 3090.00,G C Industrial Heating Services,00578100,,BRREP Plant renewals,Larkfield Leisure Centre,M15HDP20001909,110070377
http://statistics.data.gov.uk/id/local-authority/29UP,Tonbridge & Malling Borough Council,8/9/2023,0011046662/1,11046662, 1900.00,PV Environmental Surveys,00987200,,BRREP Asbestos monitoring,Leis Man Poult Wood Golf Centr,M15HEP30001993,110070259
http://statistics.data.gov.uk/id/local-authority/29UP,Tonbridge & Malling Borough Council,8/9/2023,0011046663/1,11046663, 112.00,East Sussex Fire Ltd,01843100,,Repairs & Mtce to Buildings,Homelessness,C01AATNHS20101,110070238
http://statistics.data.gov.uk/id/local-authority/29UP,Tonbridge & Malling Borough Council,8/9/2023,0011046664/1,11046664, 1150.00,London Engineering (Fabrication) Ltd,01905200,256745377,BRREP Plant renewals,Larkfield Leisure Centre,M15HDP20001909,110070364
http://statistics.data.gov.uk/id/local-authority/29UP,Tonbridge & Malling Borough Council,8/9/2023,0011046665/1,11046665, 236.78,Chubb Fire & Security Ltd,00115400,174605362,BRREP Servicing-IntruderAlarm,Leis Man Poult Wood Golf Centr,M15HEP20001939,110070346
http://statistics.data.gov.uk/id/local-authority/29UP,Tonbridge & Malling Borough Council,8/9/2023,0011046666/1,11046666, 1586.19,Royal Mail,00086200,,Purchases,Mailsort Stock Account,K37BR000001002,
http://statistics.data.gov.uk/id/local-authority/29UP,Tonbridge & Malling Borough Council,8/9/2023,0011046666/2,11046666, 8.40,Royal Mail,00086200,,Purchases,Mailsort Stock Account,K37BR000001002,
http://statistics.data.gov.uk/id/local-authority/29UP,Tonbridge & Malling Borough Council,8/9/2023,0011046666/3,11046666, 17.97,Royal Mail,00086200,,Purchases,Mailsort Stock Account,K37BR000001002,
http://statistics.data.gov.uk/id/local-authority/29UP,Tonbridge & Malling Borough Council,8/9/2023,0011046667/1,11046667, 283.12,Key Craft,01148600,,Purchases,TIC Stock Account,K18AX000001002,
http://statistics.data.gov.uk/id/local-authority/29UP,Tonbridge & Malling Borough Council,8/9/2023,0011046668/1,11046668, 392.12,Scottish Water Business Stream Ltd,01641100,,Sewerage Charges,Buildings,D21FEDD6024003,
http://statistics.data.gov.uk/id/local-authority/29UP,Tonbridge & Malling Borough Council,8/9/2023,0011046669/1,11046669, 1937.34,Reach Publishing Services Ltd,01806900,,Marketing,Information & Publicity,D32MJ000044215,110070290
http://statistics.data.gov.uk/id/local-authority/29UP,Tonbridge & Malling Borough Council,8/9/2023,0011046670/1,11046670, 2785.47,Atac Solutions LTD,01558800,,BRREP LeybourneCP SewageDigest,Leybourne Lakes Country Park,M15HLP20001961,110070352
http://statistics.data.gov.uk/id/local-authority/29UP,Tonbridge & Malling Borough Council,8/9/2023,0011046671/1,11046671, 150.00,BML Building Services Ltd,01505000,,Repairs & Mtce to Buildings,Homelessness,C01AATNHS20101,110070390
http://statistics.data.gov.uk/id/local-authority/29UP,Tonbridge & Malling Borough Council,8/9/2023,0011046672/1,11046672, 460.00,G C Industrial Heating Services,00578100,,BRREP Legionella Certification,Leybourne Lakes Country Park,M15HLP30001995,110070354
http://statistics.data.gov.uk/id/local-authority/29UP,Tonbridge & Malling Borough Council,8/9/2023,0011046673/1,11046673, 3218.00,Westcountry Group,00656400,,Stationery,Local Revenue & NNDR Collect,D41QA000043003,110070333
http://statistics.data.gov.uk/id/local-authority/29UP,Tonbridge & Malling Borough Council,8/9/2023,0011046674/1,11046674, 2000.00,BML Building Services Ltd,01505000,,BRREP Window/door repairs,Larkfield Leisure Centre,M15HDP20001919,110070373
http://statistics.data.gov.uk/id/local-authority/29UP,Tonbridge & Malling Borough Council,8/9/2023,0011046675/1,11046675, 2864.00,Loxton Installations Ltd,01278800,,Repairs & Mtce to Buildings,Homelessness,C01AATNHS20101,110070313
http://statistics.data.gov.uk/id/local-authority/29UP,Tonbridge & Malling Borough Council,8/9/2023,0011046676/1,11046676, 690.00,TMD Services,01719600,,BRREP Slipstream flume ovrhaul,Larkfield Leisure Centre,M15HDP20001954,110070391
http://statistics.data.gov.uk/id/local-authority/29UP,Tonbridge & Malling Borough Council,8/9/2023,0011046677/1,11046677, 1384.56,Coolburn Air Conditioning Ltd,01137900,,BRREP Servicing - air handling,Leis Man Poult Wood Golf Centr,M15HEP20001936,110070261
http://statistics.data.gov.uk/id/local-authority/29UP,Tonbridge & Malling Borough Council,8/9/2023,0011046678/1,11046678, 300.00,BML Building Services Ltd,01505000,,BRREP Response - General,Tonbridge Castle / CAB,M15KFP50001997,110070392
http://statistics.data.gov.uk/id/local-authority/29UP,Tonbridge & Malling Borough Council,8/9/2023,0011046679/1,11046679, 1338.79,County Clean Environmental Services Ltd,01881000,214946601,BRREP LeybourneCP SewageDigest,Leybourne Lakes Country Park,M15HLP20001961,110070397
http://statistics.data.gov.uk/id/local-authority/29UP,Tonbridge & Malling Borough Council,8/9/2023,0011046680/3,11046680, 280.00,G C Industrial Heating Services,00578100,,BRREP Response - General,Leybourne Lakes Country Park,M15HLP50001997,
http://statistics.data.gov.uk/id/local-authority/29UP,Tonbridge & Malling Borough Council,8/9/2023,0011046681/3,11046681, 1319.08,The Oyster Partnership,01196400,,Temporary Staff,Admin & Prop Sals&Overheads,D01AADA1111300,
http://statistics.data.gov.uk/id/local-authority/29UP,Tonbridge & Malling Borough Council,8/9/2023,0011046682/3,11046682, 228.41,Biffa Waste Services Ltd,01284500,,Trade Refuse Charges,Cleaning & Security,D21FD000044008,
http://statistics.data.gov.uk/id/local-authority/29UP,Tonbridge & Malling Borough Council,8/9/2023,0011046683/3,11046683, 1352.44,Royal Mail,00086200,,Purchases,Mailsort Stock Account,K37BR000001002,
http://statistics.data.gov.uk/id/local-authority/29UP,Tonbridge & Malling Borough Council,8/9/2023,0011046683/4,11046683, 17.86,Royal Mail,00086200,,Purchases,Mailsort Stock Account,K37BR000001002,
http://statistics.data.gov.uk/id/local-authority/29UP,Tonbridge & Malling Borough Council,8/9/2023,0011046683/5,11046683, 6.30,Royal Mail,00086200,,Purchases,Mailsort Stock Account,K37BR000001002,
http://statistics.data.gov.uk/id/local-authority/29UP,Tonbridge & Malling Borough Council,8/9/2023,0011046684/3,11046684, 23.20,Royal Mail,00086200,,Purchases,Business Reply Stock Account,K14AT000001002,
http://statistics.data.gov.uk/id/local-authority/29UP,Tonbridge & Malling Borough Council,8/9/2023,0011046684/4,11046684, 66.36,Royal Mail,00086200,,Purchases,Business Reply Stock Account,K14AT000001002,
http://statistics.data.gov.uk/id/local-authority/29UP,Tonbridge & Malling Borough Council,8/9/2023,0011046685/1,11046685, 309.00,Loxton Installations Ltd,01278800,,BRREP Response - General,Larkfield Leisure Centre,M15HDP50001997,110070304
http://statistics.data.gov.uk/id/local-authority/29UP,Tonbridge & Malling Borough Council,8/9/2023,0011046686/1,11046686, 309.00,Loxton Installations Ltd,01278800,,BRREP Serv Internal Lighting,Tonbridge Castle / CAB,M15KFP20001957,110070299
http://statistics.data.gov.uk/id/local-authority/29UP,Tonbridge & Malling Borough Council,8/9/2023,0011046687/1,11046687, 271.05,Biffa Waste Services Ltd,01284500,,Trade Refuse Charges,Cleaning & Security,D21FD000044008,
http://statistics.data.gov.uk/id/local-authority/29UP,Tonbridge & Malling Borough Council,8/9/2023,0011046688/1,11046688, 48.72,Biffa Waste Services Ltd,01284500,,Trade Refuse Charges,Cleaning & Security,D21FD000044008,
http://statistics.data.gov.uk/id/local-authority/29UP,Tonbridge & Malling Borough Council,8/9/2023,0011046689/1,11046689, 48.72,Biffa Waste Services Ltd,01284500,,Trade Refuse Charges,Cleaning & Security,D21FD000044008,
http://statistics.data.gov.uk/id/local-authority/29UP,Tonbridge & Malling Borough Council,8/9/2023,0011046690/1,11046690, 193.27,Biffa Waste Services Ltd,01284500,,Trade Refuse Charges,Cleaning & Security,D21FD000044008,
http://statistics.data.gov.uk/id/local-authority/29UP,Tonbridge & Malling Borough Council,8/9/2023,0011046691/1,11046691, 127.80,Biffa Waste Services Ltd,01284500,,Trade Refuse Charges,Cleaning & Security,D21FD000044008,
http://statistics.data.gov.uk/id/local-authority/29UP,Tonbridge & Malling Borough Council,8/9/2023,0011046692/1,11046692, 64.90,KCS Education/CSG Global Education Ltd,01897200,408845925,Cleaning & Domestic Supplies,Cleaning & Security,D21FD000026001,
http://statistics.data.gov.uk/id/local-authority/29UP,Tonbridge & Malling Borough Council,8/9/2023,0011046693/1,11046693, 2123.44,GSF SANDYLIGHT LTD,01705300,,Temporary Staff,Admin & Prop Sals&Overheads,D01AADA0511300,
http://statistics.data.gov.uk/id/local-authority/29UP,Tonbridge & Malling Borough Council,8/9/2023,0012008802/1,12008802, 11.50,Daisy Communications,01068100,,Telephones - Rentals,General Admin Telephones,D24GT000045005,
http://statistics.data.gov.uk/id/local-authority/29UP,Tonbridge & Malling Borough Council,8/9/2023,0012008802/2,12008802, 285.76,Daisy Communications,01068100,,Telephones - Call Costs,General Admin Telephones,D24GT000045006,
http://statistics.data.gov.uk/id/local-authority/29UP,Tonbridge & Malling Borough Council,8/9/2023,0012008802/3,12008802, 95.92,Daisy Communications,01068100,,Leased Lines & Modems,Information Technology,D27KD000045011,
http://statistics.data.gov.uk/id/local-authority/29UP,Tonbridge & Malling Borough Council,8/9/2023,0012008802/4,12008802, 74.46,Daisy Communications,01068100,,Maintenance - General,Security Services Management,E09GA000040135,
http://statistics.data.gov.uk/id/local-authority/29UP,Tonbridge & Malling Borough Council,8/9/2023,0012008804/1,12008804, 25.90,CCS Media Ltd,00018000,,Purchases,Information Technology,D27KD000040101,410032453
http://statistics.data.gov.uk/id/local-authority/29UP,Tonbridge & Malling Borough Council,8/9/2023,0012008804/2,12008804, 2.00,CCS Media Ltd,00018000,,Delivery Expenses,Information Technology,D27KD000044069,410032453
http://statistics.data.gov.uk/id/local-authority/29UP,Tonbridge & Malling Borough Council,8/9/2023,0012008805/1,12008805, 2061.24,NTT Cloud Communications UK Ltd,01794600,,Software Hire & Support,Information Technology,D27KD000044059,110069968
http://statistics.data.gov.uk/id/local-authority/29UP,Tonbridge & Malling Borough Council,8/9/2023,0021038715/1,21038715, 225.00,Mr A Nicholl,00253500,,Casual Users,Tonbridge Sports Association,B02AH000034003,
http://statistics.data.gov.uk/id/local-authority/29UP,Tonbridge & Malling Borough Council,8/9/2023,0021038715/2,21038715, 40.00,Mr A Nicholl,00253500,,Stationery,Tonbridge Sports Association,B02AH000043003,
http://statistics.data.gov.uk/id/local-authority/29UP,Tonbridge & Malling Borough Council,8/9/2023,0021038715/3,21038715, 15.00,Mr A Nicholl,00253500,,Telephones - General,Tonbridge Sports Association,B02AH000045010,
http://statistics.data.gov.uk/id/local-authority/29UP,Tonbridge & Malling Borough Council,8/9/2023,0021038716/1,21038716, 1080.00,Procom Communication Services,00075800,,Initial Furniture & Equipment,Capital Renewals Leisure,P05KGBC0409906,210057312
http://statistics.data.gov.uk/id/local-authority/29UP,Tonbridge & Malling Borough Council,8/9/2023,0022027917/10,22027917, 30.43,Urbaser LTD,01718800,,Dog Bin Emptying,Leybourne Lakes Country Park,B22LK000044012,
http://statistics.data.gov.uk/id/local-authority/29UP,Tonbridge & Malling Borough Council,8/9/2023,0022027917/11,22027917, 70.14,Urbaser LTD,01718800,,Maintenance of Grounds,Grounds,D21FF000020402,
http://statistics.data.gov.uk/id/local-authority/29UP,Tonbridge & Malling Borough Council,8/9/2023,0022027917/12,22027917, 214.52,Urbaser LTD,01718800,,Maintenance of Grounds,Parking Off-Street,E10HA000020402,
http://statistics.data.gov.uk/id/local-authority/29UP,Tonbridge & Malling Borough Council,8/9/2023,0022027917/13,22027917, 5458.43,Urbaser LTD,01718800,,Maintenance of Grounds,Parking Off-Street,E10HAE00120402,
http://statistics.data.gov.uk/id/local-authority/29UP,Tonbridge & Malling Borough Council,8/9/2023,0022027917/14,22027917, 587.98,Urbaser LTD,01718800,,Maintenance of Grounds,Parking Off-Street,E10HAE00220402,
http://statistics.data.gov.uk/id/local-authority/29UP,Tonbridge & Malling Borough Council,8/9/2023,0022027917/15,22027917, 367.84,Urbaser LTD,01718800,,Maintenance of Grounds,Parking Off-Street,E10HAE00320402,
http://statistics.data.gov.uk/id/local-authority/29UP,Tonbridge & Malling Borough Council,8/9/2023,0022027917/16,22027917, 1923.76,Urbaser LTD,01718800,,Maintenance of Grounds,Parking Off-Street,E10HAE00420402,
http://statistics.data.gov.uk/id/local-authority/29UP,Tonbridge & Malling Borough Council,8/9/2023,0022027917/17,22027917, 319.68,Urbaser LTD,01718800,,Maintenance of Grounds,Parking Off-Street,E10HAE00520402,
http://statistics.data.gov.uk/id/local-authority/29UP,Tonbridge & Malling Borough Council,8/9/2023,0022027917/18,22027917, 1192.31,Urbaser LTD,01718800,,Maintenance of Grounds,Parking Off-Street,E10HAE00620402,
http://statistics.data.gov.uk/id/local-authority/29UP,Tonbridge & Malling Borough Council,8/9/2023,0022027917/19,22027917, 10.05,Urbaser LTD,01718800,,Maintenance of Grounds,Parking Off-Street,E10HAE00820402,
http://statistics.data.gov.uk/id/local-authority/29UP,Tonbridge & Malling Borough Council,8/9/2023,0022027917/20,22027917, 9.92,Urbaser LTD,01718800,,Maintenance of Grounds,Parking Off-Street,E10HAE00920402,
http://statistics.data.gov.uk/id/local-authority/29UP,Tonbridge & Malling Borough Council,8/9/2023,0022027917/21,22027917, 23.56,Urbaser LTD,01718800,,Maintenance of Grounds,Parking Off-Street,E10HAE01020402,
http://statistics.data.gov.uk/id/local-authority/29UP,Tonbridge & Malling Borough Council,8/9/2023,0022027917/22,22027917, 111.95,Urbaser LTD,01718800,,Maintenance of Grounds,Parking Off-Street,E10HAE01120402,
http://statistics.data.gov.uk/id/local-authority/29UP,Tonbridge & Malling Borough Council,8/9/2023,0022027917/23,22027917, 70.44,Urbaser LTD,01718800,,Maintenance of Grounds,Parking Off-Street,E10HAE01220402,
http://statistics.data.gov.uk/id/local-authority/29UP,Tonbridge & Malling Borough Council,8/9/2023,0022027917/24,22027917, 1335.68,Urbaser LTD,01718800,,Maintenance of Grounds,Parking Off-Street,E10HAE01320402,
http://statistics.data.gov.uk/id/local-authority/29UP,Tonbridge & Malling Borough Council,8/9/2023,0022027917/25,22027917, 101.58,Urbaser LTD,01718800,,Maintenance of Grounds,Parking Off-Street,E10HAE01420402,
http://statistics.data.gov.uk/id/local-authority/29UP,Tonbridge & Malling Borough Council,8/9/2023,0022027917/26,22027917, 313.05,Urbaser LTD,01718800,,Maintenance of Grounds,Parking Off-Street,E10HAE01520402,
http://statistics.data.gov.uk/id/local-authority/29UP,Tonbridge & Malling Borough Council,8/9/2023,0022027917/27,22027917, 336.69,Urbaser LTD,01718800,,Maintenance of Grounds,Parking Off-Street,E10HAE01620402,
http://statistics.data.gov.uk/id/local-authority/29UP,Tonbridge & Malling Borough Council,8/9/2023,0022027917/28,22027917, 993.96,Urbaser LTD,01718800,,Maintenance of Grounds,Parking Off-Street,E10HAE01720402,
http://statistics.data.gov.uk/id/local-authority/29UP,Tonbridge & Malling Borough Council,8/9/2023,0022027917/29,22027917, 285.29,Urbaser LTD,01718800,,Maintenance of Grounds,Parking Off-Street,E10HAE01920402,
http://statistics.data.gov.uk/id/local-authority/29UP,Tonbridge & Malling Borough Council,8/9/2023,0022027917/3,22027917, 451.16,Urbaser LTD,01718800,,Maintenance of Grounds,Sports Grounds,B13ET000020402,
http://statistics.data.gov.uk/id/local-authority/29UP,Tonbridge & Malling Borough Council,8/9/2023,0022027917/30,22027917, 626.69,Urbaser LTD,01718800,,Maintenance of Grounds,Parking Off-Street,E10HAE02020402,
http://statistics.data.gov.uk/id/local-authority/29UP,Tonbridge & Malling Borough Council,8/9/2023,0022027917/31,22027917, 21.76,Urbaser LTD,01718800,,Maintenance of Grounds,Parking Off-Street,E10HAE02120402,
http://statistics.data.gov.uk/id/local-authority/29UP,Tonbridge & Malling Borough Council,8/9/2023,0022027917/32,22027917, 143.26,Urbaser LTD,01718800,,Maintenance of Grounds,Parking Off-Street,E10HAE02220402,
http://statistics.data.gov.uk/id/local-authority/29UP,Tonbridge & Malling Borough Council,8/9/2023,0022027917/33,22027917, 1204.31,Urbaser LTD,01718800,,Maintenance of Grounds,Parking Off-Street,E10HAE02320402,
http://statistics.data.gov.uk/id/local-authority/29UP,Tonbridge & Malling Borough Council,8/9/2023,0022027917/34,22027917, 3.11,Urbaser LTD,01718800,,Maintenance of Grounds,Parking Off-Street,E10HAE02720402,
http://statistics.data.gov.uk/id/local-authority/29UP,Tonbridge & Malling Borough Council,8/9/2023,0022027917/35,22027917, 437.60,Urbaser LTD,01718800,,Maintenance of Grounds,Parking Off-Street,E10HAE02820402,
http://statistics.data.gov.uk/id/local-authority/29UP,Tonbridge & Malling Borough Council,8/9/2023,0022027917/36,22027917, 7.88,Urbaser LTD,01718800,,Maintenance of Grounds,Parking Off-Street,E10HAE02920402,
http://statistics.data.gov.uk/id/local-authority/29UP,Tonbridge & Malling Borough Council,8/9/2023,0022027917/37,22027917, 46.38,Urbaser LTD,01718800,,Maintenance of Grounds,Parking Off-Street,E10HAE03020402,
http://statistics.data.gov.uk/id/local-authority/29UP,Tonbridge & Malling Borough Council,8/9/2023,0022027917/38,22027917, 39.46,Urbaser LTD,01718800,,Maintenance of Grounds,Parking Off-Street,E10HAE03120402,
http://statistics.data.gov.uk/id/local-authority/29UP,Tonbridge & Malling Borough Council,8/9/2023,0022027917/39,22027917, 836.71,Urbaser LTD,01718800,,Maintenance of Grounds,Parking Off-Street,E10HAE04020402,
http://statistics.data.gov.uk/id/local-authority/29UP,Tonbridge & Malling Borough Council,8/9/2023,0022027917/4,22027917, 96.02,Urbaser LTD,01718800,,Maintenance of Grounds,Poult Wood Golf Centre,B21KE000020402,
http://statistics.data.gov.uk/id/local-authority/29UP,Tonbridge & Malling Borough Council,8/9/2023,0022027917/40,22027917, 580.32,Urbaser LTD,01718800,,Maintenance of Grounds,Parking Off-Street,E10HAE04220402,
http://statistics.data.gov.uk/id/local-authority/29UP,Tonbridge & Malling Borough Council,8/9/2023,0022027917/41,22027917, 1665.68,Urbaser LTD,01718800,,Maintenance of Grounds,Parking Off-Street,E10HAE04520402,
http://statistics.data.gov.uk/id/local-authority/29UP,Tonbridge & Malling Borough Council,8/9/2023,0022027917/42,22027917, 107939.06,Urbaser LTD,01718800,,Contract Payments,Refuse Collection,H20SA000054001,
http://statistics.data.gov.uk/id/local-authority/29UP,Tonbridge & Malling Borough Council,8/9/2023,0022027917/43,22027917, 1101.97,Urbaser LTD,01718800,,Responsible Dog Ownership,Street Scene,H23SD000044050,
http://statistics.data.gov.uk/id/local-authority/29UP,Tonbridge & Malling Borough Council,8/9/2023,0022027917/44,22027917, 65916.68,Urbaser LTD,01718800,,Contract Payments,Street Scene,H23SD000054001,
http://statistics.data.gov.uk/id/local-authority/29UP,Tonbridge & Malling Borough Council,8/9/2023,0022027917/45,22027917, 414.98,Urbaser LTD,01718800,,General Maintenance,Dry Recycling,H34SR000020301,
http://statistics.data.gov.uk/id/local-authority/29UP,Tonbridge & Malling Borough Council,8/9/2023,0022027917/46,22027917, 98065.11,Urbaser LTD,01718800,,General Maintenance,Dry Recycling,H34SR000020301,
http://statistics.data.gov.uk/id/local-authority/29UP,Tonbridge & Malling Borough Council,8/9/2023,0022027917/47,22027917, 38371.84,Urbaser LTD,01718800,,Contract Payments,Dry Recycling,H34SR000054001,
http://statistics.data.gov.uk/id/local-authority/29UP,Tonbridge & Malling Borough Council,8/9/2023,0022027917/48,22027917, 20834.10,Urbaser LTD,01718800,,Contract Payments,Garden Waste Recycling,H34ST000054001,
http://statistics.data.gov.uk/id/local-authority/29UP,Tonbridge & Malling Borough Council,8/9/2023,0022027917/5,22027917, 39.62,Urbaser LTD,01718800,,Maintenance of Grounds,Haysden Country Park,B22LC000020402,
http://statistics.data.gov.uk/id/local-authority/29UP,Tonbridge & Malling Borough Council,8/9/2023,0022027917/6,22027917, 30.43,Urbaser LTD,01718800,,Dog Bin Emptying,Haysden Country Park,B22LC000044012,
http://statistics.data.gov.uk/id/local-authority/29UP,Tonbridge & Malling Borough Council,8/9/2023,0022027917/7,22027917, 862.61,Urbaser LTD,01718800,,Maintenance of Grounds,Open Spaces & Amenity Areas,B22LE000020402,
http://statistics.data.gov.uk/id/local-authority/29UP,Tonbridge & Malling Borough Council,8/9/2023,0022027917/8,22027917, 16.22,Urbaser LTD,01718800,,Dog Bin Emptying,Open Spaces & Amenity Areas,B22LE000044012,
http://statistics.data.gov.uk/id/local-authority/29UP,Tonbridge & Malling Borough Council,8/9/2023,0022027917/9,22027917, 28.00,Urbaser LTD,01718800,,Maintenance of Grounds,Countryside/Woodland Mgt,B22LG000020402,
http://statistics.data.gov.uk/id/local-authority/29UP,Tonbridge & Malling Borough Council,8/9/2023,0022027961/1,22027961, 4340.70,Ward Security LTD,01490000,,Dog Warden,Street Scene,H23SD000044100,
http://statistics.data.gov.uk/id/local-authority/29UP,Tonbridge & Malling Borough Council,8/9/2023,0022027963/1,22027963, 480.00,Town & Country Housing Group,01385400,,Countywide DFG Project,Private Sector Housing Renewal,C03BD000044031,
http://statistics.data.gov.uk/id/local-authority/29UP,Tonbridge & Malling Borough Council,8/9/2023,0022027966/1,22027966, 381.00,Monitor Pest Control Ltd,01476700,,Other Expenses,Pest Control,H24SE000048010,
http://statistics.data.gov.uk/id/local-authority/29UP,Tonbridge & Malling Borough Council,8/9/2023,0022027967/1,22027967, 15603.93,Urbaser LTD,01718800,,Contract Payments,Refuse Collection,H20SA000054001,
http://statistics.data.gov.uk/id/local-authority/29UP,Tonbridge & Malling Borough Council,8/9/2023,0022027967/2,22027967, 10321.56,Urbaser LTD,01718800,,Contract Payments,Street Scene,H23SD000054001,
http://statistics.data.gov.uk/id/local-authority/29UP,Tonbridge & Malling Borough Council,8/9/2023,0022027967/3,22027967, 978.43,Urbaser LTD,01718800,,Contract Payments,Dry Recycling,H34SR000054001,
http://statistics.data.gov.uk/id/local-authority/29UP,Tonbridge & Malling Borough Council,8/9/2023,0022027967/5,22027967, 14864.33,Urbaser LTD,01718800,,Contract Payments,Garden Waste Recycling,H34ST000054001,
http://statistics.data.gov.uk/id/local-authority/29UP,Tonbridge & Malling Borough Council,8/9/2023,0022027968/1,22027968, 11600.30,Urbaser LTD,01718800,,Contract Payments,Refuse Collection,H20SA000054001,
http://statistics.data.gov.uk/id/local-authority/29UP,Tonbridge & Malling Borough Council,8/9/2023,0022027968/2,22027968, 18018.87,Urbaser LTD,01718800,,Contract Payments,Street Scene,H23SD000054001,
http://statistics.data.gov.uk/id/local-authority/29UP,Tonbridge & Malling Borough Council,8/9/2023,0022027968/3,22027968, 759.71,Urbaser LTD,01718800,,Contract Payments,Dry Recycling,H34SR000054001,
http://statistics.data.gov.uk/id/local-authority/29UP,Tonbridge & Malling Borough Council,8/9/2023,0022027968/5,22027968, 13720.71,Urbaser LTD,01718800,,Contract Payments,Garden Waste Recycling,H34ST000054001,
http://statistics.data.gov.uk/id/local-authority/29UP,Tonbridge & Malling Borough Council,8/9/2023,0022027969/1,22027969, 400.00,Green Recycling LTD,01563000,,General Maintenance,Dry Recycling,H34SR000020301,
http://statistics.data.gov.uk/id/local-authority/29UP,Tonbridge & Malling Borough Council,8/9/2023,0022027970/1,22027970, 800.00,Green Recycling LTD,01563000,,Paper Recycling,Dry Recycling,H34SR000054024,
http://statistics.data.gov.uk/id/local-authority/29UP,Tonbridge & Malling Borough Council,8/9/2023,0022027971/1,22027971, 580.50,Ferret Information Systems,01023100,,Software Hire & Support,Information Technology,D27KD000044059,220003317
http://statistics.data.gov.uk/id/local-authority/29UP,Tonbridge & Malling Borough Council,8/9/2023,0022027972/1,22027972, 490.00,Countrystyle Group,00835900,781981681,Collection of Card,Dry Recycling,H34SR000054008,
http://statistics.data.gov.uk/id/local-authority/29UP,Tonbridge & Malling Borough Council,8/9/2023,0022027973/1,22027973, 42.18,Biffa Waste Services Ltd,01284500,,Trade Refuse Charges,Cleaning & Security,D21FD000044008,
http://statistics.data.gov.uk/id/local-authority/29UP,Tonbridge & Malling Borough Council,8/9/2023,0022027974/1,22027974, 15000.00,Kent County Council,00322500,,Kent Resource Partnership,Dry Recycling,H34SR000048143,220003371
http://statistics.data.gov.uk/id/local-authority/29UP,Tonbridge & Malling Borough Council,8/9/2023,0022027975/1,22027975, 451.17,Urbaser LTD,01718800,,Maintenance of Grounds,Sports Grounds,B13ET000020402,
http://statistics.data.gov.uk/id/local-authority/29UP,Tonbridge & Malling Borough Council,8/9/2023,0022027975/10,22027975, 214.52,Urbaser LTD,01718800,,Maintenance of Grounds,Parking Off-Street,E10HA000020402,
http://statistics.data.gov.uk/id/local-authority/29UP,Tonbridge & Malling Borough Council,8/9/2023,0022027975/11,22027975, 5458.43,Urbaser LTD,01718800,,Maintenance of Grounds,Parking Off-Street,E10HAE00120402,
http://statistics.data.gov.uk/id/local-authority/29UP,Tonbridge & Malling Borough Council,8/9/2023,0022027975/12,22027975, 587.98,Urbaser LTD,01718800,,Maintenance of Grounds,Parking Off-Street,E10HAE00220402,
http://statistics.data.gov.uk/id/local-authority/29UP,Tonbridge & Malling Borough Council,8/9/2023,0022027975/13,22027975, 367.83,Urbaser LTD,01718800,,Maintenance of Grounds,Parking Off-Street,E10HAE00320402,
http://statistics.data.gov.uk/id/local-authority/29UP,Tonbridge & Malling Borough Council,8/9/2023,0022027975/14,22027975, 1923.76,Urbaser LTD,01718800,,Maintenance of Grounds,Parking Off-Street,E10HAE00420402,
http://statistics.data.gov.uk/id/local-authority/29UP,Tonbridge & Malling Borough Council,8/9/2023,0022027975/15,22027975, 319.68,Urbaser LTD,01718800,,Maintenance of Grounds,Parking Off-Street,E10HAE00520402,
http://statistics.data.gov.uk/id/local-authority/29UP,Tonbridge & Malling Borough Council,8/9/2023,0022027975/16,22027975, 1192.31,Urbaser LTD,01718800,,Maintenance of Grounds,Parking Off-Street,E10HAE00620402,
http://statistics.data.gov.uk/id/local-authority/29UP,Tonbridge & Malling Borough Council,8/9/2023,0022027975/17,22027975, 10.05,Urbaser LTD,01718800,,Maintenance of Grounds,Parking Off-Street,E10HAE00820402,
http://statistics.data.gov.uk/id/local-authority/29UP,Tonbridge & Malling Borough Council,8/9/2023,0022027975/18,22027975, 9.92,Urbaser LTD,01718800,,Maintenance of Grounds,Parking Off-Street,E10HAE00920402,
http://statistics.data.gov.uk/id/local-authority/29UP,Tonbridge & Malling Borough Council,8/9/2023,0022027975/19,22027975, 23.56,Urbaser LTD,01718800,,Maintenance of Grounds,Parking Off-Street,E10HAE01020402,
http://statistics.data.gov.uk/id/local-authority/29UP,Tonbridge & Malling Borough Council,8/9/2023,0022027975/2,22027975, 96.02,Urbaser LTD,01718800,,Maintenance of Grounds,Poult Wood Golf Centre,B21KE000020402,
http://statistics.data.gov.uk/id/local-authority/29UP,Tonbridge & Malling Borough Council,8/9/2023,0022027975/20,22027975, 111.95,Urbaser LTD,01718800,,Maintenance of Grounds,Parking Off-Street,E10HAE01120402,
http://statistics.data.gov.uk/id/local-authority/29UP,Tonbridge & Malling Borough Council,8/9/2023,0022027975/21,22027975, 70.44,Urbaser LTD,01718800,,Maintenance of Grounds,Parking Off-Street,E10HAE01220402,
http://statistics.data.gov.uk/id/local-authority/29UP,Tonbridge & Malling Borough Council,8/9/2023,0022027975/22,22027975, 1335.68,Urbaser LTD,01718800,,Maintenance of Grounds,Parking Off-Street,E10HAE01320402,
http://statistics.data.gov.uk/id/local-authority/29UP,Tonbridge & Malling Borough Council,8/9/2023,0022027975/23,22027975, 101.58,Urbaser LTD,01718800,,Maintenance of Grounds,Parking Off-Street,E10HAE01420402,
http://statistics.data.gov.uk/id/local-authority/29UP,Tonbridge & Malling Borough Council,8/9/2023,0022027975/24,22027975, 313.05,Urbaser LTD,01718800,,Maintenance of Grounds,Parking Off-Street,E10HAE01520402,
http://statistics.data.gov.uk/id/local-authority/29UP,Tonbridge & Malling Borough Council,8/9/2023,0022027975/25,22027975, 336.69,Urbaser LTD,01718800,,Maintenance of Grounds,Parking Off-Street,E10HAE01620402,
http://statistics.data.gov.uk/id/local-authority/29UP,Tonbridge & Malling Borough Council,8/9/2023,0022027975/26,22027975, 993.96,Urbaser LTD,01718800,,Maintenance of Grounds,Parking Off-Street,E10HAE01720402,
http://statistics.data.gov.uk/id/local-authority/29UP,Tonbridge & Malling Borough Council,8/9/2023,0022027975/27,22027975, 285.29,Urbaser LTD,01718800,,Maintenance of Grounds,Parking Off-Street,E10HAE01920402,
http://statistics.data.gov.uk/id/local-authority/29UP,Tonbridge & Malling Borough Council,8/9/2023,0022027975/28,22027975, 626.69,Urbaser LTD,01718800,,Maintenance of Grounds,Parking Off-Street,E10HAE02020402,
http://statistics.data.gov.uk/id/local-authority/29UP,Tonbridge & Malling Borough Council,8/9/2023,0022027975/29,22027975, 21.76,Urbaser LTD,01718800,,Maintenance of Grounds,Parking Off-Street,E10HAE02120402,
http://statistics.data.gov.uk/id/local-authority/29UP,Tonbridge & Malling Borough Council,8/9/2023,0022027975/3,22027975, 39.62,Urbaser LTD,01718800,,Maintenance of Grounds,Haysden Country Park,B22LC000020402,
http://statistics.data.gov.uk/id/local-authority/29UP,Tonbridge & Malling Borough Council,8/9/2023,0022027975/30,22027975, 143.26,Urbaser LTD,01718800,,Maintenance of Grounds,Parking Off-Street,E10HAE02220402,
http://statistics.data.gov.uk/id/local-authority/29UP,Tonbridge & Malling Borough Council,8/9/2023,0022027975/31,22027975, 1204.31,Urbaser LTD,01718800,,Maintenance of Grounds,Parking Off-Street,E10HAE02320402,
http://statistics.data.gov.uk/id/local-authority/29UP,Tonbridge & Malling Borough Council,8/9/2023,0022027975/32,22027975, 3.11,Urbaser LTD,01718800,,Maintenance of Grounds,Parking Off-Street,E10HAE02720402,
http://statistics.data.gov.uk/id/local-authority/29UP,Tonbridge & Malling Borough Council,8/9/2023,0022027975/33,22027975, 437.60,Urbaser LTD,01718800,,Maintenance of Grounds,Parking Off-Street,E10HAE02820402,
http://statistics.data.gov.uk/id/local-authority/29UP,Tonbridge & Malling Borough Council,8/9/2023,0022027975/34,22027975, 7.88,Urbaser LTD,01718800,,Maintenance of Grounds,Parking Off-Street,E10HAE02920402,
http://statistics.data.gov.uk/id/local-authority/29UP,Tonbridge & Malling Borough Council,8/9/2023,0022027975/35,22027975, 46.38,Urbaser LTD,01718800,,Maintenance of Grounds,Parking Off-Street,E10HAE03020402,
http://statistics.data.gov.uk/id/local-authority/29UP,Tonbridge & Malling Borough Council,8/9/2023,0022027975/36,22027975, 39.46,Urbaser LTD,01718800,,Maintenance of Grounds,Parking Off-Street,E10HAE03120402,
http://statistics.data.gov.uk/id/local-authority/29UP,Tonbridge & Malling Borough Council,8/9/2023,0022027975/37,22027975, 836.71,Urbaser LTD,01718800,,Maintenance of Grounds,Parking Off-Street,E10HAE04020402,
http://statistics.data.gov.uk/id/local-authority/29UP,Tonbridge & Malling Borough Council,8/9/2023,0022027975/38,22027975, 580.32,Urbaser LTD,01718800,,Maintenance of Grounds,Parking Off-Street,E10HAE04220402,
http://statistics.data.gov.uk/id/local-authority/29UP,Tonbridge & Malling Borough Council,8/9/2023,0022027975/39,22027975, 1665.68,Urbaser LTD,01718800,,Maintenance of Grounds,Parking Off-Street,E10HAE04520402,
http://statistics.data.gov.uk/id/local-authority/29UP,Tonbridge & Malling Borough Council,8/9/2023,0022027975/4,22027975, 30.43,Urbaser LTD,01718800,,Dog Bin Emptying,Haysden Country Park,B22LC000044012,
http://statistics.data.gov.uk/id/local-authority/29UP,Tonbridge & Malling Borough Council,8/9/2023,0022027975/40,22027975, 107939.06,Urbaser LTD,01718800,,Contract Payments,Refuse Collection,H20SA000054001,
http://statistics.data.gov.uk/id/local-authority/29UP,Tonbridge & Malling Borough Council,8/9/2023,0022027975/41,22027975, 1101.97,Urbaser LTD,01718800,,Responsible Dog Ownership,Street Scene,H23SD000044050,
http://statistics.data.gov.uk/id/local-authority/29UP,Tonbridge & Malling Borough Council,8/9/2023,0022027975/42,22027975, 65916.68,Urbaser LTD,01718800,,Contract Payments,Street Scene,H23SD000054001,
http://statistics.data.gov.uk/id/local-authority/29UP,Tonbridge & Malling Borough Council,8/9/2023,0022027975/43,22027975, 414.98,Urbaser LTD,01718800,,General Maintenance,Dry Recycling,H34SR000020301,
http://statistics.data.gov.uk/id/local-authority/29UP,Tonbridge & Malling Borough Council,8/9/2023,0022027975/44,22027975, 98065.11,Urbaser LTD,01718800,,Contract Payments,Dry Recycling,H34SR000054001,
http://statistics.data.gov.uk/id/local-authority/29UP,Tonbridge & Malling Borough Council,8/9/2023,0022027975/45,22027975, 38371.84,Urbaser LTD,01718800,,Contract Payments,Food Recycling,H34SS000054001,
http://statistics.data.gov.uk/id/local-authority/29UP,Tonbridge & Malling Borough Council,8/9/2023,0022027975/46,22027975, 20834.10,Urbaser LTD,01718800,,Contract Payments,Garden Waste Recycling,H34ST000054001,
http://statistics.data.gov.uk/id/local-authority/29UP,Tonbridge & Malling Borough Council,8/9/2023,0022027975/5,22027975, 862.61,Urbaser LTD,01718800,,Maintenance of Grounds,Open Spaces & Amenity Areas,B22LE000020402,
http://statistics.data.gov.uk/id/local-authority/29UP,Tonbridge & Malling Borough Council,8/9/2023,0022027975/6,22027975, 16.22,Urbaser LTD,01718800,,Dog Bin Emptying,Open Spaces & Amenity Areas,B22LE000044012,
http://statistics.data.gov.uk/id/local-authority/29UP,Tonbridge & Malling Borough Council,8/9/2023,0022027975/7,22027975, 28.00,Urbaser LTD,01718800,,Maintenance of Grounds,Countryside/Woodland Mgt,B22LG000020402,
http://statistics.data.gov.uk/id/local-authority/29UP,Tonbridge & Malling Borough Council,8/9/2023,0022027975/8,22027975, 30.43,Urbaser LTD,01718800,,Dog Bin Emptying,Leybourne Lakes Country Park,B22LK000044012,
http://statistics.data.gov.uk/id/local-authority/29UP,Tonbridge & Malling Borough Council,8/9/2023,0022027975/9,22027975, 70.14,Urbaser LTD,01718800,,Maintenance of Grounds,Grounds,D21FF000020402,
http://statistics.data.gov.uk/id/local-authority/29UP,Tonbridge & Malling Borough Council,8/9/2023,0022027976/1,22027976, 242.36,Posturite UK Ltd,00970300,,Health General,St Scene & Leis Sals&Overheads,D01AGDG3044049,220003368
http://statistics.data.gov.uk/id/local-authority/29UP,Tonbridge & Malling Borough Council,8/9/2023,0022027976/2,22027976, 25.95,Posturite UK Ltd,00970300,,Health General,St Scene & Leis Sals&Overheads,D01AGDG3044049,220003368
http://statistics.data.gov.uk/id/local-authority/29UP,Tonbridge & Malling Borough Council,8/9/2023,0022027977/1,22027977, 1064.80,Maidstone Borough Council,01173700,,Council Tax,Homelessness,C01AAMAUN23002,
http://statistics.data.gov.uk/id/local-authority/29UP,Tonbridge & Malling Borough Council,8/9/2023,0022027978/1,22027978, 1084.37,Maidstone Borough Council,01173700,,Council Tax,Homelessness,C01AAMAUN23002,
http://statistics.data.gov.uk/id/local-authority/29UP,Tonbridge & Malling Borough Council,8/9/2023,0022027979/1,22027979, 79.61,E.ON - Next,01790900,,Electricity,Homelessness,C01AATNPR21002,
http://statistics.data.gov.uk/id/local-authority/29UP,Tonbridge & Malling Borough Council,8/9/2023,0022027980/1,22027980, 1638.72,REDACTED PERSONAL DATA,01766200,,Temporary Accommodation,Homelessness,C01AASYRI44051,
http://statistics.data.gov.uk/id/local-authority/29UP,Tonbridge & Malling Borough Council,8/9/2023,0022027980/2,22027980, 1638.72,REDACTED PERSONAL DATA,01766200,,Temporary Accommodation,Homelessness,C01AASYRI44051,
http://statistics.data.gov.uk/id/local-authority/29UP,Tonbridge & Malling Borough Council,8/9/2023,0022027981/1,22027981, 245.00,Countrystyle Group,00835900,781981681,Collection of Card,Dry Recycling,H34SR000054008,
http://statistics.data.gov.uk/id/local-authority/29UP,Tonbridge & Malling Borough Council,8/9/2023,0022027982/1,22027982, 568.00,Britains Limited,01743900,,Repairs & Mtce to Buildings,Homelessness,C01AATNPR20101,220003375
http://statistics.data.gov.uk/id/local-authority/29UP,Tonbridge & Malling Borough Council,8/9/2023,0022027983/1,22027983, 5437.66,Willow Tree Home Solutions LTD,01579200,,Other Expenses,Disabled Facilities Grant Mand,P03AC000009908,
http://statistics.data.gov.uk/id/local-authority/29UP,Tonbridge & Malling Borough Council,8/9/2023,0022027984/1,22027984, 1669.82,Town & Country Housing Group,01385400,,Other Expenses,Disabled Facilities Grant Mand,P03AC000009908,
http://statistics.data.gov.uk/id/local-authority/29UP,Tonbridge & Malling Borough Council,8/9/2023,0022027985/1,22027985, 2719.00,Ascendit Lifts Ltd,00446600,,Other Expenses,Disabled Facilities Grant Mand,P03AC000009908,
http://statistics.data.gov.uk/id/local-authority/29UP,Tonbridge & Malling Borough Council,8/9/2023,0022027986/1,22027986, 4525.00,Access & Automation Ltd,01773400,,Other Expenses,Disabled Facilities Grant Mand,P03AC000009908,
http://statistics.data.gov.uk/id/local-authority/29UP,Tonbridge & Malling Borough Council,8/9/2023,0031019633/1,31019633, 1086.70,Patrol,01189800,,Adjudication & Enforcement Ser,Parking Off-Street,E10HA000044230,
http://statistics.data.gov.uk/id/local-authority/29UP,Tonbridge & Malling Borough Council,8/9/2023,0031019634/1,31019634, 6528.00,Flowbird Smart City UK Limited,00898700,,Maintenance - General,Parking Off-Street,E10HA000040135,310043107
http://statistics.data.gov.uk/id/local-authority/29UP,Tonbridge & Malling Borough Council,8/9/2023,0031019634/2,31019634, 204.00,Flowbird Smart City UK Limited,00898700,,Maintenance - General,Parking Off-Street,E10HA000040135,310043107
http://statistics.data.gov.uk/id/local-authority/29UP,Tonbridge & Malling Borough Council,8/9/2023,0031019634/3,31019634, 1632.00,Flowbird Smart City UK Limited,00898700,,Maintenance - General,Parking On-Street,E10HD000040135,310043107
http://statistics.data.gov.uk/id/local-authority/29UP,Tonbridge & Malling Borough Council,8/9/2023,0031019635/3,31019635, 2849.00,Tonbridge & Malling Leisure Trust,01469100,,Ticket Refunds - Lower Castle,Parking Off-Street,E10HAE01344199,
http://statistics.data.gov.uk/id/local-authority/29UP,Tonbridge & Malling Borough Council,8/9/2023,0031019637/1,31019637, 804.00,SKF Contractors Ltd,00092000,621768141,Transport Repair & Maintenance,Parking On-Street,E10HD000030103,310043100
http://statistics.data.gov.uk/id/local-authority/29UP,Tonbridge & Malling Borough Council,8/9/2023,0031019638/1,31019638, 804.00,SKF Contractors Ltd,00092000,621768141,Transport Repair & Maintenance,Parking On-Street,E10HD000030103,310043099
http://statistics.data.gov.uk/id/local-authority/29UP,Tonbridge & Malling Borough Council,8/9/2023,0031019639/1,31019639, 1899.44,Royal British Legion Industries Ltd,00139700,,Car Parking Action Plan,Parking On-Street,E10HD000020801,310043015
http://statistics.data.gov.uk/id/local-authority/29UP,Tonbridge & Malling Borough Council,8/9/2023,0031019642/1,31019642, 546.50,SKF Contractors Ltd,00092000,621768141,Repair & Mtce of Fixed Plant,Boro Highways & Emergency Oper,E01AA000020501,310043102
http://statistics.data.gov.uk/id/local-authority/29UP,Tonbridge & Malling Borough Council,8/9/2023,0031019643/1,31019643, 3112.25,Electrical Testing Ltd,01608600,525267349,Premises Repairs & Maintenance,Parking Off-Street,E10HA000020601,310043056
http://statistics.data.gov.uk/id/local-authority/29UP,Tonbridge & Malling Borough Council,8/9/2023,0031019643/2,31019643, 472.00,Electrical Testing Ltd,01608600,525267349,BRREP Servicing-CarParkLightg,Larkfield Leisure Centre,M15HDP20001944,310043056
http://statistics.data.gov.uk/id/local-authority/29UP,Tonbridge & Malling Borough Council,8/9/2023,0031019643/3,31019643, 88.50,Electrical Testing Ltd,01608600,525267349,BRREP Car Park mntce,Leis Man Poult Wood Golf Centr,M15HEP20001953,310043056
http://statistics.data.gov.uk/id/local-authority/29UP,Tonbridge & Malling Borough Council,8/9/2023,0031019643/4,31019643, 130.50,Electrical Testing Ltd,01608600,525267349,BRREP Servicing - ext lighting,Kings Hill Offices - Ext Areas,M15KAP20001941,310043056
http://statistics.data.gov.uk/id/local-authority/29UP,Tonbridge & Malling Borough Council,8/9/2023,0031019643/5,31019643, 88.50,Electrical Testing Ltd,01608600,525267349,BRREP Servicing - ext lighting,Tonbridge Castle / CAB,M15KFP20001941,310043056
http://statistics.data.gov.uk/id/local-authority/29UP,Tonbridge & Malling Borough Council,8/9/2023,0031019644/1,31019644, 211.25,Archway Highway Services Ltd,01398000,,Premises Repairs & Maintenance,Parking On-Street,E10HD000020601,310043091
http://statistics.data.gov.uk/id/local-authority/29UP,Tonbridge & Malling Borough Council,8/9/2023,0031019644/2,31019644, 710.00,Archway Highway Services Ltd,01398000,,Premises Repairs & Maintenance,Parking On-Street,E10HD000020601,310043091
http://statistics.data.gov.uk/id/local-authority/29UP,Tonbridge & Malling Borough Council,8/9/2023,0031019645/1,31019645, 710.00,Archway Highway Services Ltd,01398000,,Premises Repairs & Maintenance,Parking On-Street,E10HD000020601,310043092
http://statistics.data.gov.uk/id/local-authority/29UP,Tonbridge & Malling Borough Council,8/9/2023,0031019645/2,31019645, 325.00,Archway Highway Services Ltd,01398000,,Premises Repairs & Maintenance,Parking On-Street,E10HD000020601,310043092
http://statistics.data.gov.uk/id/local-authority/29UP,Tonbridge & Malling Borough Council,8/9/2023,0031019646/1,31019646, 7075.64,Amey LG LTD/ (Enterprise AOL) Ltd,01324000,,Car Parking Action Plan,Parking On-Street,E10HD000020801,310043010
http://statistics.data.gov.uk/id/local-authority/29UP,Tonbridge & Malling Borough Council,8/9/2023,0032010366/1,32010366, 8844.00,Ove Arup & Partners Ltd,01864300,524461265,Development of Local Plan,Development of Local Plan,A01AE000044023,320003511
http://statistics.data.gov.uk/id/local-authority/29UP,Tonbridge & Malling Borough Council,8/9/2023,0032010367/1,32010367, 99.99,B&Q/Screwfix Direct(TradeUKAccount),00141300,,Protective Clothing,Planning Sals&Overheads,D01AJDJ0242001,
http://statistics.data.gov.uk/id/local-authority/29UP,Tonbridge & Malling Borough Council,8/9/2023,0032010368/1,32010368, 2166.00,Vivid Resourcing,01773700,,Temporary Staff,Planning Sals&Overheads,D01AJDJ0111300,
http://statistics.data.gov.uk/id/local-authority/29UP,Tonbridge & Malling Borough Council,8/9/2023,0032010369/1,32010369, 2499.52,Tetlow King Planning Ltd,01290900,,Application & Appeals,Development Management,A01AB000044194,
http://statistics.data.gov.uk/id/local-authority/29UP,Tonbridge & Malling Borough Council,8/9/2023,0032010370/1,32010370, 1759.99,The Oyster Partnership,01196400,,Temporary Staff,Planning Sals&Overheads,D01AJDJ0111300,
http://statistics.data.gov.uk/id/local-authority/29UP,Tonbridge & Malling Borough Council,8/9/2023,0032010371/1,32010371, 1722.00,The Oyster Partnership,01196400,,Temporary Staff,Planning Sals&Overheads,D01AJDJ0111300,
http://statistics.data.gov.uk/id/local-authority/29UP,Tonbridge & Malling Borough Council,8/9/2023,0032010372/1,32010372, 2250.00,G2 Recruitment Solutions,01786000,,Temporary Staff,Planning Sals&Overheads,D01AJDJ0011300,
http://statistics.data.gov.uk/id/local-authority/29UP,Tonbridge & Malling Borough Council,8/9/2023,0032010373/1,32010373, 1850.00,G2 Recruitment Solutions,01786000,,Temporary Staff,Planning Sals&Overheads,D01AJDJ0011300,
http://statistics.data.gov.uk/id/local-authority/29UP,Tonbridge & Malling Borough Council,8/9/2023,0032010374/1,32010374, 15855.72,Hadlow Parish Council,00041400,,Payments,S106 - Commuted Sums,M04AD000001001,
http://statistics.data.gov.uk/id/local-authority/29UP,Tonbridge & Malling Borough Council,8/9/2023,0032010375/1,32010375, 2177.50,Hays Specialist Recruitment Limited,01879200,773695871,Temporary Staff,Planning Sals&Overheads,D01AJDJ0111300,
http://statistics.data.gov.uk/id/local-authority/29UP,Tonbridge & Malling Borough Council,8/9/2023,0041035737/1,41035737, 20000.00,Policy in Practice Ltd,01787200,,Charitable / Voluntary Organis,Grants & Payments to Vol Orgn,D37PACV1947005,
http://statistics.data.gov.uk/id/local-authority/29UP,Tonbridge & Malling Borough Council,8/9/2023,0041035740/3,41035740, 114.45,Adelante Software Limited,01393800,812115871,Credit Card Commission,Banking Arrangements,D43QK000044082,
http://statistics.data.gov.uk/id/local-authority/29UP,Tonbridge & Malling Borough Council,8/9/2023,0041035741/3,41035741, 1051.92,Morgan Hunt UK Ltd,01086900,,Temporary Staff,Finance Sals&Overheads,D01AFDF1111300,
http://statistics.data.gov.uk/id/local-authority/29UP,Tonbridge & Malling Borough Council,8/9/2023,0041035742/1,41035742, 47.98,KCS Education/CSG Global Education Ltd,01897200,408845925,Stationery,Finance Sals&Overheads,D01AF000043003,410032382
http://statistics.data.gov.uk/id/local-authority/29UP,Tonbridge & Malling Borough Council,8/9/2023,0041035743/3,41035743, 949.00,Rundle & Co Ltd,00087200,,Bailiffs Commission,Local Revenue & NNDR Collect,D41QA000044075,
http://statistics.data.gov.uk/id/local-authority/29UP,Tonbridge & Malling Borough Council,8/9/2023,0041035744/3,41035744, 1995.01,Rundle & Co Ltd,00087200,,Bailiffs Commission,Local Revenue & NNDR Collect,D41QA000044075,
http://statistics.data.gov.uk/id/local-authority/29UP,Tonbridge & Malling Borough Council,8/9/2023,0041035751/1,41035751, 1470.26,NTT Cloud Communications UK Ltd,01794600,,Software Hire & Support,Information Technology,D27KD000044059,
http://statistics.data.gov.uk/id/local-authority/29UP,Tonbridge & Malling Borough Council,8/9/2023,0041035752/1,41035752, 41611.00,REDACTED PERSONAL DATA,01206000,,Charitable / Voluntary Organis,Grants & Payments to Vol Orgn,D37PACV1947005,
http://statistics.data.gov.uk/id/local-authority/29UP,Tonbridge & Malling Borough Council,8/9/2023,0041035764/1,41035764, 317.65,Maidstone Borough Council,01173700,,Bailiffs Commission,Local Revenue & NNDR Collect,D41QA000044075,
http://statistics.data.gov.uk/id/local-authority/29UP,Tonbridge & Malling Borough Council,8/9/2023,0041035765/1,41035765, 3401.99,Maidstone Borough Council,01173700,,Bailiffs Commission,Local Revenue & NNDR Collect,D41QA000044075,
http://statistics.data.gov.uk/id/local-authority/29UP,Tonbridge & Malling Borough Council,8/9/2023,0051008825/1,51008825, 180.00,Hoey Ainscough Associates Ltd,01473400,,Ext Fees/Prof & Tech,Training,D10DCDA0013561,510010630
http://statistics.data.gov.uk/id/local-authority/29UP,Tonbridge & Malling Borough Council,8/9/2023,0051008832/1,51008832, 399.00,Hiring People (Ptnrs of Research Ltd),01876600,161643812,Recruitment Advertising,Recruitment Expenses,D10DA000013110,510010636
http://statistics.data.gov.uk/id/local-authority/29UP,Tonbridge & Malling Borough Council,8/9/2023,0051008834/1,51008834, 425.00,Crosslight Advice,01911400,,Ext Fees/Prof & Tech,Training,D10DCDV0713561,
http://statistics.data.gov.uk/id/local-authority/29UP,Tonbridge & Malling Borough Council,8/16/2023,0011046661/1,11046661, 4260.00,Daniel Michael Services Limited,01895100,403826317,BRREP Response - General,Shops & Maisonettes,M15NAP50001997,110070148
http://statistics.data.gov.uk/id/local-authority/29UP,Tonbridge & Malling Borough Council,8/16/2023,0011046694/3,11046694, 19.00,REDACTED PERSONAL DATA,01683000,,Castle Catering Provisions,Ton Castle Council Chamber,D21FC000041015,
http://statistics.data.gov.uk/id/local-authority/29UP,Tonbridge & Malling Borough Council,8/16/2023,0011046695/3,11046695, 1059.79,Premier Paper Group,01421800,,Purchases - Paper,Printing,D22GA000040102,
http://statistics.data.gov.uk/id/local-authority/29UP,Tonbridge & Malling Borough Council,8/16/2023,0011046696/3,11046696, 1713.13,Ricoh UK Ltd,01402300,,Maintenance - General,Printing,D22GA000040135,
http://statistics.data.gov.uk/id/local-authority/29UP,Tonbridge & Malling Borough Council,8/16/2023,0011046697/3,11046697, 458.69,Ricoh UK Ltd,01402300,,Maintenance - General,Printing,D22GA000040135,
http://statistics.data.gov.uk/id/local-authority/29UP,Tonbridge & Malling Borough Council,8/16/2023,0011046698/3,11046698, 188.50,Guardian Security & Fire Ltd,01899300,,BRREP Servicing - FireAlarmSys,Larkfield Leisure Centre,M15HDP20001937,
http://statistics.data.gov.uk/id/local-authority/29UP,Tonbridge & Malling Borough Council,8/16/2023,0011046699/3,11046699, 175.00,Guardian Security & Fire Ltd,01899300,,BRREP Servicing - FireAlarmSys,Leis Man Poult Wood Golf Centr,M15HEP20001937,
http://statistics.data.gov.uk/id/local-authority/29UP,Tonbridge & Malling Borough Council,8/16/2023,0011046700/1,11046700, 80.00,Maidstone Borough Council,01453900,,Hospitality,Mayoral & Other Member Support,D29LX000048003,
http://statistics.data.gov.uk/id/local-authority/29UP,Tonbridge & Malling Borough Council,8/16/2023,0011046701/1,11046701, 46.00,Sevenoaks District Council,01252500,,Hospitality,Mayoral & Other Member Support,D29LX000048003,
http://statistics.data.gov.uk/id/local-authority/29UP,Tonbridge & Malling Borough Council,8/16/2023,0011046702/1,11046702, 1975.20,Capital Space Limited,01523100,,Contract Payments,UK Shared Prosperity Fund,P06FNFN6009904,
http://statistics.data.gov.uk/id/local-authority/29UP,Tonbridge & Malling Borough Council,8/16/2023,0011046703/1,11046703, 1110.00,Franks Restaurant,01637000,,Contract Payments,UK Shared Prosperity Fund,P06FNFN4009904,
http://statistics.data.gov.uk/id/local-authority/29UP,Tonbridge & Malling Borough Council,8/16/2023,0011046704/3,11046704, 589.41,KH Recruitment Ltd,01738900,,Temporary Staff,Personnel Sals&Overheads,D01ABDB0311300,
http://statistics.data.gov.uk/id/local-authority/29UP,Tonbridge & Malling Borough Council,8/16/2023,0011046705/3,11046705, 2029.05,TMS Protection Ltd,01744300,,Office Security,Ton Castle Council Chamber,D21FC000044047,
http://statistics.data.gov.uk/id/local-authority/29UP,Tonbridge & Malling Borough Council,8/16/2023,0011046705/4,11046705, 3146.85,TMS Protection Ltd,01744300,,Office Security,Tonbridge Gateway,D23TG000044047,
http://statistics.data.gov.uk/id/local-authority/29UP,Tonbridge & Malling Borough Council,8/16/2023,0011046706/1,11046706, 5000.00,Spa Caffe Ltd T/A Teal Caf�,01911700,,Contract Payments,UK Shared Prosperity Fund,P06FNFN6009904,
http://statistics.data.gov.uk/id/local-authority/29UP,Tonbridge & Malling Borough Council,8/16/2023,0011046708/1,11046708, 480.00,G C Industrial Heating Services,00578100,,BRREP Response - General,Leybourne Lakes Country Park,M15HLP50001997,110070353
http://statistics.data.gov.uk/id/local-authority/29UP,Tonbridge & Malling Borough Council,8/16/2023,0011046709/1,11046709, 2000.00,BML Building Services Ltd,01505000,,BRREP Window/door repairs,Larkfield Leisure Centre,M15HDP20001919,110070373
http://statistics.data.gov.uk/id/local-authority/29UP,Tonbridge & Malling Borough Council,8/16/2023,0011046710/1,11046710, 990.00,Learnd UK,01226700,,BRREP BMS System Mntce/Upgrade,Tonbridge Swimming Pool,M15HBP20001912,
http://statistics.data.gov.uk/id/local-authority/29UP,Tonbridge & Malling Borough Council,8/16/2023,0011046712/1,11046712, 525.79,Chubb Fire & Security Ltd,00115400,174605362,BRREP Servicing-IntruderAlarm,Larkfield Leisure Centre,M15HDP20001939,110070395
http://statistics.data.gov.uk/id/local-authority/29UP,Tonbridge & Malling Borough Council,8/16/2023,0011046713/1,11046713, 10000.00,Sevenoaks District Council,00089300,,Business Growth Programme,Eco Dev & Reg Gen Bus Support,D52TD000048026,110070199
http://statistics.data.gov.uk/id/local-authority/29UP,Tonbridge & Malling Borough Council,8/16/2023,0011046713/2,11046713, 3000.00,Sevenoaks District Council,00089300,,Economic Development Expenses,Eco Dev & Reg Gen Bus Support,D52TD000048050,110070199
http://statistics.data.gov.uk/id/local-authority/29UP,Tonbridge & Malling Borough Council,8/16/2023,0011046714/1,11046714, 680.00,Pillory Barn Design Studios,01898100,619155927,Marketing,Information & Publicity,D32MJ000044215,110070196
http://statistics.data.gov.uk/id/local-authority/29UP,Tonbridge & Malling Borough Council,8/16/2023,0011046714/2,11046714, 476.00,Pillory Barn Design Studios,01898100,619155927,Marketing,Information & Publicity,D32MJ000044215,110070196
http://statistics.data.gov.uk/id/local-authority/29UP,Tonbridge & Malling Borough Council,8/16/2023,0011046716/1,11046716, 1777.46,Brian Ladies and Gentleman Hairdresser,01911900,,Contract Payments,UK Shared Prosperity Fund,P06FNFN4009904,
http://statistics.data.gov.uk/id/local-authority/29UP,Tonbridge & Malling Borough Council,8/16/2023,0011046717/1,11046717, 1306.00,Heritage Unlimited,01900600,,Professional Fees,Tonbridge Castle Gatehouse,B40TG000044001,110070250
http://statistics.data.gov.uk/id/local-authority/29UP,Tonbridge & Malling Borough Council,8/16/2023,0011046718/1,11046718, 589.41,KH Recruitment Ltd,01738900,,Temporary Staff,Personnel Sals&Overheads,D01ABDB0311300,
http://statistics.data.gov.uk/id/local-authority/29UP,Tonbridge & Malling Borough Council,8/16/2023,0011046718/2,11046718, 589.41,KH Recruitment Ltd,01738900,,Temporary Staff,Personnel Sals&Overheads,D01ABDB0311300,
http://statistics.data.gov.uk/id/local-authority/29UP,Tonbridge & Malling Borough Council,8/16/2023,0012008770/1,12008770, 20000.00,Kent County Council,00167000,,Kent Connects,Information Technology,D27KD000044057,410032433
http://statistics.data.gov.uk/id/local-authority/29UP,Tonbridge & Malling Borough Council,8/16/2023,0012008806/1,12008806, 6600.00,KHIPU Networks Limited,01191500,866341116,Consultancy Fees,Information Technology,D27KD000044011,410032451
http://statistics.data.gov.uk/id/local-authority/29UP,Tonbridge & Malling Borough Council,8/16/2023,0012008806/2,12008806, 45896.28,KHIPU Networks Limited,01191500,866341116,Software Hire & Support,Information Technology,D27KD000044059,410032451
http://statistics.data.gov.uk/id/local-authority/29UP,Tonbridge & Malling Borough Council,8/16/2023,0012008806/3,12008806, 20818.49,KHIPU Networks Limited,01191500,866341116,Initial Furniture & Equipment,Capital Renewals IT,P06FB000009906,410032451
http://statistics.data.gov.uk/id/local-authority/29UP,Tonbridge & Malling Borough Council,8/16/2023,0012008806/4,12008806, 11635.25,KHIPU Networks Limited,01191500,866341116,Initial Furniture & Equipment,Capital Renewals IT,P06FBFB3009906,410032451
http://statistics.data.gov.uk/id/local-authority/29UP,Tonbridge & Malling Borough Council,8/16/2023,0012008806/5,12008806, 6090.42,KHIPU Networks Limited,01191500,866341116,Initial Furniture & Equipment,Capital Renewals IT,P06FBFB3009906,410032451
http://statistics.data.gov.uk/id/local-authority/29UP,Tonbridge & Malling Borough Council,8/16/2023,0012008807/1,12008807, 1219.28,NEC Software Solutions UK Ltd,01073900,202159745,Software Hire & Support,Information Technology,D27KD000044059,410032425
http://statistics.data.gov.uk/id/local-authority/29UP,Tonbridge & Malling Borough Council,8/16/2023,0012008808/1,12008808, 68.95,3C Technology Limited,00997700,,Purchases,Information Technology,D27KD000040101,410032454
http://statistics.data.gov.uk/id/local-authority/29UP,Tonbridge & Malling Borough Council,8/16/2023,0012008809/1,12008809, 35.99,CCS Media Ltd,00018000,,Maintenance - General,Parking Off-Street,E10HA000040135,410032456
http://statistics.data.gov.uk/id/local-authority/29UP,Tonbridge & Malling Borough Council,8/16/2023,0012008809/2,12008809, 2.00,CCS Media Ltd,00018000,,Maintenance - General,Parking On-Street,E10HD000040135,410032456
http://statistics.data.gov.uk/id/local-authority/29UP,Tonbridge & Malling Borough Council,8/16/2023,0012008809/3,12008809, 53.98,CCS Media Ltd,00018000,,Maintenance - General,Parking On-Street,E10HD000040135,410032456
http://statistics.data.gov.uk/id/local-authority/29UP,Tonbridge & Malling Borough Council,8/16/2023,0012008810/1,12008810, 6.00,KCS - KCC,00054200,,Copy Charges,Multi Function Devices,D22GB000040125,
http://statistics.data.gov.uk/id/local-authority/29UP,Tonbridge & Malling Borough Council,8/16/2023,0012008810/2,12008810, 71.43,KCS - KCC,00054200,,Leasing Charges,Multi Function Devices,D22GB000044038,
http://statistics.data.gov.uk/id/local-authority/29UP,Tonbridge & Malling Borough Council,8/16/2023,0012008811/1,12008811, 13.64,KCS - KCC,00054200,,Copy Charges,Multi Function Devices,D22GB000040125,
http://statistics.data.gov.uk/id/local-authority/29UP,Tonbridge & Malling Borough Council,8/16/2023,0012008811/2,12008811, 76.10,KCS - KCC,00054200,,Leasing Charges,Multi Function Devices,D22GB000044038,
http://statistics.data.gov.uk/id/local-authority/29UP,Tonbridge & Malling Borough Council,8/16/2023,0021038717/1,21038717, 275.00,SWS Countryside & Landscape,01567200,,Health & Safety - Trees,Countryside/Woodland Mgt,B22LG000044045,210057330
http://statistics.data.gov.uk/id/local-authority/29UP,Tonbridge & Malling Borough Council,8/16/2023,0021038718/1,21038718, 350.00,SWS Countryside & Landscape,01567200,,Maintenance of Grounds,Open Spaces & Amenity Areas,B22LE000020402,210057307
http://statistics.data.gov.uk/id/local-authority/29UP,Tonbridge & Malling Borough Council,8/16/2023,0021038719/1,21038719, 650.00,SWS Countryside & Landscape,01567200,,Health & Safety - Trees,Countryside/Woodland Mgt,B22LG000044045,210057276
http://statistics.data.gov.uk/id/local-authority/29UP,Tonbridge & Malling Borough Council,8/16/2023,0021038720/1,21038720, 600.00,SWS Countryside & Landscape,01567200,,Health & Safety - Trees,Countryside/Woodland Mgt,B22LG000044045,210057227
http://statistics.data.gov.uk/id/local-authority/29UP,Tonbridge & Malling Borough Council,8/16/2023,0021038721/1,21038721, 450.00,SWS Countryside & Landscape,01567200,,Health & Safety - Trees,Countryside/Woodland Mgt,B22LG000044045,210057228
http://statistics.data.gov.uk/id/local-authority/29UP,Tonbridge & Malling Borough Council,8/16/2023,0021038722/1,21038722, 703.00,Streetmaster (South Wales) Ltd,00222100,,Maintenance of Grounds,Sports Grounds,B13ET000020402,210057246
http://statistics.data.gov.uk/id/local-authority/29UP,Tonbridge & Malling Borough Council,8/16/2023,0021038723/1,21038723, 703.00,Streetmaster (South Wales) Ltd,00222100,,Maintenance of Grounds,Sports Grounds,B13ET000020402,210057279
http://statistics.data.gov.uk/id/local-authority/29UP,Tonbridge & Malling Borough Council,8/16/2023,0021038724/3,21038724, 26.77,B&Q/Screwfix Direct(TradeUKAccount),00141300,,Purchases,Open Spaces & Amenity Areas,B22LE000040101,
http://statistics.data.gov.uk/id/local-authority/29UP,Tonbridge & Malling Borough Council,8/16/2023,0021038725/3,21038725, 1384.00,Monitor Pest Control Ltd,01476700,,Rodent Control,Haysden Country Park,B22LC000044053,
http://statistics.data.gov.uk/id/local-authority/29UP,Tonbridge & Malling Borough Council,8/16/2023,0021038726/3,21038726, 516.00,Monitor Pest Control Ltd,01476700,,Rodent Control,Open Spaces & Amenity Areas,B22LE000044053,
http://statistics.data.gov.uk/id/local-authority/29UP,Tonbridge & Malling Borough Council,8/16/2023,0021038727/1,21038727, 122.03,Lamberhurst Engineering Ltd,01306400,430064050,Purchases,Haysden Country Park,B22LC000040101,210057323
http://statistics.data.gov.uk/id/local-authority/29UP,Tonbridge & Malling Borough Council,8/16/2023,0021038728/1,21038728, 28.50,KCS Education/CSG Global Education Ltd,01897200,408845925,Purchases,Haysden Country Park,B22LC000040101,210057325
http://statistics.data.gov.uk/id/local-authority/29UP,Tonbridge & Malling Borough Council,8/16/2023,0021038728/2,21038728, 10.75,KCS Education/CSG Global Education Ltd,01897200,408845925,Purchases,Haysden Country Park,B22LC000040101,210057325
http://statistics.data.gov.uk/id/local-authority/29UP,Tonbridge & Malling Borough Council,8/16/2023,0021038728/3,21038728, 11.80,KCS Education/CSG Global Education Ltd,01897200,408845925,Purchases,Haysden Country Park,B22LC000040101,210057325
http://statistics.data.gov.uk/id/local-authority/29UP,Tonbridge & Malling Borough Council,8/16/2023,0021038729/3,21038729, 11.25,G.L. & R.G. Bourne,00737500,,Maintenance of Grounds,Haysden Country Park,B22LC000020402,
http://statistics.data.gov.uk/id/local-authority/29UP,Tonbridge & Malling Borough Council,8/16/2023,0021038730/1,21038730, 74.71,G.L. & R.G. Bourne,00737500,,Gates / Security,Haysden Country Park,B22LC000044017,210057185
http://statistics.data.gov.uk/id/local-authority/29UP,Tonbridge & Malling Borough Council,8/16/2023,0021038731/1,21038731, 40.00,G.L. & R.G. Bourne,00737500,,Maintenance of Grounds,Haysden Country Park,B22LC000020402,210057185
http://statistics.data.gov.uk/id/local-authority/29UP,Tonbridge & Malling Borough Council,8/16/2023,0021038732/1,21038732, 544.98,G.L. & R.G. Bourne,00737500,,Gates / Security,Haysden Country Park,B22LC000044017,210057185
http://statistics.data.gov.uk/id/local-authority/29UP,Tonbridge & Malling Borough Council,8/16/2023,0021038733/1,21038733, 21000.00,Automated Limited,00007000,,Initial Furniture & Equipment,Capital Renewals Leisure,P05KGBC0209906,210056945
http://statistics.data.gov.uk/id/local-authority/29UP,Tonbridge & Malling Borough Council,8/16/2023,0021038734/1,21038734, 570.00,Automated Limited,00007000,,Initial Furniture & Equipment,Capital Renewals Leisure,P05KGBC0109906,210057231
http://statistics.data.gov.uk/id/local-authority/29UP,Tonbridge & Malling Borough Council,8/16/2023,0021038735/1,21038735, 956.00,Automated Limited,00007000,,Initial Furniture & Equipment,Capital Renewals Leisure,P05KGBC0409906,210057285
http://statistics.data.gov.uk/id/local-authority/29UP,Tonbridge & Malling Borough Council,8/16/2023,0021038735/2,21038735, 60.00,Automated Limited,00007000,,Initial Furniture & Equipment,Capital Renewals Leisure,P05KGBC0409906,210057285
http://statistics.data.gov.uk/id/local-authority/29UP,Tonbridge & Malling Borough Council,8/16/2023,0021038736/1,21038736, 50.00,Weddle and Co,00714900,,Maintenance of Play Equipment,Open Spaces & Amenity Areas,B22LE000020503,210057329
http://statistics.data.gov.uk/id/local-authority/29UP,Tonbridge & Malling Borough Council,8/16/2023,0021038737/1,21038737, 192.00,Streetmaster (South Wales) Ltd,00222100,,Initial Furniture & Equipment,Capital Renewals Leisure,P05KGBC0509906,210057253
http://statistics.data.gov.uk/id/local-authority/29UP,Tonbridge & Malling Borough Council,8/16/2023,0021038737/2,21038737, 4135.20,Streetmaster (South Wales) Ltd,00222100,,Initial Furniture & Equipment,Capital Renewals Leisure,P05KGBC0509906,210057253
http://statistics.data.gov.uk/id/local-authority/29UP,Tonbridge & Malling Borough Council,8/16/2023,0021038738/1,21038738, 3.00,B&Q/Screwfix Direct(TradeUKAccount),00141300,,Purchases,Open Spaces & Amenity Areas,B22LE000040101,
http://statistics.data.gov.uk/id/local-authority/29UP,Tonbridge & Malling Borough Council,8/16/2023,0021038739/1,21038739, 44.68,B&Q/Screwfix Direct(TradeUKAccount),00141300,,Purchases,Open Spaces & Amenity Areas,B22LE000040101,
http://statistics.data.gov.uk/id/local-authority/29UP,Tonbridge & Malling Borough Council,8/16/2023,0021038740/1,21038740, 425.00,Rob Steele T/A Radii Skatepark Repairs,01683100,,Maintenance of Play Equipment,Open Spaces & Amenity Areas,B22LE000020503,210057289
http://statistics.data.gov.uk/id/local-authority/29UP,Tonbridge & Malling Borough Council,8/16/2023,0021038741/1,21038741, 747.49,Naturescape Wildflowers LLP,01407600,434095696,Initiatives,Climate Change,D47SA000048135,210057311
http://statistics.data.gov.uk/id/local-authority/29UP,Tonbridge & Malling Borough Council,8/16/2023,0021038742/1,21038742, 619.02,KH Recruitment Ltd,01738900,,Temporary Staff,St Scene & Leis Sals&Overheads,D01AGDG0111300,
http://statistics.data.gov.uk/id/local-authority/29UP,Tonbridge & Malling Borough Council,8/16/2023,0021038743/1,21038743, 393.20,KCC - L.A.S.E.R Commercial Services ,00184300,,Electricity,Leybourne Lakes Country Park,B22LK000021002,
http://statistics.data.gov.uk/id/local-authority/29UP,Tonbridge & Malling Borough Council,8/16/2023,0021038744/1,21038744, 422.64,KCC - L.A.S.E.R Commercial Services ,00184300,,Electricity,Leybourne Lakes Country Park,B22LK000021002,
http://statistics.data.gov.uk/id/local-authority/29UP,Tonbridge & Malling Borough Council,8/16/2023,0021038745/1,21038745, 240.10,KCC - L.A.S.E.R Commercial Services ,00184300,,Electricity,Leybourne Lakes Country Park,B22LK000021002,
http://statistics.data.gov.uk/id/local-authority/29UP,Tonbridge & Malling Borough Council,8/16/2023,0021038746/1,21038746, 274.61,KCC - L.A.S.E.R Commercial Services ,00184300,,Electricity,Leybourne Lakes Country Park,B22LK000021002,
http://statistics.data.gov.uk/id/local-authority/29UP,Tonbridge & Malling Borough Council,8/16/2023,0021038747/1,21038747, 118.08,KCC - L.A.S.E.R Commercial Services ,00184300,,Electricity,Leybourne Lakes Country Park,B22LK000021002,
http://statistics.data.gov.uk/id/local-authority/29UP,Tonbridge & Malling Borough Council,8/16/2023,0021038748/1,21038748, 420.75,KCC - L.A.S.E.R Commercial Services ,00184300,,Electricity,Leybourne Lakes Country Park,B22LK000021002,
http://statistics.data.gov.uk/id/local-authority/29UP,Tonbridge & Malling Borough Council,8/16/2023,0021038749/1,21038749, 142.36,KCC - L.A.S.E.R Commercial Services ,00184300,,Electricity,Leybourne Lakes Country Park,B22LK000021002,
http://statistics.data.gov.uk/id/local-authority/29UP,Tonbridge & Malling Borough Council,8/16/2023,0021038750/1,21038750, 362.13,KCC - L.A.S.E.R Commercial Services ,00184300,,Electricity,Leybourne Lakes Country Park,B22LK000021002,
http://statistics.data.gov.uk/id/local-authority/29UP,Tonbridge & Malling Borough Council,8/16/2023,0021038751/1,21038751, 270.93,KCC - L.A.S.E.R Commercial Services ,00184300,,Electricity,Leybourne Lakes Country Park,B22LK000021002,
http://statistics.data.gov.uk/id/local-authority/29UP,Tonbridge & Malling Borough Council,8/16/2023,0021038752/1,21038752, 342.37,KCC - L.A.S.E.R Commercial Services ,00184300,,Electricity,Leybourne Lakes Country Park,B22LK000021002,
http://statistics.data.gov.uk/id/local-authority/29UP,Tonbridge & Malling Borough Council,8/16/2023,0021038764/1,21038764, 2777.50,CJS Plants LTD,01596000,,Purchases,Tonbridge Castle Grounds,B22LB000040101,210057064
http://statistics.data.gov.uk/id/local-authority/29UP,Tonbridge & Malling Borough Council,8/16/2023,0021038765/1,21038765, 685.66,Atlas Facilities Managment Limited ,01075900,,Gates / Security,Patrolling,B22LF000044017,210057188
http://statistics.data.gov.uk/id/local-authority/29UP,Tonbridge & Malling Borough Council,8/16/2023,0022027987/1,22027987, 11100.00,IPL Plastics (UK) Ltd,00709600,,Initial Furniture & Equipment,Green Waste Bin Growth/Replace,P02BC000009906,220003366
http://statistics.data.gov.uk/id/local-authority/29UP,Tonbridge & Malling Borough Council,8/16/2023,0022027988/1,22027988, 5860.34,Clarion Housing Group Ltd,01078200,,Homelessness Reduction Initiat,Homelessness,C01AA000048019,
http://statistics.data.gov.uk/id/local-authority/29UP,Tonbridge & Malling Borough Council,8/16/2023,0022027989/3,22027989, 245.00,Countrystyle Group,00835900,781981681,Collection of Card,Dry Recycling,H34SR000054008,
http://statistics.data.gov.uk/id/local-authority/29UP,Tonbridge & Malling Borough Council,8/16/2023,0022027990/1,22027990, 445.00,Britains Limited,01743900,,Repairs & Mtce to Buildings,Homelessness,C01AATNPR20101,220003379
http://statistics.data.gov.uk/id/local-authority/29UP,Tonbridge & Malling Borough Council,8/16/2023,0022027991/1,22027991, 825.00,Britains Limited,01743900,,Repairs & Mtce to Buildings,Homelessness,C01AATNHS20101,220003377
http://statistics.data.gov.uk/id/local-authority/29UP,Tonbridge & Malling Borough Council,8/16/2023,0022027992/1,22027992, 300.00,Britains Limited,01743900,,Repairs & Mtce to Buildings,Homelessness,C01AATNHS20101,220003380
http://statistics.data.gov.uk/id/local-authority/29UP,Tonbridge & Malling Borough Council,8/16/2023,0022027993/1,22027993, 6991.00,Ascendit Lifts Ltd,00446600,,Other Expenses,Disabled Facilities Grant Mand,P03AC000009908,
http://statistics.data.gov.uk/id/local-authority/29UP,Tonbridge & Malling Borough Council,8/16/2023,0022027994/1,22027994, 1186.22,Town & Country Housing Group,01385400,,Other Expenses,Disabled Facilities Grant Mand,P03AC000009908,
http://statistics.data.gov.uk/id/local-authority/29UP,Tonbridge & Malling Borough Council,8/16/2023,0022027995/1,22027995, 3300.00,Dolphin Stairlifts,00698900,,Other Expenses,Disabled Facilities Grant Mand,P03AC000009908,
http://statistics.data.gov.uk/id/local-authority/29UP,Tonbridge & Malling Borough Council,8/16/2023,0022027996/1,22027996, 140.80,British Gas,01148500,,Electricity,Homelessness,C01AAMAUN21002,
http://statistics.data.gov.uk/id/local-authority/29UP,Tonbridge & Malling Borough Council,8/16/2023,0031019649/1,31019649, 100.20,Flowbird Smart City UK Limited,00898700,,Maintenance - General,Parking Off-Street,E10HA000040135,310043106
http://statistics.data.gov.uk/id/local-authority/29UP,Tonbridge & Malling Borough Council,8/16/2023,0031019649/2,31019649, 9.00,Flowbird Smart City UK Limited,00898700,,Maintenance - General,Parking Off-Street,E10HA000040135,310043106
http://statistics.data.gov.uk/id/local-authority/29UP,Tonbridge & Malling Borough Council,8/16/2023,0031019649/3,31019649, 66.80,Flowbird Smart City UK Limited,00898700,,Maintenance - General,Parking On-Street,E10HD000040135,310043106
http://statistics.data.gov.uk/id/local-authority/29UP,Tonbridge & Malling Borough Council,8/16/2023,0031019649/4,31019649, 6.00,Flowbird Smart City UK Limited,00898700,,Maintenance - General,Parking On-Street,E10HD000040135,310043106
http://statistics.data.gov.uk/id/local-authority/29UP,Tonbridge & Malling Borough Council,8/16/2023,0031019650/1,31019650, 499.06,Royal British Legion Industries Ltd,00139700,,Premises Repairs & Maintenance,Parking On-Street,E10HD000020601,310043103
http://statistics.data.gov.uk/id/local-authority/29UP,Tonbridge & Malling Borough Council,8/16/2023,0031019651/1,31019651, 1050.24,SKF Contractors Ltd,00092000,621768141,Premises Repairs & Maintenance,Parking On-Street,E10HD000020601,310043104
http://statistics.data.gov.uk/id/local-authority/29UP,Tonbridge & Malling Borough Council,8/16/2023,0031019655/3,31019655, 2741.37,CDER Group,01773300,,Adjudication & Enforcement Ser,Parking Off-Street,E10HA000044230,
http://statistics.data.gov.uk/id/local-authority/29UP,Tonbridge & Malling Borough Council,8/16/2023,0031019656/1,31019656, 435.78,Royal British Legion Industries Ltd,00139700,,Premises Repairs & Maintenance,Parking On-Street,E10HD000020601,310043111
http://statistics.data.gov.uk/id/local-authority/29UP,Tonbridge & Malling Borough Council,8/16/2023,0031019657/1,31019657, 9269.00,Keyline Northfleet,01853600,,Other Expenses,Car Park Imp Rolling Programme,P01AB000009908,310043101
http://statistics.data.gov.uk/id/local-authority/29UP,Tonbridge & Malling Borough Council,8/16/2023,0032010378/1,32010378, 200.00,P K Saunders Electrical Ltd,01900800,,Competent Persons Schemes,Building Control,A01AD000048116,
http://statistics.data.gov.uk/id/local-authority/29UP,Tonbridge & Malling Borough Council,8/16/2023,0032010379/1,32010379, 2.92,KCS Education/CSG Global Education Ltd,01897200,408845925,Stationery,Planning Sals&Overheads,D01AJDJ0143003,320003537
http://statistics.data.gov.uk/id/local-authority/29UP,Tonbridge & Malling Borough Council,8/16/2023,0032010379/2,32010379, 11.99,KCS Education/CSG Global Education Ltd,01897200,408845925,Stationery,Planning Sals&Overheads,D01AJDJ0143003,320003537
http://statistics.data.gov.uk/id/local-authority/29UP,Tonbridge & Malling Borough Council,8/16/2023,0032010380/1,32010380, 1237.50,JBA Consulting,01599000,665300941,Development of Local Plan,Development of Local Plan,A01AE000044023,320003466
http://statistics.data.gov.uk/id/local-authority/29UP,Tonbridge & Malling Borough Council,8/16/2023,0032010381/3,32010381, 2500.00,Bruton Knowles,01843000,,Professional Fees,Development Management,A01AB000044001,
http://statistics.data.gov.uk/id/local-authority/29UP,Tonbridge & Malling Borough Council,8/16/2023,0032010383/1,32010383, 1909.50,Vivid Resourcing,01773700,,Temporary Staff,Planning Sals&Overheads,D01AJDJ0111300,
http://statistics.data.gov.uk/id/local-authority/29UP,Tonbridge & Malling Borough Council,8/16/2023,0032010384/1,32010384, 900.00,Quality Bailiffs,01835600,,Professional Fees,Development Management,A01ABENFO44001,
http://statistics.data.gov.uk/id/local-authority/29UP,Tonbridge & Malling Borough Council,8/16/2023,0032010385/3,32010385, 930.00,Quality Bailiffs,01835600,,Professional Fees,Development Management,A01ABENFO44001,
http://statistics.data.gov.uk/id/local-authority/29UP,Tonbridge & Malling Borough Council,8/16/2023,0032010386/3,32010386, 1702.55,The Oyster Partnership,01196400,,Temporary Staff,Planning Sals&Overheads,D01AJDJ0111300,
http://statistics.data.gov.uk/id/local-authority/29UP,Tonbridge & Malling Borough Council,8/16/2023,0032010387/3,32010387, 1668.15,The Oyster Partnership,01196400,,Temporary Staff,Planning Sals&Overheads,D01AJDJ0111300,
http://statistics.data.gov.uk/id/local-authority/29UP,Tonbridge & Malling Borough Council,8/16/2023,0032010388/1,32010388, 3100.00,Hadlow Parish Council,00041400,,Payments,S106 - Commuted Sums,M04AD000001001,
http://statistics.data.gov.uk/id/local-authority/29UP,Tonbridge & Malling Borough Council,8/16/2023,0032010389/3,32010389, 2250.00,G2 Recruitment Solutions,01786000,,Temporary Staff,Planning Sals&Overheads,D01AJDJ0011300,
http://statistics.data.gov.uk/id/local-authority/29UP,Tonbridge & Malling Borough Council,8/16/2023,0032010390/3,32010390, 1850.00,G2 Recruitment Solutions,01786000,,Temporary Staff,Planning Sals&Overheads,D01AJDJ0011300,
http://statistics.data.gov.uk/id/local-authority/29UP,Tonbridge & Malling Borough Council,8/16/2023,0032010394/1,32010394, 2227.25,Hays Specialist Recruitment Limited,01879200,773695871,Temporary Staff,Planning Sals&Overheads,D01AJDJ0311300,
http://statistics.data.gov.uk/id/local-authority/29UP,Tonbridge & Malling Borough Council,8/16/2023,0032010395/1,32010395, 1504.00,Carrington West Limited,01844500,,Temporary Staff,Planning Sals&Overheads,D01AJDJ0111300,
http://statistics.data.gov.uk/id/local-authority/29UP,Tonbridge & Malling Borough Council,8/16/2023,0032010396/1,32010396, 1504.00,Carrington West Limited,01844500,,Temporary Staff,Planning Sals&Overheads,D01AJDJ0111300,
http://statistics.data.gov.uk/id/local-authority/29UP,Tonbridge & Malling Borough Council,8/16/2023,0041035767/3,41035767, 1051.92,Morgan Hunt UK Ltd,01086900,,Temporary Staff,Finance Sals&Overheads,D01AFDF1111300,
http://statistics.data.gov.uk/id/local-authority/29UP,Tonbridge & Malling Borough Council,8/16/2023,0041035768/3,41035768, 1456.74,Rundle & Co Ltd,00087200,,Bailiffs Commission,Local Revenue & NNDR Collect,D41QA000044075,
http://statistics.data.gov.uk/id/local-authority/29UP,Tonbridge & Malling Borough Council,8/16/2023,0041035768/5,41035768, 0.10,Rundle & Co Ltd,00087200,,Bailiffs Commission,Local Revenue & NNDR Collect,D41QA000044075,
http://statistics.data.gov.uk/id/local-authority/29UP,Tonbridge & Malling Borough Council,8/16/2023,0041035769/3,41035769, 46.66,Rundle & Co Ltd,00087200,,Bailiffs Commission,Local Revenue & NNDR Collect,D41QA000044075,
http://statistics.data.gov.uk/id/local-authority/29UP,Tonbridge & Malling Borough Council,8/16/2023,0041035771/1,41035771, 80.00,WorldPay Ltd,01402000,991280207,Credit Card Commission,Banking Arrangements,D43QK000044082,
http://statistics.data.gov.uk/id/local-authority/29UP,Tonbridge & Malling Borough Council,8/16/2023,0041035771/2,41035771, 60.16,WorldPay Ltd,01402000,991280207,Credit Card Commission,Banking Arrangements,D43QK000044082,
http://statistics.data.gov.uk/id/local-authority/29UP,Tonbridge & Malling Borough Council,8/16/2023,0041035771/3,41035771, 0.32,WorldPay Ltd,01402000,991280207,Credit Card Commission,Banking Arrangements,D43QK000044082,
http://statistics.data.gov.uk/id/local-authority/29UP,Tonbridge & Malling Borough Council,8/16/2023,0041035773/1,41035773, 80.00,WorldPay Ltd,01402000,991280207,Credit Card Commission,Banking Arrangements,D43QK000044082,
http://statistics.data.gov.uk/id/local-authority/29UP,Tonbridge & Malling Borough Council,8/16/2023,0041035773/2,41035773, 77.36,WorldPay Ltd,01402000,991280207,Credit Card Commission,Banking Arrangements,D43QK000044082,
http://statistics.data.gov.uk/id/local-authority/29UP,Tonbridge & Malling Borough Council,8/16/2023,0041035773/3,41035773, 0.24,WorldPay Ltd,01402000,991280207,Credit Card Commission,Banking Arrangements,D43QK000044082,
http://statistics.data.gov.uk/id/local-authority/29UP,Tonbridge & Malling Borough Council,8/16/2023,0041035774/1,41035774, 190.48,WorldPay Ltd,01402000,991280207,Credit Card Commission,Banking Arrangements,D43QK000044082,
http://statistics.data.gov.uk/id/local-authority/29UP,Tonbridge & Malling Borough Council,8/16/2023,0041035774/2,41035774, 0.24,WorldPay Ltd,01402000,991280207,Credit Card Commission,Banking Arrangements,D43QK000044082,
http://statistics.data.gov.uk/id/local-authority/29UP,Tonbridge & Malling Borough Council,8/16/2023,0041035774/3,41035774, 80.00,WorldPay Ltd,01402000,991280207,Credit Card Commission,Banking Arrangements,D43QK000044082,
http://statistics.data.gov.uk/id/local-authority/29UP,Tonbridge & Malling Borough Council,8/16/2023,0041035780/1,41035780, 5000.00,Zurich Municipal Managment Services,01094000,,Insurance Employees - General,General Admin Finance,D24GP000013810,
http://statistics.data.gov.uk/id/local-authority/29UP,Tonbridge & Malling Borough Council,8/16/2023,0041035792/1,41035792, 68.04,Allpay Limited,01816500,,Giro / Swipe Card Charges,Local Revenue & NNDR Collect,D41QA000044083,
http://statistics.data.gov.uk/id/local-authority/29UP,Tonbridge & Malling Borough Council,8/16/2023,0041035792/2,41035792, 3.50,Allpay Limited,01816500,,Giro / Swipe Card Charges,Local Revenue & NNDR Collect,D41QA000044083,
http://statistics.data.gov.uk/id/local-authority/29UP,Tonbridge & Malling Borough Council,8/16/2023,0051008837/1,51008837, 399.00,Hiring People (Ptnrs of Research Ltd),01876600,161643812,Recruitment Advertising,Recruitment Expenses,D10DADA0013110,510010644
http://statistics.data.gov.uk/id/local-authority/29UP,Tonbridge & Malling Borough Council,8/22/2023,0041035802/1,41035802, 2555.00,H.M. Revenue & Customs,00048400,,Levy Payment,Apprenticeship Scheme,D10DE000013700,
http://statistics.data.gov.uk/id/local-authority/29UP,Tonbridge & Malling Borough Council,8/23/2023,0011046720/1,11046720, 4402.28,Retroelectric Ltd,01831000,,Contract Payments,UK Shared Prosperity Fund,P06FNFN6009904,
http://statistics.data.gov.uk/id/local-authority/29UP,Tonbridge & Malling Borough Council,8/23/2023,0011046721/3,11046721, 839.42,Papo UK Ltd,01238600,,Purchases,TIC Stock Account,K18AX000001002,
http://statistics.data.gov.uk/id/local-authority/29UP,Tonbridge & Malling Borough Council,8/23/2023,0011046722/1,11046722, 3270.00,Lucky Hands Ltd,01912600,,Contract Payments,UK Shared Prosperity Fund,P06FNFN4009904,
http://statistics.data.gov.uk/id/local-authority/29UP,Tonbridge & Malling Borough Council,8/23/2023,0011046723/1,11046723, 1750.00,EW Legal Costing Ltd,01830000,,Legal Fees,Legal Sals&Overheads,D01ARDR0044002,
http://statistics.data.gov.uk/id/local-authority/29UP,Tonbridge & Malling Borough Council,8/23/2023,0011046724/3,11046724, 1309.14,Sellick Partnership Group Limited,01336800,,Temporary Staff,Legal Sals&Overheads,D01ARDR0011300,
http://statistics.data.gov.uk/id/local-authority/29UP,Tonbridge & Malling Borough Council,8/23/2023,0011046725/3,11046725, 1204.40,Sellick Partnership Group Limited,01336800,,Temporary Staff,Legal Sals&Overheads,D01ARDR0011300,
http://statistics.data.gov.uk/id/local-authority/29UP,Tonbridge & Malling Borough Council,8/23/2023,0011046726/3,11046726, 306.00,Thomson Snell & Passmore,00101700,,Legal Fees,Legal Sals&Overheads,D01ARDR0044002,
http://statistics.data.gov.uk/id/local-authority/29UP,Tonbridge & Malling Borough Council,8/23/2023,0011046727/3,11046727, 2775.50,Thomson Snell & Passmore,00101700,,Legal Fees,Legal Sals&Overheads,D01ARDR0044002,
http://statistics.data.gov.uk/id/local-authority/29UP,Tonbridge & Malling Borough Council,8/23/2023,0011046728/3,11046728, 3021.50,Thomson Snell & Passmore,00101700,,Legal Fees,Legal Sals&Overheads,D01ARDR0044002,
http://statistics.data.gov.uk/id/local-authority/29UP,Tonbridge & Malling Borough Council,8/23/2023,0011046729/3,11046729, 1500.00,Thomson Snell & Passmore,00101700,,Legal Fees,Legal Sals&Overheads,D01ARDR0044002,
http://statistics.data.gov.uk/id/local-authority/29UP,Tonbridge & Malling Borough Council,8/23/2023,0011046730/3,11046730, 1140.50,Thomson Snell & Passmore,00101700,,Legal Fees,Legal Sals&Overheads,D01ARDR0044002,
http://statistics.data.gov.uk/id/local-authority/29UP,Tonbridge & Malling Borough Council,8/23/2023,0011046731/3,11046731, 1204.40,Sellick Partnership Group Limited,01336800,,Temporary Staff,Legal Sals&Overheads,D01ARDR0011300,
http://statistics.data.gov.uk/id/local-authority/29UP,Tonbridge & Malling Borough Council,8/23/2023,0011046732/3,11046732, 1217.80,Sellick Partnership Group Limited,01336800,,Temporary Staff,Legal Sals&Overheads,D01ARDR0011300,
http://statistics.data.gov.uk/id/local-authority/29UP,Tonbridge & Malling Borough Council,8/23/2023,0011046733/3,11046733, 1203.50,Thomson Snell & Passmore,00101700,,Legal Fees,Legal Sals&Overheads,D01ARDR0044002,
http://statistics.data.gov.uk/id/local-authority/29UP,Tonbridge & Malling Borough Council,8/23/2023,0011046734/1,11046734, 1457.10,Kent County Council,00322500,,Kent Highways,Local Land Charges,D35NK000044240,110070176
http://statistics.data.gov.uk/id/local-authority/29UP,Tonbridge & Malling Borough Council,8/23/2023,0011046736/1,11046736, 210.00,Envirocure Limited,00963300,,Other Expenses,Homeless Accommodation,P03AX000009908,110070034
http://statistics.data.gov.uk/id/local-authority/29UP,Tonbridge & Malling Borough Council,8/23/2023,0011046737/1,11046737, 210.00,Envirocure Limited,00963300,,Other Expenses,Homeless Accommodation,P03AX000009908,110070034
http://statistics.data.gov.uk/id/local-authority/29UP,Tonbridge & Malling Borough Council,8/23/2023,0011046738/3,11046738, 6.40,REDACTED PERSONAL DATA,01683000,,Castle Catering Provisions,Ton Castle Council Chamber,D21FC000041015,
http://statistics.data.gov.uk/id/local-authority/29UP,Tonbridge & Malling Borough Council,8/23/2023,0011046739/3,11046739, 1309.14,Sellick Partnership Group Limited,01336800,,Temporary Staff,Legal Sals&Overheads,D01ARDR0011300,
http://statistics.data.gov.uk/id/local-authority/29UP,Tonbridge & Malling Borough Council,8/23/2023,0011046740/3,11046740, 421.54,Sellick Partnership Group Limited,01336800,,Temporary Staff,Legal Sals&Overheads,D01ARDR0011300,
http://statistics.data.gov.uk/id/local-authority/29UP,Tonbridge & Malling Borough Council,8/23/2023,0011046744/3,11046744, 589.41,KH Recruitment Ltd,01738900,,Temporary Staff,Personnel Sals&Overheads,D01ABDB0311300,
http://statistics.data.gov.uk/id/local-authority/29UP,Tonbridge & Malling Borough Council,8/23/2023,0011046744/4,11046744, 469.94,KH Recruitment Ltd,01738900,,Temporary Staff,Personnel Sals&Overheads,D01ABDB0311300,
http://statistics.data.gov.uk/id/local-authority/29UP,Tonbridge & Malling Borough Council,8/23/2023,0012008814/3,12008814, 15735.88,Phoenix Software Ltd,00077400,755349015,Software Hire & Support,Information Technology,D27KD000044059,
http://statistics.data.gov.uk/id/local-authority/29UP,Tonbridge & Malling Borough Council,8/23/2023,0012008815/1,12008815, 59.00,Get It Repaired,01631300,287357752,Maintenance - Micros,Information Technology,D27KD000040140,410032462
http://statistics.data.gov.uk/id/local-authority/29UP,Tonbridge & Malling Borough Council,8/23/2023,0021038766/3,21038766, 3233.97,SWS Countryside & Landscape,01567200,,Contract Payments,LLCP Facility Improv,P05FF000009904,
http://statistics.data.gov.uk/id/local-authority/29UP,Tonbridge & Malling Borough Council,8/23/2023,0021038767/3,21038767, 1010.00,SWS Countryside & Landscape,01567200,,Contract Payments,LLCP Facility Improv,P05FF000009904,
http://statistics.data.gov.uk/id/local-authority/29UP,Tonbridge & Malling Borough Council,8/23/2023,0021038768/3,21038768, 26.85,B&Q/Screwfix Direct(TradeUKAccount),00141300,,Purchases,Open Spaces & Amenity Areas,B22LE000040101,
http://statistics.data.gov.uk/id/local-authority/29UP,Tonbridge & Malling Borough Council,8/23/2023,0021038769/1,21038769, 99.00,Keep Britain Tidy,00519900,,Purchases,Haysden Country Park,B22LC000040101,210057324
http://statistics.data.gov.uk/id/local-authority/29UP,Tonbridge & Malling Borough Council,8/23/2023,0021038770/3,21038770, 230.74,KCC - L.A.S.E.R Commercial Services ,00184300,,Electricity,Open Spaces & Amenity Areas,B22LE000021002,
http://statistics.data.gov.uk/id/local-authority/29UP,Tonbridge & Malling Borough Council,8/23/2023,0021038771/1,21038771, 11.50,South East Water Ltd,01330300,,Purchases,Haysden Country Park,B22LC000040101,210057306
http://statistics.data.gov.uk/id/local-authority/29UP,Tonbridge & Malling Borough Council,8/23/2023,0021038773/1,21038773, 5.71,B&Q/Screwfix Direct(TradeUKAccount),00141300,,Maintenance of Grounds,Haysden Country Park,B22LC000020402,
http://statistics.data.gov.uk/id/local-authority/29UP,Tonbridge & Malling Borough Council,8/23/2023,0021038774/1,21038774, 63.95,Landscape Services Ltd,00057600,,Maintenance of Grounds,Haysden Country Park,B22LC000020402,210057337
http://statistics.data.gov.uk/id/local-authority/29UP,Tonbridge & Malling Borough Council,8/23/2023,0022027997/3,22027997, 325.00,On Site Wheelie Washers,01069700,,Other Expenses,Refuse Collection,H20SA000048010,
http://statistics.data.gov.uk/id/local-authority/29UP,Tonbridge & Malling Borough Council,8/23/2023,0022027998/1,22027998, 17598.24,Straight Manufacturing Ltd,01029400,,Initial Furniture & Equipment,Green Waste Bin Growth/Replace,P02BC000009906,220003369
http://statistics.data.gov.uk/id/local-authority/29UP,Tonbridge & Malling Borough Council,8/23/2023,0022027999/1,22027999, 3.90,KCS Education/CSG Global Education Ltd,01897200,408845925,Stationery,Env Hlth & Hsg Sals&Overheads,D01AVDV0643003,220003383
http://statistics.data.gov.uk/id/local-authority/29UP,Tonbridge & Malling Borough Council,8/23/2023,0022027999/2,22027999, 2.92,KCS Education/CSG Global Education Ltd,01897200,408845925,Stationery,Env Hlth & Hsg Sals&Overheads,D01AVDV0643003,220003383
http://statistics.data.gov.uk/id/local-authority/29UP,Tonbridge & Malling Borough Council,8/23/2023,0022028000/3,22028000, 799.99,KCC - L.A.S.E.R Commercial Services ,00184300,,Electricity,Public Conveniences,H22SCH00421002,
http://statistics.data.gov.uk/id/local-authority/29UP,Tonbridge & Malling Borough Council,8/23/2023,0022028001/1,22028001, 1114.66,Town & Country Housing Group,01385400,,Other Expenses,Disabled Facilities Grant Mand,P03AC000009908,
http://statistics.data.gov.uk/id/local-authority/29UP,Tonbridge & Malling Borough Council,8/23/2023,0022028002/1,22028002, 2787.00,Higher Elevation LTD,01298700,,Other Expenses,Disabled Facilities Grant Mand,P03AC000009908,
http://statistics.data.gov.uk/id/local-authority/29UP,Tonbridge & Malling Borough Council,8/23/2023,0022028003/1,22028003, 5412.04,Daytrad,01425400,,Other Expenses,Disabled Facilities Grant Mand,P03AC000009908,
http://statistics.data.gov.uk/id/local-authority/29UP,Tonbridge & Malling Borough Council,8/23/2023,0022028004/1,22028004, 611.77,Town & Country Housing Group,01385400,,Other Expenses,Disabled Facilities Grant Mand,P03AC000009908,
http://statistics.data.gov.uk/id/local-authority/29UP,Tonbridge & Malling Borough Council,8/23/2023,0022028005/3,22028005, 1066.70,Lucy and Martin Recycling LTD,01694200,,Vehicle Licences,Dry Recycling,H34SR000030105,
http://statistics.data.gov.uk/id/local-authority/29UP,Tonbridge & Malling Borough Council,8/23/2023,0022028006/3,22028006, 68.54,British Telecommunications Plc,00012800,,Purchases,Homelessness,C01AATNPR40101,
http://statistics.data.gov.uk/id/local-authority/29UP,Tonbridge & Malling Borough Council,8/23/2023,0022028007/3,22028007, 142.18,British Gas Services LTD,01260000,,Electricity,Homelessness,C01AAMAUN21002,
http://statistics.data.gov.uk/id/local-authority/29UP,Tonbridge & Malling Borough Council,8/23/2023,0022028007/4,22028007, 13.00,British Gas Services LTD,01260000,,Electricity,Homelessness,C01AAMAUN21002,
http://statistics.data.gov.uk/id/local-authority/29UP,Tonbridge & Malling Borough Council,8/23/2023,0022028008/1,22028008, 275.00,Enviro Technology Services PLC,01461300,,Air Quality Monitoring,Environmental Protection,H32SN000054016,220003384
http://statistics.data.gov.uk/id/local-authority/29UP,Tonbridge & Malling Borough Council,8/23/2023,0022028011/1,22028011, 6957.70,Premiere Projects Limited,01913200,,Other Expenses,Disabled Facilities Grant Mand,P03AC000009908,
http://statistics.data.gov.uk/id/local-authority/29UP,Tonbridge & Malling Borough Council,8/23/2023,0022028012/1,22028012, 5820.75,YMCA Thames Gateway Group,01887700,,Professional Fees,Homelessness,C01AATNPR44001,
http://statistics.data.gov.uk/id/local-authority/29UP,Tonbridge & Malling Borough Council,8/23/2023,0022028013/1,22028013, 5820.75,YMCA Thames Gateway Group,01887700,,Professional Fees,Homelessness,C01AATNPR44001,
http://statistics.data.gov.uk/id/local-authority/29UP,Tonbridge & Malling Borough Council,8/23/2023,0022028014/1,22028014, 5820.75,YMCA Thames Gateway Group,01887700,,Professional Fees,Homelessness,C01AATNPR44001,
http://statistics.data.gov.uk/id/local-authority/29UP,Tonbridge & Malling Borough Council,8/23/2023,0031019659/3,31019659, 54.78,Npower Ltd,01675800,,Electricity,Parking Off-Street,E10HA000021002,
http://statistics.data.gov.uk/id/local-authority/29UP,Tonbridge & Malling Borough Council,8/23/2023,0031019660/3,31019660, 83.69,Npower Ltd,01675800,,Electricity,Parking Off-Street,E10HA000021002,
http://statistics.data.gov.uk/id/local-authority/29UP,Tonbridge & Malling Borough Council,8/23/2023,0031019661/3,31019661, 245.20,Npower Ltd,01675800,,Electricity,Parking Off-Street,E10HA000021002,
http://statistics.data.gov.uk/id/local-authority/29UP,Tonbridge & Malling Borough Council,8/23/2023,0031019662/3,31019662, 195.48,British Telecommunications Plc,00012800,,CCTV Monitoring Station,Security Services Management,E09GA000051020,
http://statistics.data.gov.uk/id/local-authority/29UP,Tonbridge & Malling Borough Council,8/23/2023,0031019663/3,31019663, 29110.66,Tunbridge Wells Borough Council,00844600,,CCTV Monitoring Station,Security Services Management,E09GA000051020,
http://statistics.data.gov.uk/id/local-authority/29UP,Tonbridge & Malling Borough Council,8/23/2023,0031019667/3,31019667, 64.18,B&Q/Screwfix Direct(TradeUKAccount),00141300,,Uniforms,Parking On-Street,E10HD000042002,
http://statistics.data.gov.uk/id/local-authority/29UP,Tonbridge & Malling Borough Council,8/23/2023,0031019668/1,31019668, 39.14,B&Q/Screwfix Direct(TradeUKAccount),00141300,,Repair & Mtce of Fixed Plant,Boro Highways & Emergency Oper,E01AA000020501,
http://statistics.data.gov.uk/id/local-authority/29UP,Tonbridge & Malling Borough Council,8/23/2023,0032010400/3,32010400, 1995.00,Vivid Resourcing,01773700,,Temporary Staff,Planning Sals&Overheads,D01AJDJ0111300,
http://statistics.data.gov.uk/id/local-authority/29UP,Tonbridge & Malling Borough Council,8/23/2023,0032010401/3,32010401, 1504.31,The Oyster Partnership,01196400,,Temporary Staff,Planning Sals&Overheads,D01AJDJ0111300,
http://statistics.data.gov.uk/id/local-authority/29UP,Tonbridge & Malling Borough Council,8/23/2023,0032010402/3,32010402, 1354.50,The Oyster Partnership,01196400,,Temporary Staff,Planning Sals&Overheads,D01AJDJ0111300,
http://statistics.data.gov.uk/id/local-authority/29UP,Tonbridge & Malling Borough Council,8/23/2023,0032010403/1,32010403, 214.20,KM Media Group Ltd,00053900,,Advertising General,Development Management,A01ABZ99944216,320003533
http://statistics.data.gov.uk/id/local-authority/29UP,Tonbridge & Malling Borough Council,8/23/2023,0032010404/3,32010404, 2250.00,G2 Recruitment Solutions,01786000,,Temporary Staff,Planning Sals&Overheads,D01AJDJ0011300,
http://statistics.data.gov.uk/id/local-authority/29UP,Tonbridge & Malling Borough Council,8/23/2023,0032010405/3,32010405, 1850.00,G2 Recruitment Solutions,01786000,,Temporary Staff,Planning Sals&Overheads,D01AJDJ0011300,
http://statistics.data.gov.uk/id/local-authority/29UP,Tonbridge & Malling Borough Council,8/23/2023,0032010406/3,32010406, 1504.00,Carrington West Limited,01844500,,Temporary Staff,Planning Sals&Overheads,D01AJDJ0111300,
http://statistics.data.gov.uk/id/local-authority/29UP,Tonbridge & Malling Borough Council,8/23/2023,0032010409/3,32010409, 2412.00,Hays Specialist Recruitment Limited,01879200,773695871,Temporary Staff,Planning Sals&Overheads,D01AJDJ0111300,
http://statistics.data.gov.uk/id/local-authority/29UP,Tonbridge & Malling Borough Council,8/23/2023,0032010410/3,32010410, 832.16,Hays Specialist Recruitment Limited,01879200,773695871,Temporary Staff,Planning Sals&Overheads,D01AJDJ0311300,
http://statistics.data.gov.uk/id/local-authority/29UP,Tonbridge & Malling Borough Council,8/23/2023,0041035796/3,41035796, 876.60,Morgan Hunt UK Ltd,01086900,,Temporary Staff,Finance Sals&Overheads,D01AFDF1111300,
http://statistics.data.gov.uk/id/local-authority/29UP,Tonbridge & Malling Borough Council,8/23/2023,0041035797/3,41035797, 1102.76,Rundle & Co Ltd,00087200,,Bailiffs Commission,Local Revenue & NNDR Collect,D41QA000044075,
http://statistics.data.gov.uk/id/local-authority/29UP,Tonbridge & Malling Borough Council,8/23/2023,0041035801/1,41035801, 23.68,Amazon EU SARL,01738400,,Stationery,Finance Sals&Overheads,D01AF000043003,410032457
http://statistics.data.gov.uk/id/local-authority/29UP,Tonbridge & Malling Borough Council,8/29/2023,0011046711/1,11046711, 22150.00,Malling Masonry,01822100,,BRREP General Maintenance,Tonbridge Castle Gatehouse,M15HKP10001900,110070252
http://statistics.data.gov.uk/id/local-authority/29UP,Tonbridge & Malling Borough Council,8/29/2023,0041035815/2,41035815, 22150.00,Malling Masonry,01822100,,BRREP General Maintenance,Tonbridge Castle Gatehouse,M15HKP10001900,
http://statistics.data.gov.uk/id/local-authority/29UP,Tonbridge & Malling Borough Council,8/30/2023,0011046745/1,11046745, 632.00,BML Building Services Ltd,01505000,,BRREP General Maintenance,Tonbridge Castle Gatehouse,M15HKP10001900,110070405
http://statistics.data.gov.uk/id/local-authority/29UP,Tonbridge & Malling Borough Council,8/30/2023,0011046746/1,11046746, 208.00,Southern Lightning Engineers Ltd,00094000,,BRREP Servicing-Lightning Prot,Tonbridge Castle Gatehouse,M15HKP20001942,110070305
http://statistics.data.gov.uk/id/local-authority/29UP,Tonbridge & Malling Borough Council,8/30/2023,0011046747/1,11046747, 299.00,Southern Lightning Engineers Ltd,00094000,,BRREP Servicing-Lightning Prot,Larkfield Leisure Centre,M15HDP20001942,110070309
http://statistics.data.gov.uk/id/local-authority/29UP,Tonbridge & Malling Borough Council,8/30/2023,0011046748/1,11046748, 350.00,BML Building Services Ltd,01505000,,Repairs & Mtce to Buildings,Homelessness,C01AATNHS20101,110070388
http://statistics.data.gov.uk/id/local-authority/29UP,Tonbridge & Malling Borough Council,8/30/2023,0011046749/1,11046749, 97.50,NLC Nova Lift Company Ltd,01735600,,BRREP Servicing - lifts,Leis Man Poult Wood Golf Centr,M15HEP20001930,110070400
http://statistics.data.gov.uk/id/local-authority/29UP,Tonbridge & Malling Borough Council,8/30/2023,0011046750/1,11046750, 250.00,SECOM plc,01084600,445838322,BRREP Response - General,Leis Man Poult Wood Golf Centr,M15HEP50001997,110070332
http://statistics.data.gov.uk/id/local-authority/29UP,Tonbridge & Malling Borough Council,8/30/2023,0011046751/3,11046751, 29.75,B&Q/Screwfix Direct(TradeUKAccount),00141300,,Purchases,Cleaning & Security,D21FD000040101,
http://statistics.data.gov.uk/id/local-authority/29UP,Tonbridge & Malling Borough Council,8/30/2023,0011046752/1,11046752, 337.47,Glaze-Tech Services Ltd,00779500,,BRREP Resp - Vandal / Break-In,Angel Centre,M15HAP50001998,110070350
http://statistics.data.gov.uk/id/local-authority/29UP,Tonbridge & Malling Borough Council,8/30/2023,0011046753/3,11046753, 1561.36,The Oyster Partnership,01196400,,Temporary Staff,Admin & Prop Sals&Overheads,D01AADA1111300,
http://statistics.data.gov.uk/id/local-authority/29UP,Tonbridge & Malling Borough Council,8/30/2023,0011046754/3,11046754, 48.71,Atlas Facilities Managment Limited ,01075900,,Miscellaneous Services,Cleaning & Security,D21FDDD6044015,
http://statistics.data.gov.uk/id/local-authority/29UP,Tonbridge & Malling Borough Council,8/30/2023,0011046755/3,11046755, 48.71,Atlas Facilities Managment Limited ,01075900,,Miscellaneous Services,Cleaning & Security,D21FDDD5044015,
http://statistics.data.gov.uk/id/local-authority/29UP,Tonbridge & Malling Borough Council,8/30/2023,0011046756/3,11046756, 320.00,Stuart Thomas Photography,00416800,,Other Expenses,Mayoral & Other Member Support,D29LX000048010,
http://statistics.data.gov.uk/id/local-authority/29UP,Tonbridge & Malling Borough Council,8/30/2023,0011046757/3,11046757, 215.52,Initial Washroom Hygiene,00048300,,Laundry - Roller Towels,Cleaning & Security,D21FD000042003,
http://statistics.data.gov.uk/id/local-authority/29UP,Tonbridge & Malling Borough Council,8/30/2023,0011046758/1,11046758, 294.00,Security & Electronic Solutions Ltd,01379500,,BRREP Servicing-entrance doors,Leis Man Poult Wood Golf Centr,M15HEP20001927,110070289
http://statistics.data.gov.uk/id/local-authority/29UP,Tonbridge & Malling Borough Council,8/30/2023,0011046759/1,11046759, 630.00,G C Industrial Heating Services,00578100,,BRREP Response - General,Gibson Building East,M15KGP50001997,110070401
http://statistics.data.gov.uk/id/local-authority/29UP,Tonbridge & Malling Borough Council,8/30/2023,0011046760/1,11046760, 910.00,G C Industrial Heating Services,00578100,,BRREP Response - General,Leis Man Poult Wood Golf Centr,M15HEP50001997,110070417
http://statistics.data.gov.uk/id/local-authority/29UP,Tonbridge & Malling Borough Council,8/30/2023,0011046761/1,11046761, 4840.00,Pier Contractors Limited,01902700,987590354,BRREP Asbestos monitoring,Shops & Maisonettes,M15NAP30001993,110070159
http://statistics.data.gov.uk/id/local-authority/29UP,Tonbridge & Malling Borough Council,8/30/2023,0011046763/1,11046763, 125.00,Automated Limited,00007000,,BRREP Serv Internal Lighting,Leis Man Poult Wood Golf Centr,M15HEP20001957,110070379
http://statistics.data.gov.uk/id/local-authority/29UP,Tonbridge & Malling Borough Council,8/30/2023,0011046764/1,11046764, 299.56,Glaze-Tech Services Ltd,00779500,,BRREP Window/door repairs,Leis Man Poult Wood Golf Centr,M15HEP20001919,110070349
http://statistics.data.gov.uk/id/local-authority/29UP,Tonbridge & Malling Borough Council,8/30/2023,0011046765/3,11046765, 200.00,BML Building Services Ltd,01505000,,BRREP Pruning/hedge trimming,Gibson Building West,M15KBP20001973,
http://statistics.data.gov.uk/id/local-authority/29UP,Tonbridge & Malling Borough Council,8/30/2023,0011046766/3,11046766, 14.75,Royal Mail,00086200,,Purchases,Mailsort Stock Account,K37BR000001002,
http://statistics.data.gov.uk/id/local-authority/29UP,Tonbridge & Malling Borough Council,8/30/2023,0011046766/4,11046766, 5527.75,Royal Mail,00086200,,Purchases,Mailsort Stock Account,K37BR000001002,
http://statistics.data.gov.uk/id/local-authority/29UP,Tonbridge & Malling Borough Council,8/30/2023,0011046766/5,11046766, 2.10,Royal Mail,00086200,,Purchases,Mailsort Stock Account,K37BR000001002,
http://statistics.data.gov.uk/id/local-authority/29UP,Tonbridge & Malling Borough Council,8/30/2023,0011046767/3,11046767, 1213.56,KH Recruitment Ltd,01738900,,Temporary Staff,Personnel Sals&Overheads,D01ABDB0311300,
http://statistics.data.gov.uk/id/local-authority/29UP,Tonbridge & Malling Borough Council,8/30/2023,0011046768/1,11046768, 210.00,G C Industrial Heating Services,00578100,,BRREP Response - General,Leis Man Poult Wood Golf Centr,M15HEP50001997,110070407
http://statistics.data.gov.uk/id/local-authority/29UP,Tonbridge & Malling Borough Council,8/30/2023,0011046771/1,11046771, 290.00,KD Drainage and Asbestos Ltd,01840800,335158603,BRREP Response - General,Angel Centre,M15HAP50001997,110070402
http://statistics.data.gov.uk/id/local-authority/29UP,Tonbridge & Malling Borough Council,8/30/2023,0011046772/3,11046772, 150.00,BML Building Services Ltd,01505000,,Repairs & Mtce to Buildings,Homelessness,C01AATNHS20101,
http://statistics.data.gov.uk/id/local-authority/29UP,Tonbridge & Malling Borough Council,8/30/2023,0011046773/3,11046773, 490.84,KCS - KCC,00054200,,Gas,Buildings,D21FEDD6021003,
http://statistics.data.gov.uk/id/local-authority/29UP,Tonbridge & Malling Borough Council,8/30/2023,0011046774/3,11046774, 190.49,KCS - KCC,00054200,,Gas,Buildings,D21FEDD1021003,
http://statistics.data.gov.uk/id/local-authority/29UP,Tonbridge & Malling Borough Council,8/30/2023,0011046776/3,11046776, 4381.99,KCS - KCC,00054200,,Electricity,Buildings,D21FEDD1021002,
http://statistics.data.gov.uk/id/local-authority/29UP,Tonbridge & Malling Borough Council,8/30/2023,0011046777/3,11046777, 2635.29,KCS - KCC,00054200,,Electricity,Buildings,D21FEDD6021002,
http://statistics.data.gov.uk/id/local-authority/29UP,Tonbridge & Malling Borough Council,8/30/2023,0011046778/3,11046778, 1886.18,KCS - KCC,00054200,,Electricity,Buildings,D21FEDD5021002,
http://statistics.data.gov.uk/id/local-authority/29UP,Tonbridge & Malling Borough Council,8/30/2023,0011046779/3,11046779, 13.89,Royal Mail,00086200,,Purchases,Mailsort Stock Account,K37BR000001002,
http://statistics.data.gov.uk/id/local-authority/29UP,Tonbridge & Malling Borough Council,8/30/2023,0011046779/4,11046779, 1582.93,Royal Mail,00086200,,Purchases,Mailsort Stock Account,K37BR000001002,
http://statistics.data.gov.uk/id/local-authority/29UP,Tonbridge & Malling Borough Council,8/30/2023,0011046780/3,11046780, 280.00,G C Industrial Heating Services,00578100,,BRREP Legionella Certification,Leis Man Poult Wood Golf Centr,M15HEP30001995,
http://statistics.data.gov.uk/id/local-authority/29UP,Tonbridge & Malling Borough Council,8/30/2023,0011046781/3,11046781, 225.00,GreenFish Consulting part of JCML Consul,01627700,,BRREP General Maintenance,Land Review,M15MAP49901900,
http://statistics.data.gov.uk/id/local-authority/29UP,Tonbridge & Malling Borough Council,8/30/2023,0011046782/3,11046782, 155.88,TwoFold Limited,00518000,,Purchases,Printing,D22GA000040101,
http://statistics.data.gov.uk/id/local-authority/29UP,Tonbridge & Malling Borough Council,8/30/2023,0011046784/1,11046784, 177.00,REDACTED PERSONAL DATA,00022600,,Other Expenses,Mayoral & Other Member Support,D29LX000048010,
http://statistics.data.gov.uk/id/local-authority/29UP,Tonbridge & Malling Borough Council,8/30/2023,0011046785/3,11046785, 1507.52,The Oyster Partnership,01196400,,Temporary Staff,Admin & Prop Sals&Overheads,D01AADA1111300,
http://statistics.data.gov.uk/id/local-authority/29UP,Tonbridge & Malling Borough Council,8/30/2023,0011046786/1,11046786, 100.00,BML Building Services Ltd,01505000,,BRREP Response - General,Tonbridge Castle Gatehouse,M15HKP50001997,110070406
http://statistics.data.gov.uk/id/local-authority/29UP,Tonbridge & Malling Borough Council,8/30/2023,0011046787/1,11046787, 155.00,Security & Electronic Solutions Ltd,01379500,,BRREP Servicing - CCTV,Tonbridge Swimming Pool,M15HBP20001952,110070367
http://statistics.data.gov.uk/id/local-authority/29UP,Tonbridge & Malling Borough Council,8/30/2023,0011046788/1,11046788, 765.00,Security & Electronic Solutions Ltd,01379500,,BRREP Servicing - CCTV,Leis Man Poult Wood Golf Centr,M15HEP20001952,110070347
http://statistics.data.gov.uk/id/local-authority/29UP,Tonbridge & Malling Borough Council,8/30/2023,0011046789/1,11046789, 290.00,KD Drainage and Asbestos Ltd,01840800,335158603,BRREP Response - General,Gibson Building West,M15KBP50001997,110070403
http://statistics.data.gov.uk/id/local-authority/29UP,Tonbridge & Malling Borough Council,8/30/2023,0011046790/1,11046790, 150.00,Wessex Lift Co Ltd,00332600,,BRREP Servicing - lifts,Tonbridge Castle / CAB,M15KFP20001930,110070366
http://statistics.data.gov.uk/id/local-authority/29UP,Tonbridge & Malling Borough Council,8/30/2023,0011046791/1,11046791, 216.00,Guardian Security & Fire Ltd,01899300,,BRREP Emergency light discharg,Leis Man Poult Wood Golf Centr,M15HEP30001980,110070414
http://statistics.data.gov.uk/id/local-authority/29UP,Tonbridge & Malling Borough Council,8/30/2023,0011046792/1,11046792, 638.00,Guardian Security & Fire Ltd,01899300,,BRREP Emergency light discharg,Angel Centre,M15HAP30001980,110070412
http://statistics.data.gov.uk/id/local-authority/29UP,Tonbridge & Malling Borough Council,8/30/2023,0011046793/1,11046793, 108.00,Guardian Security & Fire Ltd,01899300,,BRREP Emergency light discharg,Tonbridge Castle Gatehouse,M15HKP30001980,110070411
http://statistics.data.gov.uk/id/local-authority/29UP,Tonbridge & Malling Borough Council,8/30/2023,0011046794/1,11046794, 74.00,Guardian Security & Fire Ltd,01899300,,BRREP Servicing - FireAlarmSys,Tonbridge Castle Gatehouse,M15HKP20001937,110070411
http://statistics.data.gov.uk/id/local-authority/29UP,Tonbridge & Malling Borough Council,8/30/2023,0011046795/1,11046795, 74.00,Guardian Security & Fire Ltd,01899300,,BRREP Servicing - FireAlarmSys,Tonbridge Castle / CAB,M15KFP20001937,110070410
http://statistics.data.gov.uk/id/local-authority/29UP,Tonbridge & Malling Borough Council,8/30/2023,0011046796/1,11046796, 108.00,Guardian Security & Fire Ltd,01899300,,BRREP Servicing - FireAlarmSys,Tonbridge Castle / CAB,M15KFP20001937,110070410
http://statistics.data.gov.uk/id/local-authority/29UP,Tonbridge & Malling Borough Council,8/30/2023,0011046797/1,11046797, 319.00,Guardian Security & Fire Ltd,01899300,,BRREP Emergency light discharg,Gibson Building East,M15KGP30001980,110070408
http://statistics.data.gov.uk/id/local-authority/29UP,Tonbridge & Malling Borough Council,8/30/2023,0011046798/1,11046798, 150.00,Guardian Security & Fire Ltd,01899300,,BRREP Servicing - FireAlarmSys,Gibson Building West,M15KBP20001937,110070409
http://statistics.data.gov.uk/id/local-authority/29UP,Tonbridge & Malling Borough Council,8/30/2023,0011046799/1,11046799, 319.00,Guardian Security & Fire Ltd,01899300,,BRREP Emergency light discharg,Gibson Building West,M15KBP30001980,110070409
http://statistics.data.gov.uk/id/local-authority/29UP,Tonbridge & Malling Borough Council,8/30/2023,0011046800/1,11046800, 200.00,Guardian Security & Fire Ltd,01899300,,BRREP Servicing - FireAlarmSys,Larkfield Leisure Centre,M15HDP20001937,110070415
http://statistics.data.gov.uk/id/local-authority/29UP,Tonbridge & Malling Borough Council,8/30/2023,0011046801/1,11046801, 746.00,Guardian Security & Fire Ltd,01899300,,BRREP Emergency light discharg,Larkfield Leisure Centre,M15HDP30001980,110070415
http://statistics.data.gov.uk/id/local-authority/29UP,Tonbridge & Malling Borough Council,8/30/2023,0011046802/1,11046802, 70.00,Guardian Security & Fire Ltd,01899300,,BRREP Servicing - FireAlarmSys,Tonbridge Farm Pavillion,M15HGP20001937,110070413
http://statistics.data.gov.uk/id/local-authority/29UP,Tonbridge & Malling Borough Council,8/30/2023,0011046803/1,11046803, 130.00,Guardian Security & Fire Ltd,01899300,,BRREP Emergency light discharg,Tonbridge Farm Pavillion,M15HGP30001980,110070413
http://statistics.data.gov.uk/id/local-authority/29UP,Tonbridge & Malling Borough Council,8/30/2023,0011046804/1,11046804, 123.00,Guardian Security & Fire Ltd,01899300,,BRREP Servicing - FireAlarmSys,Leis Man Poult Wood Golf Centr,M15HEP20001937,110070414
http://statistics.data.gov.uk/id/local-authority/29UP,Tonbridge & Malling Borough Council,8/30/2023,0011046805/1,11046805, 148.00,Guardian Security & Fire Ltd,01899300,,BRREP Servicing - FireAlarmSys,Gibson Building West,M15KBP20001937,110070409
http://statistics.data.gov.uk/id/local-authority/29UP,Tonbridge & Malling Borough Council,8/30/2023,0011046806/1,11046806, 75.00,Guardian Security & Fire Ltd,01899300,,BRREP Servicing - FireAlarmSys,Tonbridge Castle Gatehouse,M15HKP20001937,110070411
http://statistics.data.gov.uk/id/local-authority/29UP,Tonbridge & Malling Borough Council,8/30/2023,0011046807/1,11046807, 75.00,Guardian Security & Fire Ltd,01899300,,BRREP Servicing - FireAlarmSys,Tonbridge Castle / CAB,M15KFP20001937,110070410
http://statistics.data.gov.uk/id/local-authority/29UP,Tonbridge & Malling Borough Council,8/30/2023,0011046808/1,11046808, 210.00,Guardian Security & Fire Ltd,01899300,,BRREP Servicing - FireAlarmSys,Gibson Building East,M15KGP20001937,110070408
http://statistics.data.gov.uk/id/local-authority/29UP,Tonbridge & Malling Borough Council,8/30/2023,0011046809/1,11046809, 124.00,Guardian Security & Fire Ltd,01899300,,BRREP Servicing - FireAlarmSys,Leis Man Poult Wood Golf Centr,M15HEP20001937,110070414
http://statistics.data.gov.uk/id/local-authority/29UP,Tonbridge & Malling Borough Council,8/30/2023,0011046810/1,11046810, 70.00,Guardian Security & Fire Ltd,01899300,,BRREP Servicing - FireAlarmSys,Tonbridge Farm Pavillion,M15HGP20001937,110070413
http://statistics.data.gov.uk/id/local-authority/29UP,Tonbridge & Malling Borough Council,8/30/2023,0011046828/1,11046828, 198.00,Guardian Security & Fire Ltd,01899300,,BRREP Servicing - FireAlarmSys,Larkfield Leisure Centre,M15HDP20001937,110070415
http://statistics.data.gov.uk/id/local-authority/29UP,Tonbridge & Malling Borough Council,8/30/2023,0011046829/1,11046829, 138.00,Guardian Security & Fire Ltd,01899300,,BRREP Servicing - FireAlarmSys,Angel Centre,M15HAP20001937,110070412
http://statistics.data.gov.uk/id/local-authority/29UP,Tonbridge & Malling Borough Council,8/30/2023,0012008816/1,12008816, 204.95,CCS Media Ltd,00018000,,Purchases,Information Technology,D27KD000040101,410032461
http://statistics.data.gov.uk/id/local-authority/29UP,Tonbridge & Malling Borough Council,8/30/2023,0012008816/2,12008816, 224.95,CCS Media Ltd,00018000,,Purchases,Information Technology,D27KD000040101,410032461
http://statistics.data.gov.uk/id/local-authority/29UP,Tonbridge & Malling Borough Council,8/30/2023,0012008816/3,12008816, 2.00,CCS Media Ltd,00018000,,Delivery Expenses,Information Technology,D27KD000044069,410032461
http://statistics.data.gov.uk/id/local-authority/29UP,Tonbridge & Malling Borough Council,8/30/2023,0012008817/1,12008817, 574.95,CCS Media Ltd,00018000,,Purchases,Information Technology,D27KD000040101,410032464
http://statistics.data.gov.uk/id/local-authority/29UP,Tonbridge & Malling Borough Council,8/30/2023,0012008817/2,12008817, 6.00,CCS Media Ltd,00018000,,Delivery Expenses,Information Technology,D27KD000044069,410032464
http://statistics.data.gov.uk/id/local-authority/29UP,Tonbridge & Malling Borough Council,8/30/2023,0012008818/1,12008818, 654.95,CCS Media Ltd,00018000,,Purchases,Information Technology,D27KD000040101,410032465
http://statistics.data.gov.uk/id/local-authority/29UP,Tonbridge & Malling Borough Council,8/30/2023,0012008818/2,12008818, 6.00,CCS Media Ltd,00018000,,Delivery Expenses,Information Technology,D27KD000044069,410032465
http://statistics.data.gov.uk/id/local-authority/29UP,Tonbridge & Malling Borough Council,8/30/2023,0021038775/3,21038775, 83.33,REDACTED PERSONAL DATA,01913400,,Events Support,Events Development,B41TJ000044041,
http://statistics.data.gov.uk/id/local-authority/29UP,Tonbridge & Malling Borough Council,8/30/2023,0021038776/1,21038776, 52.50,The East Malling Centre/Community Larder,01168000,,Partnership Fees,Leisure Planning & Policy,B37SD000044048,
http://statistics.data.gov.uk/id/local-authority/29UP,Tonbridge & Malling Borough Council,8/30/2023,0021038777/1,21038777, 266.80,Landscape Services Ltd,00057600,,Maintenance of Grounds,Open Spaces & Amenity Areas,B22LE000020402,210057334
http://statistics.data.gov.uk/id/local-authority/29UP,Tonbridge & Malling Borough Council,8/30/2023,0021038778/1,21038778, 495.00,The Original Tree Surgeons Limited,01906200,219421521,Health & Safety - Trees,Countryside/Woodland Mgt,B22LG000044045,210057338
http://statistics.data.gov.uk/id/local-authority/29UP,Tonbridge & Malling Borough Council,8/30/2023,0021038779/3,21038779, 36.58,Amazon EU SARL,01738400,,Events Support,Events Development,B41TJ000044041,
http://statistics.data.gov.uk/id/local-authority/29UP,Tonbridge & Malling Borough Council,8/30/2023,0021038780/3,21038780, 4.98,B&Q/Screwfix Direct(TradeUKAccount),00141300,,Purchases,Open Spaces & Amenity Areas,B22LE000040101,
http://statistics.data.gov.uk/id/local-authority/29UP,Tonbridge & Malling Borough Council,8/30/2023,0021038781/3,21038781, 66.66,REDACTED PERSONAL DATA,01562400,,Health General,St Scene & Leis Sals&Overheads,D01AGDG0144049,
http://statistics.data.gov.uk/id/local-authority/29UP,Tonbridge & Malling Borough Council,8/30/2023,0022028009/1,22028009, 17606.12,Webb-Flint Building & Maintenance Ltd,01913100,,Other Expenses,Disabled Facilities Grant Mand,P03AC000009908,
http://statistics.data.gov.uk/id/local-authority/29UP,Tonbridge & Malling Borough Council,8/30/2023,0022028010/1,22028010, 2386.67,Town & Country Housing Group,01385400,,Other Expenses,Disabled Facilities Grant Mand,P03AC000009908,
http://statistics.data.gov.uk/id/local-authority/29UP,Tonbridge & Malling Borough Council,8/30/2023,0022028015/3,22028015, 2.97,REDACTED PERSONAL DATA,01175600,,Food Sampling,Food & Safety - Food Safety,H35SX000054011,
http://statistics.data.gov.uk/id/local-authority/29UP,Tonbridge & Malling Borough Council,8/30/2023,0022028015/4,22028015, 2.92,REDACTED PERSONAL DATA,01175600,,Food Sampling,Food & Safety - Food Safety,H35SX000054011,
http://statistics.data.gov.uk/id/local-authority/29UP,Tonbridge & Malling Borough Council,8/30/2023,0022028016/1,22028016, 2069.00,Enviro Technology Services PLC,01461300,,Air Quality Monitoring,Environmental Protection,H32SN000054016,220003381
http://statistics.data.gov.uk/id/local-authority/29UP,Tonbridge & Malling Borough Council,8/30/2023,0022028017/1,22028017, 2800.00,Counterweight LTD,01506600,,Healthy Living Initiatives,Public Health - Healthy Living,H40SY000048145,
http://statistics.data.gov.uk/id/local-authority/29UP,Tonbridge & Malling Borough Council,8/30/2023,0022028018/1,22028018, 10.98,KCS Education/CSG Global Education Ltd,01897200,408845925,Stationery,Env Hlth & Hsg Sals&Overheads,D01AVDV0643003,220003383
http://statistics.data.gov.uk/id/local-authority/29UP,Tonbridge & Malling Borough Council,8/30/2023,0022028021/1,22028021, 1116.00,1st  Steps Housing Kent,01716100,,Temporary Accommodation,Homelessness,C01AA000044051,
http://statistics.data.gov.uk/id/local-authority/29UP,Tonbridge & Malling Borough Council,8/30/2023,0022028022/1,22028022, 2015.00,Centennial Property Ltd,01901000,,Temporary Accommodation,Homelessness,C01AA000044051,
http://statistics.data.gov.uk/id/local-authority/29UP,Tonbridge & Malling Borough Council,8/30/2023,0022028024/1,22028024, 6510.00,House to Home Lettings Ltd ,01647600,,Temporary Accommodation,Homelessness,C01AA000044051,
http://statistics.data.gov.uk/id/local-authority/29UP,Tonbridge & Malling Borough Council,8/30/2023,0022028025/1,22028025, 7727.50,Kent Accommodation Ltd,01722000,,Temporary Accommodation,Homelessness,C01AA000044051,
http://statistics.data.gov.uk/id/local-authority/29UP,Tonbridge & Malling Borough Council,8/30/2023,0022028026/1,22028026, 6851.00,Less Homeless Ltd,01489300,,Temporary Accommodation,Homelessness,C01AA000044051,
http://statistics.data.gov.uk/id/local-authority/29UP,Tonbridge & Malling Borough Council,8/30/2023,0022028027/1,22028027, 34953.00,Paramount Independent Property Suppliers,01595300,,Temporary Accommodation,Homelessness,C01AA000044051,
http://statistics.data.gov.uk/id/local-authority/29UP,Tonbridge & Malling Borough Council,8/30/2023,0022028028/1,22028028, 237.28,Premier Inn,01217400,,Temporary Accommodation,Homelessness,C01AA000044051,
http://statistics.data.gov.uk/id/local-authority/29UP,Tonbridge & Malling Borough Council,8/30/2023,0022028029/1,22028029, 2666.00,Premier Property Providers,01785400,,Temporary Accommodation,Homelessness,C01AA000044051,
http://statistics.data.gov.uk/id/local-authority/29UP,Tonbridge & Malling Borough Council,8/30/2023,0022028030/1,22028030, 9882.00,Simon Niblett Lettings,00072600,,Temporary Accommodation,Homelessness,C01AA000044051,
http://statistics.data.gov.uk/id/local-authority/29UP,Tonbridge & Malling Borough Council,8/30/2023,0022028031/1,22028031, 3410.00,Simon Niblett Lettings,00072600,,Temporary Accommodation,Homelessness,C01AA000044051,
http://statistics.data.gov.uk/id/local-authority/29UP,Tonbridge & Malling Borough Council,8/30/2023,0022028032/1,22028032, 2431.00,Simply Rented Ltd ,01691400,,Temporary Accommodation,Homelessness,C01AA000044051,
http://statistics.data.gov.uk/id/local-authority/29UP,Tonbridge & Malling Borough Council,8/30/2023,0022028033/1,22028033, 16622.00,Smart Property Professionals,01815100,,Temporary Accommodation,Homelessness,C01AA000044051,
http://statistics.data.gov.uk/id/local-authority/29UP,Tonbridge & Malling Borough Council,8/30/2023,0022028034/1,22028034, 2615.82,The Care Group-Housing & Care Trust,01699600,,Temporary Accommodation,Homelessness,C01AA000044051,
http://statistics.data.gov.uk/id/local-authority/29UP,Tonbridge & Malling Borough Council,8/30/2023,0022028035/1,22028035, 22652.00,Social & Community Care,01768400,,Temporary Accommodation,Homelessness,C01AA000044051,
http://statistics.data.gov.uk/id/local-authority/29UP,Tonbridge & Malling Borough Council,8/30/2023,0022028036/1,22028036, 10375.00,SPA CAFFE LIMITED,00127100,,Temporary Accommodation,Homelessness,C01AA000044051,
http://statistics.data.gov.uk/id/local-authority/29UP,Tonbridge & Malling Borough Council,8/30/2023,0022028037/1,22028037, 17043.00,Craemer UK LTD,01616400,,Initial Furniture & Equipment,New Waste Growth/Replacement,P02CF000009906,220003370
http://statistics.data.gov.uk/id/local-authority/29UP,Tonbridge & Malling Borough Council,8/30/2023,0022028038/1,22028038, 900.00,PSR Lighting & Signs Ltd,01265400,986561173,Initial Furniture & Equipment,Air Quality Monitoring Station,P02EN000009906,
http://statistics.data.gov.uk/id/local-authority/29UP,Tonbridge & Malling Borough Council,8/30/2023,0022028039/1,22028039, 7.29,Amazon EU SARL,01738400,,Purchases,Environmental Protection,H32SN000040101,
http://statistics.data.gov.uk/id/local-authority/29UP,Tonbridge & Malling Borough Council,8/30/2023,0022028040/1,22028040, 9.96,Amazon EU SARL,01738400,,Purchases,Environmental Protection,H32SN000040101,
http://statistics.data.gov.uk/id/local-authority/29UP,Tonbridge & Malling Borough Council,8/30/2023,0022028041/1,22028041, 7.96,Amazon EU SARL,01738400,,Purchases,Environmental Protection,H32SN000040101,
http://statistics.data.gov.uk/id/local-authority/29UP,Tonbridge & Malling Borough Council,8/30/2023,0022028042/1,22028042, 5.59,Amazon EU SARL,01738400,,Purchases,Environmental Protection,H32SN000040101,
http://statistics.data.gov.uk/id/local-authority/29UP,Tonbridge & Malling Borough Council,8/30/2023,0022028043/1,22028043, 33.96,EDF Energy Customers plc,01035000,,Electricity,Homelessness,C01AATNHS21002,
http://statistics.data.gov.uk/id/local-authority/29UP,Tonbridge & Malling Borough Council,8/30/2023,0022028044/1,22028044, 9.72,EDF Energy Customers plc,01035000,,Electricity,Homelessness,C01AA000021002,
http://statistics.data.gov.uk/id/local-authority/29UP,Tonbridge & Malling Borough Council,8/30/2023,0031019671/3,31019671, 38.32,B&Q/Screwfix Direct(TradeUKAccount),00141300,,Repair & Mtce of Fixed Plant,Boro Highways & Emergency Oper,E01AA000020501,
http://statistics.data.gov.uk/id/local-authority/29UP,Tonbridge & Malling Borough Council,8/30/2023,0031019673/1,31019673, 2315.80,HEREF Tonbridge Ltd,01518900,,Pay to Principal - Botany CP,Parking Off-Street,E10HAE00444197,
http://statistics.data.gov.uk/id/local-authority/29UP,Tonbridge & Malling Borough Council,8/30/2023,0031019674/4,31019674, 1170.14,CDER Group,01773300,,Adjudication & Enforcement Ser,Parking Off-Street,E10HA000044230,
http://statistics.data.gov.uk/id/local-authority/29UP,Tonbridge & Malling Borough Council,8/30/2023,0031019675/1,31019675, 2412.00,Nagels,01434000,,Stationery,Parking Off-Street,E10HA000043003,310043123
http://statistics.data.gov.uk/id/local-authority/29UP,Tonbridge & Malling Borough Council,8/30/2023,0031019676/1,31019676, 77.18,Shell U.K. Oil Products Limited,01673300,,"Petrol, Diesel & Oil",Patrolling,B22LF000030106,
http://statistics.data.gov.uk/id/local-authority/29UP,Tonbridge & Malling Borough Council,8/30/2023,0031019676/2,31019676, 91.48,Shell U.K. Oil Products Limited,01673300,,"Petrol, Diesel & Oil",Parking Off-Street,E10HA000030106,
http://statistics.data.gov.uk/id/local-authority/29UP,Tonbridge & Malling Borough Council,8/30/2023,0031019676/3,31019676, 91.48,Shell U.K. Oil Products Limited,01673300,,"Petrol, Diesel & Oil",Parking On-Street,E10HD000030106,
http://statistics.data.gov.uk/id/local-authority/29UP,Tonbridge & Malling Borough Council,8/30/2023,0031019677/1,31019677, 12.49,B&Q/Screwfix Direct(TradeUKAccount),00141300,,Purchases,Parking Off-Street,E10HA000040101,
http://statistics.data.gov.uk/id/local-authority/29UP,Tonbridge & Malling Borough Council,8/30/2023,0031019678/1,31019678, 20.30,B&Q/Screwfix Direct(TradeUKAccount),00141300,,Purchases,Parking Off-Street,E10HA000040101,
http://statistics.data.gov.uk/id/local-authority/29UP,Tonbridge & Malling Borough Council,8/30/2023,0032010413/3,32010413, 1036.56,The Oyster Partnership,01196400,,Temporary Staff,Planning Sals&Overheads,D01AJDJ0111300,
http://statistics.data.gov.uk/id/local-authority/29UP,Tonbridge & Malling Borough Council,8/30/2023,0032010414/3,32010414, 1586.25,The Oyster Partnership,01196400,,Temporary Staff,Planning Sals&Overheads,D01AJDJ0111300,
http://statistics.data.gov.uk/id/local-authority/29UP,Tonbridge & Malling Borough Council,8/30/2023,0032010415/3,32010415, 2250.00,G2 Recruitment Solutions,01786000,,Temporary Staff,Planning Sals&Overheads,D01AJDJ0011300,
http://statistics.data.gov.uk/id/local-authority/29UP,Tonbridge & Malling Borough Council,8/30/2023,0032010416/3,32010416, 1480.00,G2 Recruitment Solutions,01786000,,Temporary Staff,Planning Sals&Overheads,D01AJDJ0011300,
http://statistics.data.gov.uk/id/local-authority/29UP,Tonbridge & Malling Borough Council,8/30/2023,0032010417/3,32010417, 2237.25,Vivid Resourcing,01773700,,Temporary Staff,Planning Sals&Overheads,D01AJDJ0111300,
http://statistics.data.gov.uk/id/local-authority/29UP,Tonbridge & Malling Borough Council,8/30/2023,0032010418/3,32010418, 2194.25,Hays Specialist Recruitment Limited,01879200,773695871,Temporary Staff,Planning Sals&Overheads,D01AJDJ0111300,
http://statistics.data.gov.uk/id/local-authority/29UP,Tonbridge & Malling Borough Council,8/30/2023,0032010419/1,32010419, 300.00,Planning Jungle Limited,01517100,,Professional Fees,Development Management,A01AB000044001,310043121
http://statistics.data.gov.uk/id/local-authority/29UP,Tonbridge & Malling Borough Council,8/30/2023,0032010420/1,32010420, 182.07,KM Media Group Ltd,00053900,,Advertising General,Development Management,A01ABZ99944216,320003539
http://statistics.data.gov.uk/id/local-authority/29UP,Tonbridge & Malling Borough Council,8/30/2023,0041035809/3,41035809, 876.60,Morgan Hunt UK Ltd,01086900,,Temporary Staff,Finance Sals&Overheads,D01AFDF1111300,
http://statistics.data.gov.uk/id/local-authority/29UP,Tonbridge & Malling Borough Council,8/30/2023,0041035810/3,41035810, 1570.98,Rundle & Co Ltd,00087200,,Bailiffs Commission,Local Revenue & NNDR Collect,D41QA000044075,
http://statistics.data.gov.uk/id/local-authority/29UP,Tonbridge & Malling Borough Council,8/30/2023,0041035811/3,41035811, 1650.72,Maidstone Borough Council,01173700,,Bailiffs Commission,Local Revenue & NNDR Collect,D41QA000044075,
http://statistics.data.gov.uk/id/local-authority/29UP,Tonbridge & Malling Borough Council,8/30/2023,0041035812/3,41035812, 1529.19,Maidstone Borough Council,01173700,,Bailiffs Commission,Local Revenue & NNDR Collect,D41QA000044075,
http://statistics.data.gov.uk/id/local-authority/29UP,Tonbridge & Malling Borough Council,8/30/2023,0041035813/3,41035813, 399.00,Maidstone Borough Council,01173700,,Bailiffs Commission,Local Revenue & NNDR Collect,D41QA000044075,
http://statistics.data.gov.uk/id/local-authority/29UP,Tonbridge & Malling Borough Council,8/31/2023,0041035818/1,41035818, 15.20,HSBC Bank Plc,01740800,,Bank Charges,Banking Arrangements,D43QK000044222,
http://statistics.data.gov.uk/id/local-authority/29UP,Tonbridge & Malling Borough Council,8/31/2023,0041035819/1,41035819, 15.20,HSBC Bank Plc,01740800,,Bank Charges,Banking Arrangements,D43QK000044222,
http://statistics.data.gov.uk/id/local-authority/29UP,Tonbridge & Malling Borough Council,8/31/2023,0041035820/1,41035820, 581.43,King & Shaxson Investments,01411100,,Professional Fees,Treasury Management,D43QT000044001,
http://statistics.data.gov.uk/id/local-authority/29UP,Tonbridge & Malling Borough Council,8/31/2023,0041035821/1,41035821, 245.25,National Westminster Bank Plc,00069400,,Bank Charges,Banking Arrangements,D43QK000044222,
http://statistics.data.gov.uk/id/local-authority/29UP,Tonbridge & Malling Borough Council,8/31/2023,0041035822/1,41035822, 20.27,WorldPay Ltd,01402000,991280207,Credit Card Commission,Banking Arrangements,D43QK000044082,
http://statistics.data.gov.uk/id/local-authority/29UP,Tonbridge & Malling Borough Council,8/31/2023,0041035823/1,41035823, 68.00,National Westminster Bank Plc,00069400,,Bank Charges,Banking Arrangements,D43QK000044222,
